{"text_format":"1","workbook":"xlsx","n_sheets":8,"sheets":["Interface","Updates","Descriptions","Selection Lists","Valve Data","Calculations","Max Inlet Pressure","Steam Table"],"not_rendered":{"charts":0,"images":0,"macros":1,"external_links":0,"defined_names":10,"comments":0,"pivot_tables":0},"unopened":[],"bounds":{"document_bytes":16777216,"sheet_cells":100000,"rows_first":2000,"rows_last":500,"rows_between":2000,"halvings":0,"cell_chars":16384,"cell_head_chars":4096},"cells_cut":0,"cells_raw":0,"read":"whole","date_system":"1900"}

{"sheet":"Interface","index":0,"n_rows":60,"n_cols":9,"rows_kept":60,"cut":false,"hidden":false,"merged":[[10,3,13,4],[48,3,48,5],[51,4,51,5],[52,4,52,5],[54,3,54,5]]}
[]
[null,null,null,"SCC Water / Steam Valve Sizing Program","Price List"]
[null,null,null,"Revision 1.2","Sizing Only"]
[]
[null,null,"Hide","Customer:"]
[null,null,"Hide","Attn:"]
[null,null,"Hide","Quote Date:"]
[null,null,"Hide","Quote Maker Initials:"]
[null,null,"Hide","Quote Number Today:"]
[null,null,"Hide","Total Number of Systems:"]
[null,null,"Hide","Directions: Fill out the customer information above. Then, select an answer to each question below."]
[null,null,"Hide"]
[null,null,"Hide"]
[null,null,"Hide"]
["Code for cells C16/C17 if customer info is needed","Question #","Hide Show","Question","Selection",null,null,null,"Calcs"]
[{"$f":"IF(AND(E5:E10<>0),\"Hide\",\"Show\")","v":"Show"},1,"Hide","Please fill in the customer information above. "]
[{"$f":"IF(AND(CustDesg[[#Headers],[Price List]]<>0,E5:E10<>0),\"Show\",\"Hide\")","v":"Hide"},2,"Show","Which valve series should be used for this application?\n   599… series:  Up to 50 PSI differential, bronze body\n   HFV… series:  Up to 150 PSI differential, stainless steel body\n   If \"Auto select\" is chosen, the valve series will be automatically selected based on the rest of the information provided."]
[null,3,{"$f":"IF(AND(C17=\"Show\",E17<>0),\"Show\",\"Hide\")","v":"Hide"},"Will the valve be used to control water or steam?"]
[null,4,{"$f":"IF(AND(C18=\"Show\",E18=\"Water\"),\"Show\",\"Hide\")","v":"Hide"},"Choose a method to specify the required water flow."]
[null,5,{"$f":"IF(AND(C19=\"Show\",E19=\"Maximum water flow (gpm)\"),\"Show\",\"Hide\")","v":"Hide"},"Enter the maximum water flow required (gpm)."]
[null,6,{"$f":"IF(OR(AND(E20<>\"\",C20=\"Show\",E20>1000),AND(E20<>\"\",C20=\"Show\",E20<1)),\"Show\",\"Hide\")","v":"Hide"},"Water flow must be between 1-1000 gpm."]
[null,7,{"$f":"IF(AND(C19=\"Show\",E19=\"Boiler Horsepower (BHP)\"),\"Show\",\"Hide\")","v":"Hide"},"Enter the boiler horsepower (BHP).",null,null,null,null,{"$f":"Interface[[#This Row],[Selection]]*970.3*34.5/(60*Calculations!B8*(Calculations!B6-Calculations!B7))","v":{"$error":"#N/A"}}]
[null,8,{"$f":"IF(OR(AND(E22<>\"\",C22=\"Show\",E22>8000),AND(E22<>\"\",C22=\"Show\",E22<1)),\"Show\",\"Hide\")","v":"Hide"},"Boiler horsepower must be between 1-8000 BHP."]
[null,9,{"$f":"IF(AND(C19=\"Show\",E19=\"Burner Input (BTU/hr)\"),\"Show\",\"Hide\")","v":"Hide"},"Enter the burner input (MMBTU/hr)."]
[null,10,{"$f":"IF(OR(AND(E24<>\"\",C24=\"Show\",E24>400),AND(E24<>\"\",C24=\"Show\",E24<0.05)),\"Show\",\"Hide\")","v":"Hide"},"Burner input must be between 0.05 - 400 MMBTU/hr."]
[null,11,{"$f":"IF(AND(C24=\"Show\",E24<>0,C25=\"Hide\"),\"Show\",\"Hide\")","v":"Hide"},"Enter the boiler efficiency (%).",null,null,null,null,{"$f":"E24/0.033475*(E26/100)*1.15*970.3*34.5/(60*Calculations!B8*(Calculations!B6-Calculations!B7))","v":{"$error":"#N/A"}}]
[null,12,{"$f":"IF(OR(AND(E26<>\"\",C26=\"Show\",E26>100),AND(E26<>\"\",C26=\"Show\",E26<65)),\"Show\",\"Hide\")","v":"Hide"},"Boiler efficiency must be between 65-100%."]
[null,13,{"$f":"IF(AND(C19=\"Show\",E19=\"DA Rating (lb/hr)\"),\"Show\",\"Hide\")","v":"Hide"},"Enter the DA rating (lb/hr)."]
[null,14,{"$f":"IF(OR(AND(E28<>\"\",C28=\"Show\",E28>500000),AND(E28<>\"\",C28=\"Show\",E28<1)),\"Show\",\"Hide\")","v":"Hide"},"DA rating must be between 1 - 500,000 lb/hr."]
[null,15,{"$f":"IF(AND(C28=\"Show\",E28<>0,C29=\"Hide\"),\"Show\",\"Hide\")","v":"Hide"},"Enter the percentage of DA makeup water.",null,null,null,null,{"$f":"E28*Interface[[#This Row],[Selection]]/100/60/Calculations!B8","v":{"$error":"#N/A"}}]
[null,16,{"$f":"IF(OR(AND(E30<>\"\",C30=\"Show\",E30>100),AND(E30<>\"\",C30=\"Show\",E30<10)),\"Show\",\"Hide\")","v":"Hide"},"DA makeup water percentage must be between 10-100%."]
[null,17,{"$f":"IF(AND(C18=\"Show\",E18=\"Steam\"),\"Show\",\"Hide\")","v":"Hide"},"Enter the maximum steam flow required (lb/hr)."]
[null,18,{"$f":"IF(OR(AND(E32<>\"\",C32=\"Show\",E32>30000),AND(E32<>\"\",C32=\"Show\",E32<1)),\"Show\",\"Hide\")","v":"Hide"},"Steam flow must be between 1 - 30,000 lb/hr."]
[null,19,{"$f":"IF(OR(AND(C20=\"Show\",E20<>0,C21=\"Hide\"),AND(C22=\"Show\",E22<>0,C23=\"Hide\"),AND(C26=\"Show\",E26<>0,C27=\"Hide\"),AND(C30=\"Show\",E30<>0,C31=\"Hide\"),AND(C32=\"Show\",E32<>0,C33=\"Hide\")),\"Show\",\"Hide\")","v":"Hide"},"Enter the inlet pressure to the valve (psig).\nNote:  For feedwater applications, the inlet pressure is the feedwater pressure."]
[null,21,{"$f":"IF(AND(C34=\"Show\",E34<>0),\"Show\",\"Hide\")","v":"Hide"},"Enter the outlet pressure from the valve (psig).\nNote:  For feedwater applications, the outlet pressure is the boiler operating pressure."]
[null,22,{"$f":"IF(AND(C35=\"Show\",E35<>\"\",E34<=E35),\"Show\",\"Hide\")","v":"Hide"},"The inlet pressure must exceed the outlet pressure."]
[null,23,{"$f":"IF(AND(E35<>0,C35=\"Show\",Calculations!B2=\"599\",(E34-E35)>50),\"Show\",\"Hide\")","v":"Hide"},"The maximum differential pressure for 599… series valves is 50 psi.  Decrease pressure drop or select the HFV… series."]
[null,24,{"$f":"IF(AND(E35<>0,Calculations!B2=\"HFV\",(E34-E35)>150),\"Show\",\"Hide\")","v":"Hide"},"The maximum differential pressure for HFV… series valves is 150 psi.  Decrease pressure drop."]
[null,25,{"$f":"IF(AND(C36=\"Hide\",C37=\"Hide\",C38=\"Hide\",E18=\"Water\",C35=\"Show\",E34<>\"\",E35<>\"\"),\"Show\",\"Hide\")","v":"Hide"},"Enter the water temperature (°F).\nNote:  For feedwater applications, typical water temperature is 227°F."]
[null,26,{"$f":"IF(OR(AND(E39<>\"\",Calculations!B2=\"599\",E39>337),AND(E39<>\"\",Calculations!B2=\"599\",E39<32)),\"Show\",\"Hide\")","v":"Hide"},"Water temperature for 599… series valves must be between 32-337°F."]
[null,27,{"$f":"IF(OR(AND(E39<>\"\",Calculations!B2=\"HFV\",E39>450),AND(E39<>\"\",Calculations!B2=\"HFV\",E39<32)),\"Show\",\"Hide\")","v":"Hide"},"Water temperature for HFV… series valves must be between 32-450°F."]
[null,28,{"$f":"IF(AND(Calculations!B2=\"HFV\",Calculations!B12=\"Yes\",E18=\"Water\",E34<>\"\",E35<>\"\",E39<>\"\",C34=\"Show\",C36=\"Hide\",C37=\"Hide\",C38=\"Hide\",C40=\"Hide\",C41=\"Hide\",Calculations!B17=\"No valve available\"),\"Show\",\"Hide\")","v":"Hide"},"No valve available.  Contact SCC Inc. for further assistance."]
[null,29,{"$f":"IF(OR(AND(C36=\"Hide\",C37=\"Hide\",C38=\"Hide\",C40=\"Hide\",C41=\"Hide\",C42=\"Hide\",Calculations!B2=\"HFV\",E18=\"Water\",C39=\"Show\",E39<>0),AND(C36=\"Hide\",C37=\"Hide\",C38=\"Hide\",C40=\"Hide\",C41=\"Hide\",C42=\"Hide\",Calculations!B2=\"HFV\",E18=\"Steam\",C35=\"Show\",E35<>0)),\"Show\",\"Hide\")","v":"Hide"},"Shall the valve be a 2-way or 3-way valve?"]
[null,30,{"$f":"IF(AND(C43=\"Show\",E43=\"2-way\",Calculations!B2=\"HFV\"),\"Show\",\"Hide\")","v":"Hide"},"Which valve flow characteristic is desired?\n   Linear:  Flow through the valve increases linearly with valve position.  Typical for feedwater applications.\n   Equal percentage:  Flow through the valve increases exponentially with valve opening.  Typical for steam applications."]
[null,31,{"$f":"IF(OR(\nAND(C44=\"Show\",E44<>0,E43=\"2-way\",Calculations!B2=\"HFV\"),\nAND(Interface!E43=\"3-way\",Interface!C43=\"Show\",Calculations!B2=\"HFV\"),\nAND(Calculations!B2=\"599\",Calculations!B21>2,E18=\"Water\",C39=\"Show\",E39<>\"\",C36=\"Hide\",C37=\"Hide\",C38=\"Hide\",C40=\"Hide\",C41=\"Hide\",C42=\"Hide\"),\nAND(Calculations!B2=\"599\",Calculations!B21>2,E18=\"Steam\",C35=\"Show\",E35<>\"\",C36=\"Hide\",C37=\"Hide\",C38=\"Hide\",C40=\"Hide\",C41=\"Hide\",C42=\"Hide\")\n),\"Show\",\"Hide\")","v":"Hide"},"Which connection type is desired?"]
[null,32,{"$f":"IF(OR(\nAND(Calculations!B21>2,C45=\"Show\",E45=\"NPT threaded\"),\nAND(Calculations!B21<=2,C45=\"Show\",E45=\"125# flanged\"),\nAND(Calculations!B21<=2,C45=\"Show\",E45=\"250# flanged\"),\nAND(Calculations!B2=\"HFV\",C45=\"Show\",E45=\"125# flanged\"),\nAND(Calculations!B2=\"HFV\",C45=\"Show\",E45=\"250# flanged\"),\nAND(Calculations!B2=\"599\",C45=\"Show\",E45=\"150# flanged\"),\nAND(Calculations!B2=\"599\",C45=\"Show\",E45=\"300# flanged\"),\n),\"Show\",\"Hide\")","v":"Hide"},"Choose a different connection type."]
[null,33,{"$f":"IF(OR(AND(Calculations!B2=\"599\",C39=\"Show\",E39<>\"\",E18=\"Water\",Calculations!B27<E34),AND(Calculations!B2=\"599\",C35=\"Show\",E35<>\"\",Interface!E18=\"Steam\",Calculations!B27<E34),AND(Calculations!B2=\"HFV\",C45=\"Show\",E45<>\"\",Calculations!B28<E34)),\"Show\",\"Hide\")","v":"Hide"},{"$f":"\"Maximum inlet pressure for this application is \"&Calculations!B29&\" psig.  Reduce inlet pressure.\"","v":"Maximum inlet pressure for this application is  psig.  Reduce inlet pressure."}]
[]
[null,null,{"$f":"IF(OR(AND(C35=\"Show\",C36=\"Hide\",C37=\"Hide\",C38=\"Hide\",C40=\"Hide\",C41=\"Hide\",C42=\"Hide\",C46=\"Hide\",C47=\"Hide\",Calculations!B2=\"599\",E19<>0,E34<>0,E35<>0,E39<>0,E18=\"Water\",Calculations!B21<=2),\nAND(C35=\"Show\",C36=\"Hide\",C37=\"Hide\",C38=\"Hide\",C40=\"Hide\",C41=\"Hide\",C42=\"Hide\",C46=\"Hide\",C47=\"Hide\",Calculations!B2=\"599\",E19<>0,E34<>0,E35<>0,E39<>0,E45<>0,E18=\"Water\",Calculations!B21>2),\nAND(C35=\"Show\",C36=\"Hide\",C37=\"Hide\",C38=\"Hide\",C40=\"Hide\",C41=\"Hide\",C42=\"Hide\",C46=\"Hide\",C47=\"Hide\",Calculations!B2=\"HFV\",E19<>0,E34<>0,E35<>0,E39<>\"\",E45<>0,E18=\"Water\",E43=\"3-way\"),\nAND(C35=\"Show\",C36=\"Hide\",C37=\"Hide\",C38=\"Hide\",C40=\"Hide\",C41=\"Hide\",C42=\"Hide\",C46=\"Hide\",C47=\"Hide\",Calculations!B2=\"HFV\",E19<>0,E34<>0,E35<>0,E39<>\"\",E43<>0,E45<>0,E18=\"Water\",E43=\"2-way\",E44<>0),\nAND(C35=\"Show\",C36=\"Hide\",C37=\"Hide\",C38=\"Hide\",C40=\"Hide\",C41=\"Hide\",C42=\"Hide\",C46=\"Hide\",C47=\"Hide\",Calculations!B2=\"599\",E18=\"Steam\",E34<>0,E35<>0,E32<>\"\",Calculations!B21<=2),\nAND(C35=\"Show\",C36=\"Hide\",C37=\"Hide\",C38=\"Hide\",C40=\"Hide\",C41=\"Hide\",C42=\"Hide\",C46=\"Hide\",C47=\"Hide\",Calculations!B2=\"599\",E18=\"Steam\",E34<>0,E35<>0,E32<>\"\",E45<>0,Calculations!B21>2),\nAND(C35=\"Show\",C36=\"Hide\",C37=\"Hide\",C38=\"Hide\",C40=\"Hide\",C41=\"Hide\",C42=\"Hide\",C46=\"Hide\",C47=\"Hide\",Calculations!B2=\"HFV\",E18=\"Steam\",E34<>0,E35<>0,E32<>\"\",E43=\"3-way\",E45<>0),\nAND(C35=\"Show\",C36=\"Hide\",C37=\"Hide\",C38=\"Hide\",C40=\"Hide\",C41=\"Hide\",C42=\"Hide\",C46=\"Hide\",C47=\"Hide\",Calculations!B2=\"HFV\",E18=\"Steam\",E34<>0,E35<>0,E32<>\"\",E43=\"2-way\",E44<>0,E45<>0)),\"Show\",\"Hide\")","v":"Hide"},"Valve Selection"]
[null,null,{"$f":"IF($C$49=\"Show\",\"Show\",\"Hide\")","v":"Hide"},"Valve Part Number","Description","Cv"]
[null,null,{"$f":"IF($C$49=\"Show\",\"Show\",\"Hide\")","v":"Hide"},{"$f":"IFERROR(IF(Calculations!$B$2=\"599\",Calculations!$B$18,IF(AND(Calculations!$B$2=\"HFV\",Calculations!$B$12=\"No\"),Calculations!$B$19,Calculations!$B$20)),\"No valve available.  Contact SCC Inc. for further assistance.\")","v":"HFV-Lilable"},{"$f":"IFERROR(INDEX(Description[],MATCH(D51,Description[SCC Part Number],0),2),\"\")","v":""},{"$f":"IFERROR(INDEX(ValveData[],MATCH(Calculations!$B$30,ValveData[Valve Part Number],0),6),\"\")","v":""}]
[null,null,{"$f":"IF($C$49=\"Show\",\"Show\",\"Hide\")","v":"Hide"},{"$f":"IF($E$18=\"Water\",\"Maximum Flow Required by Application (gpm) \",IF($E$18=\"Steam\",\"Maximum Flow Required by Application (lb/hr) \",\"\"))","v":""},{"$f":"IF($E$18=\"Water\",\"Maximum Flow Through Valve at Stated Conditions (gpm) \",IF($E$18=\"Steam\",\"Maximum Flow Through Valve at Stated Conditions (lb/hr) \",\"\"))","v":""}]
[null,null,{"$f":"IF($C$49=\"Show\",\"Show\",\"Hide\")","v":"Hide"},{"$f":"IF($E$18=\"Water\",Calculations!$B$5,IF($E$18=\"Steam\",$E$32,\"\"))","v":""},{"$f":"IFERROR(IF($E$18=\"Water\",INDEX(ValveData[],MATCH(Calculations!$B$30,ValveData[Valve Part Number],0),7),IF($E$18=\"Steam\",INDEX(ValveData[],MATCH(Calculations!$B$30,ValveData[Valve Part Number],0),8),\"\")),\"\")","v":""}]
[]
[null,null,{"$f":"IF($C$49=\"Show\",\"Show\",\"Hide\")","v":"Hide"},"Actuator Selection - Choose 1"]
[null,null,{"$f":"IF($C$49=\"Show\",\"Show\",\"Hide\")","v":"Hide"},"Actuator Part Number (actuators listed from lowest cost to highest cost)","Description","Max. Closeoff Pressure"]
[null,null,{"$f":"IF(OR(AND($C$49=\"Show\",Calculations!B2=\"HFV\",Calculations!B21<2.1,F57>E34),AND($C$49=\"Show\",Calculations!B2=\"599\",Calculations!B21<3.1,F57>E34)),\"Show\",\"Hide\")","v":"Hide"},"SKD62UA","3/4\" stroke, 225 lbf force, 30s opening, 15s closing",{"$f":"IFERROR(IF(Calculations!$B$2=\"599\",Calculations!$B$23,IF(Calculations!$B$2=\"HFV\",Calculations!$B$25,0)),0)","v":0}]
[null,null,{"$f":"IF(OR(AND($C$49=\"Show\",Calculations!B2=\"HFV\",Calculations!B21<2.1,F58>E34),AND($C$49=\"Show\",Calculations!B2=\"599\",Calculations!B21<3.1,F58>E34)),\"Show\",\"Hide\")","v":"Hide"},"SKB62UA","3/4\" stroke, 629 lbf force, 120s opening, 15s closing",{"$f":"IFERROR(IF(Calculations!$B$2=\"599\",Calculations!$B$24,IF(Calculations!$B$2=\"HFV\",Calculations!$B$26,0)),0)","v":0}]
[null,null,{"$f":"IF(AND($C$49=\"Show\",F59>E34),\"Show\",\"Hide\")","v":"Hide"},"SKC62UA","1-1/2\" stroke, 629 lbf force, 120s opening, 20s closing",{"$f":"IFERROR(IF(Calculations!$B$2=\"599\",Calculations!$B$24,IF(Calculations!$B$2=\"HFV\",Calculations!$B$26,0)),0)","v":0}]
[null,null,{"$f":"IF(AND(C56=\"Show\",C57=\"Hide\",C58=\"Hide\",C59=\"Hide\"),\"Show\",\"Hide\")","v":"Hide"},"Actuators that can be selected by this tool do not meet the application requirements.\nContact SCC Inc. at (224) 366-8445 x2 for further assistance selecting an actuator."]

{"sheet":"Updates","index":1,"n_rows":5,"n_cols":2,"rows_kept":5,"cut":false,"hidden":true,"merged":[[4,0,4,1]]}
["Update Number","Update Description"]
[1,"Currently 2-1/2\" and 3\" 599 valves are automatically given an SKC62UA actuator which is incorrect.  Update so that if the valve is 599 and under 4\", it checks for SKB, C, and D."]
[2,"Remove 1.15 from BHP calculation.  This was a 15% safety factor.  10% safety factor is already built in elsewhere."]
[3,"Change safety factor from 10% to 50%."]
["Revision 1.2 released 9/17/2021"]

{"sheet":"Descriptions","index":2,"n_rows":500,"n_cols":2,"rows_kept":500,"cut":false,"hidden":true,"merged":[]}
["SCC Part Number","Description"]
["599-03072","2-way NC 1/2\" NPT 1.0 Cv linear valve steam packing"]
["599-03073","2-way NC 1/2\" NPT 1.6 Cv linear valve steam packing"]
["599-03074","2-way NC 1/2\" NPT 2.5 Cv linear valve steam packing"]
["599-03075","2-way NC 1/2\" NPT 4.0 Cv linear valve steam packing"]
["599-03076","2-way NC 3/4\" NPT linear valve steam packing"]
["599-03077","2-way NC 1\" NPT linear valve steam packing"]
["599-03078","2-way NC 1-1/4\" NPT linear valve steam packing"]
["599-03079","2-way NC 1-1/2\" NPT linear valve steam packing"]
["599-03080","2-way NC 2\" NPT linear valve steam packing"]
["599-06050","2-way NC 2-1/2\" 125# flanged linear valve steam packing"]
["599-06051","2-way NC 3\" 125# flanged linear valve steam packing"]
["599-06052","2-way NC 4\" 125# flanged linear valve steam packing"]
["599-06053","2-way NC 5\" 125# flanged linear valve steam packing"]
["599-06054","2-way NC 6\" 125# flanged linear valve steam packing"]
["599-06130","2-way NC 2-1/2\" 250# flanged linear valve steam packing"]
["599-06131","2-way NC 3\" 250# flanged linear valve steam packing"]
["599-06132","2-way NC 4\" 250# flanged linear valve steam packing"]
["599-06133","2-way NC 5\" 250# flanged linear valve steam packing"]
["599-06134","2-way NC 6\" 250# flanged linear valve steam packing"]
["HFV-2EN-050R-X","2-way 1/2\" NPT reduced port equal percentage valve"]
["HFV-2EN-050-X","2-way 1/2\" NPT equal percentage valve"]
["HFV-2EN-075-X","2-way 3/4\" NPT equal percentage valve"]
["HFV-2EN-100-X","2-way 1\" NPT equal percentage valve"]
["HFV-2EN-150-X","2-way 1-1/2\" NPT equal percentage valve"]
["HFV-2EN-200-X","2-way 2\" NPT equal percentage valve"]
["HFV-2E1-050R-X","2-way 1/2\" 150# flanged reduced port equal percentage valve"]
["HFV-2E1-050-X","2-way 1/2\" 150# flanged equal percentage valve"]
["HFV-2E1-075-X","2-way 3/4\" 150# flanged equal percentage valve"]
["HFV-2E1-100-X","2-way 1\" 150# flanged equal percentage valve"]
["HFV-2E1-150-X","2-way 1-1/2\" 150# flanged equal percentage valve"]
["HFV-2E1-200-X","2-way 2\" 150# flanged equal percentage valve"]
["HFV-2E1-250-X","2-way 2-1/2\" 150# flanged equal percentage valve"]
["HFV-2E1-300-X","2-way 3\" 150# flanged equal percentage valve"]
["HFV-2E1-400-X","2-way 4\" 150# flanged equal percentage valve"]
["HFV-2E3-050R-X","2-way 1/2\" 300# flanged reduced port equal percentage valve"]
["HFV-2E3-050-X","2-way 1/2\" 300# flanged equal percentage valve"]
["HFV-2E3-075-X","2-way 3/4\" 300# flanged equal percentage valve"]
["HFV-2E3-100-X","2-way 1\" 300# flanged equal percentage valve"]
["HFV-2E3-150-X","2-way 1-1/2\" 300# flanged equal percentage valve"]
["HFV-2E3-200-X","2-way 2\" 300# flanged equal percentage valve"]
["HFV-2E3-250-X","2-way 2-1/2\" 300# flanged equal percentage valve"]
["HFV-2E3-300-X","2-way 3\" 300# flanged equal percentage valve"]
["HFV-2E3-400-X","2-way 4\" 300# flanged equal percentage valve"]
["HFV-2LN-050R-X","2-way 1/2\" NPT reduced port linear valve"]
["HFV-2LN-050-X","2-way 1/2\" NPT linear valve"]
["HFV-2LN-075-X","2-way 3/4\" NPT linear valve"]
["HFV-2LN-100-X","2-way 1\" NPT linear valve"]
["HFV-2LN-150-X","2-way 1-1/2\" NPT linear valve"]
["HFV-2LN-200-X","2-way 2\" NPT linear valve"]
["HFV-2L1-050R-X","2-way 1/2\" 150# flanged reduced port linear valve"]
["HFV-2L1-050-X","2-way 1/2\" 150# flanged linear valve"]
["HFV-2L1-075-X","2-way 3/4\" 150# flanged linear valve"]
["HFV-2L1-100-X","2-way 1\" 150# flanged linear valve"]
["HFV-2L1-150-X","2-way 1-1/2\" 150# flanged linear valve"]
["HFV-2L1-200-X","2-way 2\" 150# flanged linear valve"]
["HFV-2L1-250-X","2-way 2-1/2\" 150# flanged linear valve"]
["HFV-2L1-300-X","2-way 3\" 150# flanged linear valve"]
["HFV-2L1-400-X","2-way 4\" 150# flanged linear valve"]
["HFV-2L3-050R-X","2-way 1/2\" 300# flanged reduced port linear valve"]
["HFV-2L3-050-X","2-way 1/2\" 300# flanged linear valve"]
["HFV-2L3-075-X","2-way 3/4\" 300# flanged linear valve"]
["HFV-2L3-100-X","2-way 1\" 300# flanged linear valve"]
["HFV-2L3-150-X","2-way 1-1/2\" 300# flanged linear valve"]
["HFV-2L3-200-X","2-way 2\" 300# flanged linear valve"]
["HFV-2L3-250-X","2-way 2-1/2\" 300# flanged linear valve"]
["HFV-2L3-300-X","2-way 3\" 300# flanged linear valve"]
["HFV-2L3-400-X","2-way 4\" 300# flanged linear valve"]
["HFV-3LN-050-X","3-way 1/2\" NPT linear valve"]
["HFV-3LN-075-X","3-way 3/4\" NPT linear valve"]
["HFV-3LN-100-X","3-way 1\" NPT linear valve"]
["HFV-3LN-150-X","3-way 1-1/2\" NPT linear valve"]
["HFV-3LN-200-X","3-way 2\" NPT linear valve"]
["HFV-3L1-050-X","3-way 1/2\" 150# flanged linear valve"]
["HFV-3L1-075-X","3-way 3/4\" 150# flanged linear valve"]
["HFV-3L1-100-X","3-way 1\" 150# flanged linear valve"]
["HFV-3L1-150-X","3-way 1-1/2\" 150# flanged linear valve"]
["HFV-3L1-200-X","3-way 2\" 150# flanged linear valve"]
["HFV-3L1-250-X","3-way 2-1/2\" 150# flanged linear valve"]
["HFV-3L1-300-X","3-way 3\" 150# flanged linear valve"]
["HFV-3L1-400-X","3-way 4\" 150# flanged linear valve"]
["HFV-3L3-050-X","3-way 1/2\" 300# flanged linear valve"]
["HFV-3L3-075-X","3-way 3/4\" 300# flanged linear valve"]
["HFV-3L3-100-X","3-way 1\" 300# flanged linear valve"]
["HFV-3L3-150-X","3-way 1-1/2\" 300# flanged linear valve"]
["HFV-3L3-200-X","3-way 2\" 300# flanged linear valve"]
["HFV-3L3-250-X","3-way 2-1/2\" 300# flanged linear valve"]
["HFV-3L3-300-X","3-way 3\" 300# flanged linear valve"]
["HFV-3L3-400-X","3-way 4\" 300# flanged linear valve"]
["HFV-2EN-050R-1","2-way 1/2\" NPT reduced port equal percentage valve, with CA1"]
["HFV-2EN-050-1","2-way 1/2\" NPT equal percentage valve, with CA1"]
["HFV-2EN-075-1","2-way 3/4\" NPT equal percentage valve, with CA1"]
["HFV-2EN-100-1","2-way 1\" NPT equal percentage valve, with CA1"]
["HFV-2EN-150-1","2-way 1-1/2\" NPT equal percentage valve, with CA1"]
["HFV-2EN-200-1","2-way 2\" NPT equal percentage valve, with CA1"]
["HFV-2E1-050R-1","2-way 1/2\" 150# flanged reduced port equal percentage valve, with CA1"]
["HFV-2E1-050-1","2-way 1/2\" 150# flanged equal percentage valve, with CA1"]
["HFV-2E1-075-1","2-way 3/4\" 150# flanged equal percentage valve, with CA1"]
["HFV-2E1-100-1","2-way 1\" 150# flanged equal percentage valve, with CA1"]
["HFV-2E1-150-1","2-way 1-1/2\" 150# flanged equal percentage valve, with CA1"]
["HFV-2E1-200-1","2-way 2\" 150# flanged equal percentage valve, with CA1"]
["HFV-2E1-250-1","2-way 2-1/2\" 150# flanged equal percentage valve, with CA1"]
["HFV-2E3-050R-1","2-way 1/2\" 300# flanged reduced port equal percentage valve, with CA1"]
["HFV-2E3-050-1","2-way 1/2\" 300# flanged equal percentage valve, with CA1"]
["HFV-2E3-075-1","2-way 3/4\" 300# flanged equal percentage valve, with CA1"]
["HFV-2E3-100-1","2-way 1\" 300# flanged equal percentage valve, with CA1"]
["HFV-2E3-150-1","2-way 1-1/2\" 300# flanged equal percentage valve, with CA1"]
["HFV-2E3-200-1","2-way 2\" 300# flanged equal percentage valve, with CA1"]
["HFV-2E3-250-1","2-way 2-1/2\" 300# flanged equal percentage valve, with CA1"]
["HFV-2LN-050R-1","2-way 1/2\" NPT reduced port linear valve, with CA1"]
["HFV-2LN-050-1","2-way 1/2\" NPT linear valve, with CA1"]
["HFV-2LN-075-1","2-way 3/4\" NPT linear valve, with CA1"]
["HFV-2LN-100-1","2-way 1\" NPT linear valve, with CA1"]
["HFV-2LN-150-1","2-way 1-1/2\" NPT linear valve, with CA1"]
["HFV-2LN-200-1","2-way 2\" NPT linear valve, with CA1"]
["HFV-2L1-050R-1","2-way 1/2\" 150# flanged reduced port linear valve, with CA1"]
["HFV-2L1-050-1","2-way 1/2\" 150# flanged linear valve, with CA1"]
["HFV-2L1-075-1","2-way 3/4\" 150# flanged linear valve, with CA1"]
["HFV-2L1-100-1","2-way 1\" 150# flanged linear valve, with CA1"]
["HFV-2L1-150-1","2-way 1-1/2\" 150# flanged linear valve, with CA1"]
["HFV-2L1-200-1","2-way 2\" 150# flanged linear valve, with CA1"]
["HFV-2L1-250-1","2-way 2-1/2\" 150# flanged linear valve, with CA1"]
["HFV-2L3-050R-1","2-way 1/2\" 300# flanged reduced port linear valve, with CA1"]
["HFV-2L3-050-1","2-way 1/2\" 300# flanged linear valve, with CA1"]
["HFV-2L3-075-1","2-way 3/4\" 300# flanged linear valve, with CA1"]
["HFV-2L3-100-1","2-way 1\" 300# flanged linear valve, with CA1"]
["HFV-2L3-150-1","2-way 1-1/2\" 300# flanged linear valve, with CA1"]
["HFV-2L3-200-1","2-way 2\" 300# flanged linear valve, with CA1"]
["HFV-2L3-250-1","2-way 2-1/2\" 300# flanged linear valve, with CA1"]
["HFV-3LN-050-1","3-way 1/2\" NPT linear valve, with CA1"]
["HFV-3LN-075-1","3-way 3/4\" NPT linear valve, with CA1"]
["HFV-3LN-100-1","3-way 1\" NPT linear valve, with CA1"]
["HFV-3LN-150-1","3-way 1-1/2\" NPT linear valve, with CA1"]
["HFV-3LN-200-1","3-way 2\" NPT linear valve, with CA1"]
["HFV-3L1-050-1","3-way 1/2\" 150# flanged linear valve, with CA1"]
["HFV-3L1-075-1","3-way 3/4\" 150# flanged linear valve, with CA1"]
["HFV-3L1-100-1","3-way 1\" 150# flanged linear valve, with CA1"]
["HFV-3L1-150-1","3-way 1-1/2\" 150# flanged linear valve, with CA1"]
["HFV-3L1-200-1","3-way 2\" 150# flanged linear valve, with CA1"]
["HFV-3L1-250-1","3-way 2-1/2\" 150# flanged linear valve, with CA1"]
["HFV-3L3-050-1","3-way 1/2\" 300# flanged linear valve, with CA1"]
["HFV-3L3-075-1","3-way 3/4\" 300# flanged linear valve, with CA1"]
["HFV-3L3-100-1","3-way 1\" 300# flanged linear valve, with CA1"]
["HFV-3L3-150-1","3-way 1-1/2\" 300# flanged linear valve, with CA1"]
["HFV-3L3-200-1","3-way 2\" 300# flanged linear valve, with CA1"]
["HFV-3L3-250-1","3-way 2-1/2\" 300# flanged linear valve, with CA1"]
["HFV-2EN-050R-2","2-way 1/2\" NPT reduced port equal percentage valve, with CA2"]
["HFV-2EN-050-2","2-way 1/2\" NPT equal percentage valve, with CA2"]
["HFV-2EN-075-2","2-way 3/4\" NPT equal percentage valve, with CA2"]
["HFV-2EN-100-2","2-way 1\" NPT equal percentage valve, with CA2"]
["HFV-2EN-150-2","2-way 1-1/2\" NPT equal percentage valve, with CA2"]
["HFV-2EN-200-2","2-way 2\" NPT equal percentage valve, with CA2"]
["HFV-2E1-050R-2","2-way 1/2\" 150# flanged reduced port equal percentage valve, with CA2"]
["HFV-2E1-050-2","2-way 1/2\" 150# flanged equal percentage valve, with CA2"]
["HFV-2E1-075-2","2-way 3/4\" 150# flanged equal percentage valve, with CA2"]
["HFV-2E1-100-2","2-way 1\" 150# flanged equal percentage valve, with CA2"]
["HFV-2E1-150-2","2-way 1-1/2\" 150# flanged equal percentage valve, with CA2"]
["HFV-2E1-200-2","2-way 2\" 150# flanged equal percentage valve, with CA2"]
["HFV-2E1-250-2","2-way 2-1/2\" 150# flanged equal percentage valve, with CA2"]
["HFV-2E3-050R-2","2-way 1/2\" 300# flanged reduced port equal percentage valve, with CA2"]
["HFV-2E3-050-2","2-way 1/2\" 300# flanged equal percentage valve, with CA2"]
["HFV-2E3-075-2","2-way 3/4\" 300# flanged equal percentage valve, with CA2"]
["HFV-2E3-100-2","2-way 1\" 300# flanged equal percentage valve, with CA2"]
["HFV-2E3-150-2","2-way 1-1/2\" 300# flanged equal percentage valve, with CA2"]
["HFV-2E3-200-2","2-way 2\" 300# flanged equal percentage valve, with CA2"]
["HFV-2E3-250-2","2-way 2-1/2\" 300# flanged equal percentage valve, with CA2"]
["HFV-2LN-050R-2","2-way 1/2\" NPT reduced port linear valve, with CA2"]
["HFV-2LN-050-2","2-way 1/2\" NPT linear valve, with CA2"]
["HFV-2LN-075-2","2-way 3/4\" NPT linear valve, with CA2"]
["HFV-2LN-100-2","2-way 1\" NPT linear valve, with CA2"]
["HFV-2LN-150-2","2-way 1-1/2\" NPT linear valve, with CA2"]
["HFV-2LN-200-2","2-way 2\" NPT linear valve, with CA2"]
["HFV-2L1-050R-2","2-way 1/2\" 150# flanged reduced port linear valve, with CA2"]
["HFV-2L1-050-2","2-way 1/2\" 150# flanged linear valve, with CA2"]
["HFV-2L1-075-2","2-way 3/4\" 150# flanged linear valve, with CA2"]
["HFV-2L1-100-2","2-way 1\" 150# flanged linear valve, with CA2"]
["HFV-2L1-150-2","2-way 1-1/2\" 150# flanged linear valve, with CA2"]
["HFV-2L1-200-2","2-way 2\" 150# flanged linear valve, with CA2"]
["HFV-2L1-250-2","2-way 2-1/2\" 150# flanged linear valve, with CA2"]
["HFV-2L3-050R-2","2-way 1/2\" 300# flanged reduced port linear valve, with CA2"]
["HFV-2L3-050-2","2-way 1/2\" 300# flanged linear valve, with CA2"]
["HFV-2L3-075-2","2-way 3/4\" 300# flanged linear valve, with CA2"]
["HFV-2L3-100-2","2-way 1\" 300# flanged linear valve, with CA2"]
["HFV-2L3-150-2","2-way 1-1/2\" 300# flanged linear valve, with CA2"]
["HFV-2L3-200-2","2-way 2\" 300# flanged linear valve, with CA2"]
["HFV-2L3-250-2","2-way 2-1/2\" 300# flanged linear valve, with CA2"]
["HFV-3LN-050-2","3-way 1/2\" NPT linear valve, with CA2"]
["HFV-3LN-075-2","3-way 3/4\" NPT linear valve, with CA2"]
["HFV-3LN-100-2","3-way 1\" NPT linear valve, with CA2"]
["HFV-3LN-150-2","3-way 1-1/2\" NPT linear valve, with CA2"]
["HFV-3LN-200-2","3-way 2\" NPT linear valve, with CA2"]
["HFV-3L1-050-2","3-way 1/2\" 150# flanged linear valve, with CA2"]
["HFV-3L1-075-2","3-way 3/4\" 150# flanged linear valve, with CA2"]
["HFV-3L1-100-2","3-way 1\" 150# flanged linear valve, with CA2"]
["HFV-3L1-150-2","3-way 1-1/2\" 150# flanged linear valve, with CA2"]
["HFV-3L1-200-2","3-way 2\" 150# flanged linear valve, with CA2"]
["HFV-3L1-250-2","3-way 2-1/2\" 150# flanged linear valve, with CA2"]
["HFV-3L3-050-2","3-way 1/2\" 300# flanged linear valve, with CA2"]
["HFV-3L3-075-2","3-way 3/4\" 300# flanged linear valve, with CA2"]
["HFV-3L3-100-2","3-way 1\" 300# flanged linear valve, with CA2"]
["HFV-3L3-150-2","3-way 1-1/2\" 300# flanged linear valve, with CA2"]
["HFV-3L3-200-2","3-way 2\" 300# flanged linear valve, with CA2"]
["HFV-3L3-250-2","3-way 2-1/2\" 300# flanged linear valve, with CA2"]
["HFV-2EN-050R-3","2-way 1/2\" NPT reduced port equal percentage valve, with CA3"]
["HFV-2EN-050-3","2-way 1/2\" NPT equal percentage valve, with CA3"]
["HFV-2EN-075-3","2-way 3/4\" NPT equal percentage valve, with CA3"]
["HFV-2EN-100-3","2-way 1\" NPT equal percentage valve, with CA3"]
["HFV-2EN-150-3","2-way 1-1/2\" NPT equal percentage valve, with CA3"]
["HFV-2EN-200-3","2-way 2\" NPT equal percentage valve, with CA3"]
["HFV-2E1-050R-3","2-way 1/2\" 150# flanged reduced port equal percentage valve, with CA3"]
["HFV-2E1-050-3","2-way 1/2\" 150# flanged equal percentage valve, with CA3"]
["HFV-2E1-075-3","2-way 3/4\" 150# flanged equal percentage valve, with CA3"]
["HFV-2E1-100-3","2-way 1\" 150# flanged equal percentage valve, with CA3"]
["HFV-2E1-150-3","2-way 1-1/2\" 150# flanged equal percentage valve, with CA3"]
["HFV-2E1-200-3","2-way 2\" 150# flanged equal percentage valve, with CA3"]
["HFV-2E1-250-3","2-way 2-1/2\" 150# flanged equal percentage valve, with CA3"]
["HFV-2E3-050R-3","2-way 1/2\" 300# flanged reduced port equal percentage valve, with CA3"]
["HFV-2E3-050-3","2-way 1/2\" 300# flanged equal percentage valve, with CA3"]
["HFV-2E3-075-3","2-way 3/4\" 300# flanged equal percentage valve, with CA3"]
["HFV-2E3-100-3","2-way 1\" 300# flanged equal percentage valve, with CA3"]
["HFV-2E3-150-3","2-way 1-1/2\" 300# flanged equal percentage valve, with CA3"]
["HFV-2E3-200-3","2-way 2\" 300# flanged equal percentage valve, with CA3"]
["HFV-2E3-250-3","2-way 2-1/2\" 300# flanged equal percentage valve, with CA3"]
["HFV-2LN-050R-3","2-way 1/2\" NPT reduced port linear valve, with CA3"]
["HFV-2LN-050-3","2-way 1/2\" NPT linear valve, with CA3"]
["HFV-2LN-075-3","2-way 3/4\" NPT linear valve, with CA3"]
["HFV-2LN-100-3","2-way 1\" NPT linear valve, with CA3"]
["HFV-2LN-150-3","2-way 1-1/2\" NPT linear valve, with CA3"]
["HFV-2LN-200-3","2-way 2\" NPT linear valve, with CA3"]
["HFV-2L1-050R-3","2-way 1/2\" 150# flanged reduced port linear valve, with CA3"]
["HFV-2L1-050-3","2-way 1/2\" 150# flanged linear valve, with CA3"]
["HFV-2L1-075-3","2-way 3/4\" 150# flanged linear valve, with CA3"]
["HFV-2L1-100-3","2-way 1\" 150# flanged linear valve, with CA3"]
["HFV-2L1-150-3","2-way 1-1/2\" 150# flanged linear valve, with CA3"]
["HFV-2L1-200-3","2-way 2\" 150# flanged linear valve, with CA3"]
["HFV-2L1-250-3","2-way 2-1/2\" 150# flanged linear valve, with CA3"]
["HFV-2L3-050R-3","2-way 1/2\" 300# flanged reduced port linear valve, with CA3"]
["HFV-2L3-050-3","2-way 1/2\" 300# flanged linear valve, with CA3"]
["HFV-2L3-075-3","2-way 3/4\" 300# flanged linear valve, with CA3"]
["HFV-2L3-100-3","2-way 1\" 300# flanged linear valve, with CA3"]
["HFV-2L3-150-3","2-way 1-1/2\" 300# flanged linear valve, with CA3"]
["HFV-2L3-200-3","2-way 2\" 300# flanged linear valve, with CA3"]
["HFV-2L3-250-3","2-way 2-1/2\" 300# flanged linear valve, with CA3"]
["HFV-3LN-050-3","3-way 1/2\" NPT linear valve, with CA3"]
["HFV-3LN-075-3","3-way 3/4\" NPT linear valve, with CA3"]
["HFV-3LN-100-3","3-way 1\" NPT linear valve, with CA3"]
["HFV-3LN-150-3","3-way 1-1/2\" NPT linear valve, with CA3"]
["HFV-3LN-200-3","3-way 2\" NPT linear valve, with CA3"]
["HFV-3L1-050-3","3-way 1/2\" 150# flanged linear valve, with CA3"]
["HFV-3L1-075-3","3-way 3/4\" 150# flanged linear valve, with CA3"]
["HFV-3L1-100-3","3-way 1\" 150# flanged linear valve, with CA3"]
["HFV-3L1-150-3","3-way 1-1/2\" 150# flanged linear valve, with CA3"]
["HFV-3L1-200-3","3-way 2\" 150# flanged linear valve, with CA3"]
["HFV-3L1-250-3","3-way 2-1/2\" 150# flanged linear valve, with CA3"]
["HFV-3L3-050-3","3-way 1/2\" 300# flanged linear valve, with CA3"]
["HFV-3L3-075-3","3-way 3/4\" 300# flanged linear valve, with CA3"]
["HFV-3L3-100-3","3-way 1\" 300# flanged linear valve, with CA3"]
["HFV-3L3-150-3","3-way 1-1/2\" 300# flanged linear valve, with CA3"]
["HFV-3L3-200-3","3-way 2\" 300# flanged linear valve, with CA3"]
["HFV-3L3-250-3","3-way 2-1/2\" 300# flanged linear valve, with CA3"]
["HFV-2EN-050R-X-WO","2-way 1/2\" NPT reduced port equal percentage valve, without SKx adapters"]
["HFV-2EN-050-X-WO","2-way 1/2\" NPT equal percentage valve, without SKx adapters"]
["HFV-2EN-075-X-WO","2-way 3/4\" NPT equal percentage valve, without SKx adapters"]
["HFV-2EN-100-X-WO","2-way 1\" NPT equal percentage valve, without SKx adapters"]
["HFV-2EN-150-X-WO","2-way 1-1/2\" NPT equal percentage valve, without SKx adapters"]
["HFV-2EN-200-X-WO","2-way 2\" NPT equal percentage valve, without SKx adapters"]
["HFV-2E1-050R-X-WO","2-way 1/2\" 150# flanged reduced port equal percentage valve, without SKx adapters"]
["HFV-2E1-050-X-WO","2-way 1/2\" 150# flanged equal percentage valve, without SKx adapters"]
["HFV-2E1-075-X-WO","2-way 3/4\" 150# flanged equal percentage valve, without SKx adapters"]
["HFV-2E1-100-X-WO","2-way 1\" 150# flanged equal percentage valve, without SKx adapters"]
["HFV-2E1-150-X-WO","2-way 1-1/2\" 150# flanged equal percentage valve, without SKx adapters"]
["HFV-2E1-200-X-WO","2-way 2\" 150# flanged equal percentage valve, without SKx adapters"]
["HFV-2E1-250-X-WO","2-way 2-1/2\" 150# flanged equal percentage valve, without SKx adapters"]
["HFV-2E1-300-X-WO","2-way 3\" 150# flanged equal percentage valve, without SKx adapters"]
["HFV-2E1-400-X-WO","2-way 4\" 150# flanged equal percentage valve, without SKx adapters"]
["HFV-2E3-050R-X-WO","2-way 1/2\" 300# flanged reduced port equal percentage valve, without SKx adapters"]
["HFV-2E3-050-X-WO","2-way 1/2\" 300# flanged equal percentage valve, without SKx adapters"]
["HFV-2E3-075-X-WO","2-way 3/4\" 300# flanged equal percentage valve, without SKx adapters"]
["HFV-2E3-100-X-WO","2-way 1\" 300# flanged equal percentage valve, without SKx adapters"]
["HFV-2E3-150-X-WO","2-way 1-1/2\" 300# flanged equal percentage valve, without SKx adapters"]
["HFV-2E3-200-X-WO","2-way 2\" 300# flanged equal percentage valve, without SKx adapters"]
["HFV-2E3-250-X-WO","2-way 2-1/2\" 300# flanged equal percentage valve, without SKx adapters"]
["HFV-2E3-300-X-WO","2-way 3\" 300# flanged equal percentage valve, without SKx adapters"]
["HFV-2E3-400-X-WO","2-way 4\" 300# flanged equal percentage valve, without SKx adapters"]
["HFV-2LN-050R-X-WO","2-way 1/2\" NPT reduced port linear valve, without SKx adapters"]
["HFV-2LN-050-X-WO","2-way 1/2\" NPT linear valve, without SKx adapters"]
["HFV-2LN-075-X-WO","2-way 3/4\" NPT linear valve, without SKx adapters"]
["HFV-2LN-100-X-WO","2-way 1\" NPT linear valve, without SKx adapters"]
["HFV-2LN-150-X-WO","2-way 1-1/2\" NPT linear valve, without SKx adapters"]
["HFV-2LN-200-X-WO","2-way 2\" NPT linear valve, without SKx adapters"]
["HFV-2L1-050R-X-WO","2-way 1/2\" 150# flanged reduced port linear valve, without SKx adapters"]
["HFV-2L1-050-X-WO","2-way 1/2\" 150# flanged linear valve, without SKx adapters"]
["HFV-2L1-075-X-WO","2-way 3/4\" 150# flanged linear valve, without SKx adapters"]
["HFV-2L1-100-X-WO","2-way 1\" 150# flanged linear valve, without SKx adapters"]
["HFV-2L1-150-X-WO","2-way 1-1/2\" 150# flanged linear valve, without SKx adapters"]
["HFV-2L1-200-X-WO","2-way 2\" 150# flanged linear valve, without SKx adapters"]
["HFV-2L1-250-X-WO","2-way 2-1/2\" 150# flanged linear valve, without SKx adapters"]
["HFV-2L1-300-X-WO","2-way 3\" 150# flanged linear valve, without SKx adapters"]
["HFV-2L1-400-X-WO","2-way 4\" 150# flanged linear valve, without SKx adapters"]
["HFV-2L3-050R-X-WO","2-way 1/2\" 300# flanged reduced port linear valve, without SKx adapters"]
["HFV-2L3-050-X-WO","2-way 1/2\" 300# flanged linear valve, without SKx adapters"]
["HFV-2L3-075-X-WO","2-way 3/4\" 300# flanged linear valve, without SKx adapters"]
["HFV-2L3-100-X-WO","2-way 1\" 300# flanged linear valve, without SKx adapters"]
["HFV-2L3-150-X-WO","2-way 1-1/2\" 300# flanged linear valve, without SKx adapters"]
["HFV-2L3-200-X-WO","2-way 2\" 300# flanged linear valve, without SKx adapters"]
["HFV-2L3-250-X-WO","2-way 2-1/2\" 300# flanged linear valve, without SKx adapters"]
["HFV-2L3-300-X-WO","2-way 3\" 300# flanged linear valve, without SKx adapters"]
["HFV-2L3-400-X-WO","2-way 4\" 300# flanged linear valve, without SKx adapters"]
["HFV-3LN-050-X-WO","3-way 1/2\" NPT linear valve, without SKx adapters"]
["HFV-3LN-075-X-WO","3-way 3/4\" NPT linear valve, without SKx adapters"]
["HFV-3LN-100-X-WO","3-way 1\" NPT linear valve, without SKx adapters"]
["HFV-3LN-150-X-WO","3-way 1-1/2\" NPT linear valve, without SKx adapters"]
["HFV-3LN-200-X-WO","3-way 2\" NPT linear valve, without SKx adapters"]
["HFV-3L1-050-X-WO","3-way 1/2\" 150# flanged linear valve, without SKx adapters"]
["HFV-3L1-075-X-WO","3-way 3/4\" 150# flanged linear valve, without SKx adapters"]
["HFV-3L1-100-X-WO","3-way 1\" 150# flanged linear valve, without SKx adapters"]
["HFV-3L1-150-X-WO","3-way 1-1/2\" 150# flanged linear valve, without SKx adapters"]
["HFV-3L1-200-X-WO","3-way 2\" 150# flanged linear valve, without SKx adapters"]
["HFV-3L1-250-X-WO","3-way 2-1/2\" 150# flanged linear valve, without SKx adapters"]
["HFV-3L1-300-X-WO","3-way 3\" 150# flanged linear valve, without SKx adapters"]
["HFV-3L1-400-X-WO","3-way 4\" 150# flanged linear valve, without SKx adapters"]
["HFV-3L3-050-X-WO","3-way 1/2\" 300# flanged linear valve, without SKx adapters"]
["HFV-3L3-075-X-WO","3-way 3/4\" 300# flanged linear valve, without SKx adapters"]
["HFV-3L3-100-X-WO","3-way 1\" 300# flanged linear valve, without SKx adapters"]
["HFV-3L3-150-X-WO","3-way 1-1/2\" 300# flanged linear valve, without SKx adapters"]
["HFV-3L3-200-X-WO","3-way 2\" 300# flanged linear valve, without SKx adapters"]
["HFV-3L3-250-X-WO","3-way 2-1/2\" 300# flanged linear valve, without SKx adapters"]
["HFV-3L3-300-X-WO","3-way 3\" 300# flanged linear valve, without SKx adapters"]
["HFV-3L3-400-X-WO","3-way 4\" 300# flanged linear valve, without SKx adapters"]
["HFV-2EN-050R-1-WO","2-way 1/2\" NPT reduced port equal percentage valve, without SKx adapters, with CA1"]
["HFV-2EN-050-1-WO","2-way 1/2\" NPT equal percentage valve, without SKx adapters, with CA1"]
["HFV-2EN-075-1-WO","2-way 3/4\" NPT equal percentage valve, without SKx adapters, with CA1"]
["HFV-2EN-100-1-WO","2-way 1\" NPT equal percentage valve, without SKx adapters, with CA1"]
["HFV-2EN-150-1-WO","2-way 1-1/2\" NPT equal percentage valve, without SKx adapters, with CA1"]
["HFV-2EN-200-1-WO","2-way 2\" NPT equal percentage valve, without SKx adapters, with CA1"]
["HFV-2E1-050R-1-WO","2-way 1/2\" 150# flanged reduced port equal percentage valve, without SKx adapters, with CA1"]
["HFV-2E1-050-1-WO","2-way 1/2\" 150# flanged equal percentage valve, without SKx adapters, with CA1"]
["HFV-2E1-075-1-WO","2-way 3/4\" 150# flanged equal percentage valve, without SKx adapters, with CA1"]
["HFV-2E1-100-1-WO","2-way 1\" 150# flanged equal percentage valve, without SKx adapters, with CA1"]
["HFV-2E1-150-1-WO","2-way 1-1/2\" 150# flanged equal percentage valve, without SKx adapters, with CA1"]
["HFV-2E1-200-1-WO","2-way 2\" 150# flanged equal percentage valve, without SKx adapters, with CA1"]
["HFV-2E1-250-1-WO","2-way 2-1/2\" 150# flanged equal percentage valve, without SKx adapters, with CA1"]
["HFV-2E3-050R-1-WO","2-way 1/2\" 300# flanged reduced port equal percentage valve, without SKx adapters, with CA1"]
["HFV-2E3-050-1-WO","2-way 1/2\" 300# flanged equal percentage valve, without SKx adapters, with CA1"]
["HFV-2E3-075-1-WO","2-way 3/4\" 300# flanged equal percentage valve, without SKx adapters, with CA1"]
["HFV-2E3-100-1-WO","2-way 1\" 300# flanged equal percentage valve, without SKx adapters, with CA1"]
["HFV-2E3-150-1-WO","2-way 1-1/2\" 300# flanged equal percentage valve, without SKx adapters, with CA1"]
["HFV-2E3-200-1-WO","2-way 2\" 300# flanged equal percentage valve, without SKx adapters, with CA1"]
["HFV-2E3-250-1-WO","2-way 2-1/2\" 300# flanged equal percentage valve, without SKx adapters, with CA1"]
["HFV-2LN-050R-1-WO","2-way 1/2\" NPT reduced port linear valve, without SKx adapters, with CA1"]
["HFV-2LN-050-1-WO","2-way 1/2\" NPT linear valve, without SKx adapters, with CA1"]
["HFV-2LN-075-1-WO","2-way 3/4\" NPT linear valve, without SKx adapters, with CA1"]
["HFV-2LN-100-1-WO","2-way 1\" NPT linear valve, without SKx adapters, with CA1"]
["HFV-2LN-150-1-WO","2-way 1-1/2\" NPT linear valve, without SKx adapters, with CA1"]
["HFV-2LN-200-1-WO","2-way 2\" NPT linear valve, without SKx adapters, with CA1"]
["HFV-2L1-050R-1-WO","2-way 1/2\" 150# flanged reduced port linear valve, without SKx adapters, with CA1"]
["HFV-2L1-050-1-WO","2-way 1/2\" 150# flanged linear valve, without SKx adapters, with CA1"]
["HFV-2L1-075-1-WO","2-way 3/4\" 150# flanged linear valve, without SKx adapters, with CA1"]
["HFV-2L1-100-1-WO","2-way 1\" 150# flanged linear valve, without SKx adapters, with CA1"]
["HFV-2L1-150-1-WO","2-way 1-1/2\" 150# flanged linear valve, without SKx adapters, with CA1"]
["HFV-2L1-200-1-WO","2-way 2\" 150# flanged linear valve, without SKx adapters, with CA1"]
["HFV-2L1-250-1-WO","2-way 2-1/2\" 150# flanged linear valve, without SKx adapters, with CA1"]
["HFV-2L3-050R-1-WO","2-way 1/2\" 300# flanged reduced port linear valve, without SKx adapters, with CA1"]
["HFV-2L3-050-1-WO","2-way 1/2\" 300# flanged linear valve, without SKx adapters, with CA1"]
["HFV-2L3-075-1-WO","2-way 3/4\" 300# flanged linear valve, without SKx adapters, with CA1"]
["HFV-2L3-100-1-WO","2-way 1\" 300# flanged linear valve, without SKx adapters, with CA1"]
["HFV-2L3-150-1-WO","2-way 1-1/2\" 300# flanged linear valve, without SKx adapters, with CA1"]
["HFV-2L3-200-1-WO","2-way 2\" 300# flanged linear valve, without SKx adapters, with CA1"]
["HFV-2L3-250-1-WO","2-way 2-1/2\" 300# flanged linear valve, without SKx adapters, with CA1"]
["HFV-3LN-050-1-WO","3-way 1/2\" NPT linear valve, without SKx adapters, with CA1"]
["HFV-3LN-075-1-WO","3-way 3/4\" NPT linear valve, without SKx adapters, with CA1"]
["HFV-3LN-100-1-WO","3-way 1\" NPT linear valve, without SKx adapters, with CA1"]
["HFV-3LN-150-1-WO","3-way 1-1/2\" NPT linear valve, without SKx adapters, with CA1"]
["HFV-3LN-200-1-WO","3-way 2\" NPT linear valve, without SKx adapters, with CA1"]
["HFV-3L1-050-1-WO","3-way 1/2\" 150# flanged linear valve, without SKx adapters, with CA1"]
["HFV-3L1-075-1-WO","3-way 3/4\" 150# flanged linear valve, without SKx adapters, with CA1"]
["HFV-3L1-100-1-WO","3-way 1\" 150# flanged linear valve, without SKx adapters, with CA1"]
["HFV-3L1-150-1-WO","3-way 1-1/2\" 150# flanged linear valve, without SKx adapters, with CA1"]
["HFV-3L1-200-1-WO","3-way 2\" 150# flanged linear valve, without SKx adapters, with CA1"]
["HFV-3L1-250-1-WO","3-way 2-1/2\" 150# flanged linear valve, without SKx adapters, with CA1"]
["HFV-3L3-050-1-WO","3-way 1/2\" 300# flanged linear valve, without SKx adapters, with CA1"]
["HFV-3L3-075-1-WO","3-way 3/4\" 300# flanged linear valve, without SKx adapters, with CA1"]
["HFV-3L3-100-1-WO","3-way 1\" 300# flanged linear valve, without SKx adapters, with CA1"]
["HFV-3L3-150-1-WO","3-way 1-1/2\" 300# flanged linear valve, without SKx adapters, with CA1"]
["HFV-3L3-200-1-WO","3-way 2\" 300# flanged linear valve, without SKx adapters, with CA1"]
["HFV-3L3-250-1-WO","3-way 2-1/2\" 300# flanged linear valve, without SKx adapters, with CA1"]
["HFV-2EN-050R-2-WO","2-way 1/2\" NPT reduced port equal percentage valve, without SKx adapters, with CA2"]
["HFV-2EN-050-2-WO","2-way 1/2\" NPT equal percentage valve, without SKx adapters, with CA2"]
["HFV-2EN-075-2-WO","2-way 3/4\" NPT equal percentage valve, without SKx adapters, with CA2"]
["HFV-2EN-100-2-WO","2-way 1\" NPT equal percentage valve, without SKx adapters, with CA2"]
["HFV-2EN-150-2-WO","2-way 1-1/2\" NPT equal percentage valve, without SKx adapters, with CA2"]
["HFV-2EN-200-2-WO","2-way 2\" NPT equal percentage valve, without SKx adapters, with CA2"]
["HFV-2E1-050R-2-WO","2-way 1/2\" 150# flanged reduced port equal percentage valve, without SKx adapters, with CA2"]
["HFV-2E1-050-2-WO","2-way 1/2\" 150# flanged equal percentage valve, without SKx adapters, with CA2"]
["HFV-2E1-075-2-WO","2-way 3/4\" 150# flanged equal percentage valve, without SKx adapters, with CA2"]
["HFV-2E1-100-2-WO","2-way 1\" 150# flanged equal percentage valve, without SKx adapters, with CA2"]
["HFV-2E1-150-2-WO","2-way 1-1/2\" 150# flanged equal percentage valve, without SKx adapters, with CA2"]
["HFV-2E1-200-2-WO","2-way 2\" 150# flanged equal percentage valve, without SKx adapters, with CA2"]
["HFV-2E1-250-2-WO","2-way 2-1/2\" 150# flanged equal percentage valve, without SKx adapters, with CA2"]
["HFV-2E3-050R-2-WO","2-way 1/2\" 300# flanged reduced port equal percentage valve, without SKx adapters, with CA2"]
["HFV-2E3-050-2-WO","2-way 1/2\" 300# flanged equal percentage valve, without SKx adapters, with CA2"]
["HFV-2E3-075-2-WO","2-way 3/4\" 300# flanged equal percentage valve, without SKx adapters, with CA2"]
["HFV-2E3-100-2-WO","2-way 1\" 300# flanged equal percentage valve, without SKx adapters, with CA2"]
["HFV-2E3-150-2-WO","2-way 1-1/2\" 300# flanged equal percentage valve, without SKx adapters, with CA2"]
["HFV-2E3-200-2-WO","2-way 2\" 300# flanged equal percentage valve, without SKx adapters, with CA2"]
["HFV-2E3-250-2-WO","2-way 2-1/2\" 300# flanged equal percentage valve, without SKx adapters, with CA2"]
["HFV-2LN-050R-2-WO","2-way 1/2\" NPT reduced port linear valve, without SKx adapters, with CA2"]
["HFV-2LN-050-2-WO","2-way 1/2\" NPT linear valve, without SKx adapters, with CA2"]
["HFV-2LN-075-2-WO","2-way 3/4\" NPT linear valve, without SKx adapters, with CA2"]
["HFV-2LN-100-2-WO","2-way 1\" NPT linear valve, without SKx adapters, with CA2"]
["HFV-2LN-150-2-WO","2-way 1-1/2\" NPT linear valve, without SKx adapters, with CA2"]
["HFV-2LN-200-2-WO","2-way 2\" NPT linear valve, without SKx adapters, with CA2"]
["HFV-2L1-050R-2-WO","2-way 1/2\" 150# flanged reduced port linear valve, without SKx adapters, with CA2"]
["HFV-2L1-050-2-WO","2-way 1/2\" 150# flanged linear valve, without SKx adapters, with CA2"]
["HFV-2L1-075-2-WO","2-way 3/4\" 150# flanged linear valve, without SKx adapters, with CA2"]
["HFV-2L1-100-2-WO","2-way 1\" 150# flanged linear valve, without SKx adapters, with CA2"]
["HFV-2L1-150-2-WO","2-way 1-1/2\" 150# flanged linear valve, without SKx adapters, with CA2"]
["HFV-2L1-200-2-WO","2-way 2\" 150# flanged linear valve, without SKx adapters, with CA2"]
["HFV-2L1-250-2-WO","2-way 2-1/2\" 150# flanged linear valve, without SKx adapters, with CA2"]
["HFV-2L3-050R-2-WO","2-way 1/2\" 300# flanged reduced port linear valve, without SKx adapters, with CA2"]
["HFV-2L3-050-2-WO","2-way 1/2\" 300# flanged linear valve, without SKx adapters, with CA2"]
["HFV-2L3-075-2-WO","2-way 3/4\" 300# flanged linear valve, without SKx adapters, with CA2"]
["HFV-2L3-100-2-WO","2-way 1\" 300# flanged linear valve, without SKx adapters, with CA2"]
["HFV-2L3-150-2-WO","2-way 1-1/2\" 300# flanged linear valve, without SKx adapters, with CA2"]
["HFV-2L3-200-2-WO","2-way 2\" 300# flanged linear valve, without SKx adapters, with CA2"]
["HFV-2L3-250-2-WO","2-way 2-1/2\" 300# flanged linear valve, without SKx adapters, with CA2"]
["HFV-3LN-050-2-WO","3-way 1/2\" NPT linear valve, without SKx adapters, with CA2"]
["HFV-3LN-075-2-WO","3-way 3/4\" NPT linear valve, without SKx adapters, with CA2"]
["HFV-3LN-100-2-WO","3-way 1\" NPT linear valve, without SKx adapters, with CA2"]
["HFV-3LN-150-2-WO","3-way 1-1/2\" NPT linear valve, without SKx adapters, with CA2"]
["HFV-3LN-200-2-WO","3-way 2\" NPT linear valve, without SKx adapters, with CA2"]
["HFV-3L1-050-2-WO","3-way 1/2\" 150# flanged linear valve, without SKx adapters, with CA2"]
["HFV-3L1-075-2-WO","3-way 3/4\" 150# flanged linear valve, without SKx adapters, with CA2"]
["HFV-3L1-100-2-WO","3-way 1\" 150# flanged linear valve, without SKx adapters, with CA2"]
["HFV-3L1-150-2-WO","3-way 1-1/2\" 150# flanged linear valve, without SKx adapters, with CA2"]
["HFV-3L1-200-2-WO","3-way 2\" 150# flanged linear valve, without SKx adapters, with CA2"]
["HFV-3L1-250-2-WO","3-way 2-1/2\" 150# flanged linear valve, without SKx adapters, with CA2"]
["HFV-3L3-050-2-WO","3-way 1/2\" 300# flanged linear valve, without SKx adapters, with CA2"]
["HFV-3L3-075-2-WO","3-way 3/4\" 300# flanged linear valve, without SKx adapters, with CA2"]
["HFV-3L3-100-2-WO","3-way 1\" 300# flanged linear valve, without SKx adapters, with CA2"]
["HFV-3L3-150-2-WO","3-way 1-1/2\" 300# flanged linear valve, without SKx adapters, with CA2"]
["HFV-3L3-200-2-WO","3-way 2\" 300# flanged linear valve, without SKx adapters, with CA2"]
["HFV-3L3-250-2-WO","3-way 2-1/2\" 300# flanged linear valve, without SKx adapters, with CA2"]
["HFV-2EN-050R-3-WO","2-way 1/2\" NPT reduced port equal percentage valve, without SKx adapters, with CA3"]
["HFV-2EN-050-3-WO","2-way 1/2\" NPT equal percentage valve, without SKx adapters, with CA3"]
["HFV-2EN-075-3-WO","2-way 3/4\" NPT equal percentage valve, without SKx adapters, with CA3"]
["HFV-2EN-100-3-WO","2-way 1\" NPT equal percentage valve, without SKx adapters, with CA3"]
["HFV-2EN-150-3-WO","2-way 1-1/2\" NPT equal percentage valve, without SKx adapters, with CA3"]
["HFV-2EN-200-3-WO","2-way 2\" NPT equal percentage valve, without SKx adapters, with CA3"]
["HFV-2E1-050R-3-WO","2-way 1/2\" 150# flanged reduced port equal percentage valve, without SKx adapters, with CA3"]
["HFV-2E1-050-3-WO","2-way 1/2\" 150# flanged equal percentage valve, without SKx adapters, with CA3"]
["HFV-2E1-075-3-WO","2-way 3/4\" 150# flanged equal percentage valve, without SKx adapters, with CA3"]
["HFV-2E1-100-3-WO","2-way 1\" 150# flanged equal percentage valve, without SKx adapters, with CA3"]
["HFV-2E1-150-3-WO","2-way 1-1/2\" 150# flanged equal percentage valve, without SKx adapters, with CA3"]
["HFV-2E1-200-3-WO","2-way 2\" 150# flanged equal percentage valve, without SKx adapters, with CA3"]
["HFV-2E1-250-3-WO","2-way 2-1/2\" 150# flanged equal percentage valve, without SKx adapters, with CA3"]
["HFV-2E3-050R-3-WO","2-way 1/2\" 300# flanged reduced port equal percentage valve, without SKx adapters, with CA3"]
["HFV-2E3-050-3-WO","2-way 1/2\" 300# flanged equal percentage valve, without SKx adapters, with CA3"]
["HFV-2E3-075-3-WO","2-way 3/4\" 300# flanged equal percentage valve, without SKx adapters, with CA3"]
["HFV-2E3-100-3-WO","2-way 1\" 300# flanged equal percentage valve, without SKx adapters, with CA3"]
["HFV-2E3-150-3-WO","2-way 1-1/2\" 300# flanged equal percentage valve, without SKx adapters, with CA3"]
["HFV-2E3-200-3-WO","2-way 2\" 300# flanged equal percentage valve, without SKx adapters, with CA3"]
["HFV-2E3-250-3-WO","2-way 2-1/2\" 300# flanged equal percentage valve, without SKx adapters, with CA3"]
["HFV-2LN-050R-3-WO","2-way 1/2\" NPT reduced port linear valve, without SKx adapters, with CA3"]
["HFV-2LN-050-3-WO","2-way 1/2\" NPT linear valve, without SKx adapters, with CA3"]
["HFV-2LN-075-3-WO","2-way 3/4\" NPT linear valve, without SKx adapters, with CA3"]
["HFV-2LN-100-3-WO","2-way 1\" NPT linear valve, without SKx adapters, with CA3"]
["HFV-2LN-150-3-WO","2-way 1-1/2\" NPT linear valve, without SKx adapters, with CA3"]
["HFV-2LN-200-3-WO","2-way 2\" NPT linear valve, without SKx adapters, with CA3"]
["HFV-2L1-050R-3-WO","2-way 1/2\" 150# flanged reduced port linear valve, without SKx adapters, with CA3"]
["HFV-2L1-050-3-WO","2-way 1/2\" 150# flanged linear valve, without SKx adapters, with CA3"]
["HFV-2L1-075-3-WO","2-way 3/4\" 150# flanged linear valve, without SKx adapters, with CA3"]
["HFV-2L1-100-3-WO","2-way 1\" 150# flanged linear valve, without SKx adapters, with CA3"]
["HFV-2L1-150-3-WO","2-way 1-1/2\" 150# flanged linear valve, without SKx adapters, with CA3"]
["HFV-2L1-200-3-WO","2-way 2\" 150# flanged linear valve, without SKx adapters, with CA3"]
["HFV-2L1-250-3-WO","2-way 2-1/2\" 150# flanged linear valve, without SKx adapters, with CA3"]
["HFV-2L3-050R-3-WO","2-way 1/2\" 300# flanged reduced port linear valve, without SKx adapters, with CA3"]
["HFV-2L3-050-3-WO","2-way 1/2\" 300# flanged linear valve, without SKx adapters, with CA3"]
["HFV-2L3-075-3-WO","2-way 3/4\" 300# flanged linear valve, without SKx adapters, with CA3"]
["HFV-2L3-100-3-WO","2-way 1\" 300# flanged linear valve, without SKx adapters, with CA3"]
["HFV-2L3-150-3-WO","2-way 1-1/2\" 300# flanged linear valve, without SKx adapters, with CA3"]
["HFV-2L3-200-3-WO","2-way 2\" 300# flanged linear valve, without SKx adapters, with CA3"]
["HFV-2L3-250-3-WO","2-way 2-1/2\" 300# flanged linear valve, without SKx adapters, with CA3"]
["HFV-3LN-050-3-WO","3-way 1/2\" NPT linear valve, without SKx adapters, with CA3"]
["HFV-3LN-075-3-WO","3-way 3/4\" NPT linear valve, without SKx adapters, with CA3"]
["HFV-3LN-100-3-WO","3-way 1\" NPT linear valve, without SKx adapters, with CA3"]
["HFV-3LN-150-3-WO","3-way 1-1/2\" NPT linear valve, without SKx adapters, with CA3"]
["HFV-3LN-200-3-WO","3-way 2\" NPT linear valve, without SKx adapters, with CA3"]
["HFV-3L1-050-3-WO","3-way 1/2\" 150# flanged linear valve, without SKx adapters, with CA3"]
["HFV-3L1-075-3-WO","3-way 3/4\" 150# flanged linear valve, without SKx adapters, with CA3"]
["HFV-3L1-100-3-WO","3-way 1\" 150# flanged linear valve, without SKx adapters, with CA3"]
["HFV-3L1-150-3-WO","3-way 1-1/2\" 150# flanged linear valve, without SKx adapters, with CA3"]
["HFV-3L1-200-3-WO","3-way 2\" 150# flanged linear valve, without SKx adapters, with CA3"]
["HFV-3L1-250-3-WO","3-way 2-1/2\" 150# flanged linear valve, without SKx adapters, with CA3"]
["HFV-3L3-050-3-WO","3-way 1/2\" 300# flanged linear valve, without SKx adapters, with CA3"]
["HFV-3L3-075-3-WO","3-way 3/4\" 300# flanged linear valve, without SKx adapters, with CA3"]
["HFV-3L3-100-3-WO","3-way 1\" 300# flanged linear valve, without SKx adapters, with CA3"]
["HFV-3L3-150-3-WO","3-way 1-1/2\" 300# flanged linear valve, without SKx adapters, with CA3"]
["HFV-3L3-200-3-WO","3-way 2\" 300# flanged linear valve, without SKx adapters, with CA3"]
["HFV-3L3-250-3-WO","3-way 2-1/2\" 300# flanged linear valve, without SKx adapters, with CA3"]

{"sheet":"Selection Lists","index":3,"n_rows":5,"n_cols":4,"rows_kept":5,"cut":false,"hidden":true,"merged":[]}
[]
[null,"AllValvesHFV","LargeValvesHFV","LargeValves599"]
[null,"NPT threaded","150# flanged","125# flanged"]
[null,"150# flanged","300# flanged","250# flanged"]
[null,"300# flanged"]

{"sheet":"Valve Data","index":4,"n_rows":53,"n_cols":18,"rows_kept":53,"cut":false,"hidden":true,"merged":[]}
["Valve Part Number","Valve Size","Valve Size Decimal","Cavitation Adapter","Cavitation Adapter Cv","Cv","Max Flow at 100% Open (gpm)","Max Flow at 100% Open (lb/hr)","Intermediate Pressure (psia)","Cv OK?","Valve Cavitation Index","Adapter Cavitation Index","Minimum Cavitation Index","Index Ranking","Good Valve - No Cavitation","Best Valve - Cavitation","SKD Closeoff Pressure","SKB/C Closeoff Pressure"]
["HFV-xxx-050R-3","1/2\" Reduced",0.5,"CA123",1.6,1.9,{"$f":"ValveData[[#This Row],[Cv]]*SQRT((Interface!$E$34-Interface!$E$35)/Calculations!$B$3)","v":{"$error":"#N/A"}},{"$f":"ValveData[[#This Row],[Cv]]*63.3*(1-((Interface!$E$34-Interface!$E$35)/(1.944*(Interface!$E$34+14.7))))*SQRT((Interface!$E$34-Interface!$E$35)*Calculations!$B$9)","v":0},{"$f":"IF(ValveData[[#This Row],[Cavitation Adapter]]=\"None\",\"N/A\",2.43*(Calculations!$B$5/ValveData[[#This Row],[Cavitation Adapter Cv]])^2+Interface!$E$35)","v":{"$error":"#VALUE!"}},{"$f":"IF(ValveData[[#This Row],[Cv]]>Calculations!$B$10,\"Yes\",\"No\")","v":"No"},{"$f":"IF(D2=\"None\",\"N/A\",(Interface!$E$34-(Calculations!$B$4-14.7))/(Interface!$E$34-ValveData[[#This Row],[Intermediate Pressure (psia)]]))","v":{"$error":"#N/A"}},{"$f":"IF(D2=\"None\",\"N/A\",(ValveData[[#This Row],[Intermediate Pressure (psia)]]-(Calculations!$B$4-14.7))/(ValveData[[#This Row],[Intermediate Pressure (psia)]]-Interface!$E$35))","v":{"$error":"#VALUE!"}},{"$f":"IF(AND(ValveData[[#This Row],[Valve Cavitation Index]]>2,ValveData[[#This Row],[Adapter Cavitation Index]]>2),MIN(ValveData[[#This Row],[Valve Cavitation Index]:[Adapter Cavitation Index]]),0)","v":{"$error":"#N/A"}},{"$f":"RANK(M2,$M$2:$M$5)","v":{"$error":"#N/A"}},{"$f":"IF(AND(ValveData[[#This Row],[Cavitation Adapter]]=\"None\",ValveData[[#This Row],[Cv OK?]]=\"Yes\"),\"Yes\",\"No\")","v":"No"},{"$f":"IF(AND(ValveData[[#This Row],[Cv OK?]]=\"Yes\",ValveData[[#This Row],[Minimum Cavitation Index]]>2,ValveData[[#This Row],[Index Ranking]]=1),\"Yes\",\"No\")","v":{"$error":"#N/A"}},290,720]
["HFV-xxx-050R-2","1/2\" Reduced",0.5,"CA122",2.4,2.2000000000000002,{"$f":"ValveData[[#This Row],[Cv]]*SQRT((Interface!$E$34-Interface!$E$35)/Calculations!$B$3)","v":{"$error":"#N/A"}},{"$f":"ValveData[[#This Row],[Cv]]*63.3*(1-((Interface!$E$34-Interface!$E$35)/(1.944*(Interface!$E$34+14.7))))*SQRT((Interface!$E$34-Interface!$E$35)*Calculations!$B$9)","v":0},{"$f":"IF(ValveData[[#This Row],[Cavitation Adapter]]=\"None\",\"N/A\",2.43*(Calculations!$B$5/ValveData[[#This Row],[Cavitation Adapter Cv]])^2+Interface!$E$35)","v":{"$error":"#VALUE!"}},{"$f":"IF(ValveData[[#This Row],[Cv]]>Calculations!$B$10,\"Yes\",\"No\")","v":"No"},{"$f":"IF(D3=\"None\",\"N/A\",(Interface!$E$34-(Calculations!$B$4-14.7))/(Interface!$E$34-ValveData[[#This Row],[Intermediate Pressure (psia)]]))","v":{"$error":"#N/A"}},{"$f":"IF(D3=\"None\",\"N/A\",(ValveData[[#This Row],[Intermediate Pressure (psia)]]-(Calculations!$B$4-14.7))/(ValveData[[#This Row],[Intermediate Pressure (psia)]]-Interface!$E$35))","v":{"$error":"#VALUE!"}},{"$f":"IF(AND(ValveData[[#This Row],[Valve Cavitation Index]]>2,ValveData[[#This Row],[Adapter Cavitation Index]]>2),MIN(ValveData[[#This Row],[Valve Cavitation Index]:[Adapter Cavitation Index]]),0)","v":{"$error":"#N/A"}},{"$f":"RANK(M3,$M$2:$M$5)","v":{"$error":"#N/A"}},{"$f":"IF(AND(ValveData[[#This Row],[Cavitation Adapter]]=\"None\",ValveData[[#This Row],[Cv OK?]]=\"Yes\"),\"Yes\",\"No\")","v":"No"},{"$f":"IF(AND(ValveData[[#This Row],[Cv OK?]]=\"Yes\",ValveData[[#This Row],[Minimum Cavitation Index]]>2,ValveData[[#This Row],[Index Ranking]]=1),\"Yes\",\"No\")","v":{"$error":"#N/A"}},290,720]
["HFV-xxx-050R-1","1/2\" Reduced",0.5,"CA121",3.6,2.7,{"$f":"ValveData[[#This Row],[Cv]]*SQRT((Interface!$E$34-Interface!$E$35)/Calculations!$B$3)","v":{"$error":"#N/A"}},{"$f":"ValveData[[#This Row],[Cv]]*63.3*(1-((Interface!$E$34-Interface!$E$35)/(1.944*(Interface!$E$34+14.7))))*SQRT((Interface!$E$34-Interface!$E$35)*Calculations!$B$9)","v":0},{"$f":"IF(ValveData[[#This Row],[Cavitation Adapter]]=\"None\",\"N/A\",2.43*(Calculations!$B$5/ValveData[[#This Row],[Cavitation Adapter Cv]])^2+Interface!$E$35)","v":{"$error":"#VALUE!"}},{"$f":"IF(ValveData[[#This Row],[Cv]]>Calculations!$B$10,\"Yes\",\"No\")","v":"No"},{"$f":"IF(D4=\"None\",\"N/A\",(Interface!$E$34-(Calculations!$B$4-14.7))/(Interface!$E$34-ValveData[[#This Row],[Intermediate Pressure (psia)]]))","v":{"$error":"#N/A"}},{"$f":"IF(D4=\"None\",\"N/A\",(ValveData[[#This Row],[Intermediate Pressure (psia)]]-(Calculations!$B$4-14.7))/(ValveData[[#This Row],[Intermediate Pressure (psia)]]-Interface!$E$35))","v":{"$error":"#VALUE!"}},{"$f":"IF(AND(ValveData[[#This Row],[Valve Cavitation Index]]>2,ValveData[[#This Row],[Adapter Cavitation Index]]>2),MIN(ValveData[[#This Row],[Valve Cavitation Index]:[Adapter Cavitation Index]]),0)","v":{"$error":"#N/A"}},{"$error":"#N/A"},{"$f":"IF(AND(ValveData[[#This Row],[Cavitation Adapter]]=\"None\",ValveData[[#This Row],[Cv OK?]]=\"Yes\"),\"Yes\",\"No\")","v":"No"},{"$f":"IF(AND(ValveData[[#This Row],[Cv OK?]]=\"Yes\",ValveData[[#This Row],[Minimum Cavitation Index]]>2,ValveData[[#This Row],[Index Ranking]]=1),\"Yes\",\"No\")","v":{"$error":"#N/A"}},290,720]
["HFV-xxx-050R-X","1/2\" Reduced",0.5,"None","N/A",3.5,{"$f":"ValveData[[#This Row],[Cv]]*SQRT((Interface!$E$34-Interface!$E$35)/Calculations!$B$3)","v":{"$error":"#N/A"}},{"$f":"ValveData[[#This Row],[Cv]]*63.3*(1-((Interface!$E$34-Interface!$E$35)/(1.944*(Interface!$E$34+14.7))))*SQRT((Interface!$E$34-Interface!$E$35)*Calculations!$B$9)","v":0},{"$f":"IF(ValveData[[#This Row],[Cavitation Adapter]]=\"None\",\"N/A\",2.43*(Calculations!$B$5/ValveData[[#This Row],[Cavitation Adapter Cv]])^2+Interface!$E$35)","v":"N/A"},{"$f":"IF(ValveData[[#This Row],[Cv]]>Calculations!$B$10,\"Yes\",\"No\")","v":"No"},{"$f":"IF(D5=\"None\",\"N/A\",(Interface!$E$34-(Calculations!$B$4-14.7))/(Interface!$E$34-ValveData[[#This Row],[Intermediate Pressure (psia)]]))","v":"N/A"},{"$f":"IF(D5=\"None\",\"N/A\",(ValveData[[#This Row],[Intermediate Pressure (psia)]]-(Calculations!$B$4-14.7))/(ValveData[[#This Row],[Intermediate Pressure (psia)]]-Interface!$E$35))","v":"N/A"},{"$f":"IF(AND(ValveData[[#This Row],[Valve Cavitation Index]]>2,ValveData[[#This Row],[Adapter Cavitation Index]]>2),MIN(ValveData[[#This Row],[Valve Cavitation Index]:[Adapter Cavitation Index]]),0)","v":0},0,{"$f":"IF(AND(ValveData[[#This Row],[Cavitation Adapter]]=\"None\",ValveData[[#This Row],[Cv OK?]]=\"Yes\"),\"Yes\",\"No\")","v":"No"},{"$f":"IF(AND(ValveData[[#This Row],[Cv OK?]]=\"Yes\",ValveData[[#This Row],[Minimum Cavitation Index]]>2,ValveData[[#This Row],[Index Ranking]]=1),\"Yes\",\"No\")","v":"No"},290,720]
["HFV-xxx-050-3","1/2\"",0.5,"CA123",1.6,2.5,{"$f":"ValveData[[#This Row],[Cv]]*SQRT((Interface!$E$34-Interface!$E$35)/Calculations!$B$3)","v":{"$error":"#N/A"}},{"$f":"ValveData[[#This Row],[Cv]]*63.3*(1-((Interface!$E$34-Interface!$E$35)/(1.944*(Interface!$E$34+14.7))))*SQRT((Interface!$E$34-Interface!$E$35)*Calculations!$B$9)","v":0},{"$f":"IF(ValveData[[#This Row],[Cavitation Adapter]]=\"None\",\"N/A\",2.43*(Calculations!$B$5/ValveData[[#This Row],[Cavitation Adapter Cv]])^2+Interface!$E$35)","v":{"$error":"#VALUE!"}},{"$f":"IF(ValveData[[#This Row],[Cv]]>Calculations!$B$10,\"Yes\",\"No\")","v":"No"},{"$f":"IF(D6=\"None\",\"N/A\",(Interface!$E$34-(Calculations!$B$4-14.7))/(Interface!$E$34-ValveData[[#This Row],[Intermediate Pressure (psia)]]))","v":{"$error":"#N/A"}},{"$f":"IF(D6=\"None\",\"N/A\",(ValveData[[#This Row],[Intermediate Pressure (psia)]]-(Calculations!$B$4-14.7))/(ValveData[[#This Row],[Intermediate Pressure (psia)]]-Interface!$E$35))","v":{"$error":"#VALUE!"}},{"$f":"IF(AND(ValveData[[#This Row],[Valve Cavitation Index]]>2,ValveData[[#This Row],[Adapter Cavitation Index]]>2),MIN(ValveData[[#This Row],[Valve Cavitation Index]:[Adapter Cavitation Index]]),0)","v":{"$error":"#N/A"}},{"$f":"RANK(M6,$M$6:$M$9)","v":{"$error":"#N/A"}},{"$f":"IF(AND(ValveData[[#This Row],[Cavitation Adapter]]=\"None\",ValveData[[#This Row],[Cv OK?]]=\"Yes\"),\"Yes\",\"No\")","v":"No"},{"$f":"IF(AND(ValveData[[#This Row],[Cv OK?]]=\"Yes\",ValveData[[#This Row],[Minimum Cavitation Index]]>2,ValveData[[#This Row],[Index Ranking]]=1),\"Yes\",\"No\")","v":{"$error":"#N/A"}},290,720]
["HFV-xxx-050-2","1/2\"",0.5,"CA122",2.4,2.8,{"$f":"ValveData[[#This Row],[Cv]]*SQRT((Interface!$E$34-Interface!$E$35)/Calculations!$B$3)","v":{"$error":"#N/A"}},{"$f":"ValveData[[#This Row],[Cv]]*63.3*(1-((Interface!$E$34-Interface!$E$35)/(1.944*(Interface!$E$34+14.7))))*SQRT((Interface!$E$34-Interface!$E$35)*Calculations!$B$9)","v":0},{"$f":"IF(ValveData[[#This Row],[Cavitation Adapter]]=\"None\",\"N/A\",2.43*(Calculations!$B$5/ValveData[[#This Row],[Cavitation Adapter Cv]])^2+Interface!$E$35)","v":{"$error":"#VALUE!"}},{"$f":"IF(ValveData[[#This Row],[Cv]]>Calculations!$B$10,\"Yes\",\"No\")","v":"No"},{"$f":"IF(D7=\"None\",\"N/A\",(Interface!$E$34-(Calculations!$B$4-14.7))/(Interface!$E$34-ValveData[[#This Row],[Intermediate Pressure (psia)]]))","v":{"$error":"#N/A"}},{"$f":"IF(D7=\"None\",\"N/A\",(ValveData[[#This Row],[Intermediate Pressure (psia)]]-(Calculations!$B$4-14.7))/(ValveData[[#This Row],[Intermediate Pressure (psia)]]-Interface!$E$35))","v":{"$error":"#VALUE!"}},{"$f":"IF(AND(ValveData[[#This Row],[Valve Cavitation Index]]>2,ValveData[[#This Row],[Adapter Cavitation Index]]>2),MIN(ValveData[[#This Row],[Valve Cavitation Index]:[Adapter Cavitation Index]]),0)","v":{"$error":"#N/A"}},{"$f":"RANK(M7,$M$6:$M$9)","v":{"$error":"#N/A"}},{"$f":"IF(AND(ValveData[[#This Row],[Cavitation Adapter]]=\"None\",ValveData[[#This Row],[Cv OK?]]=\"Yes\"),\"Yes\",\"No\")","v":"No"},{"$f":"IF(AND(ValveData[[#This Row],[Cv OK?]]=\"Yes\",ValveData[[#This Row],[Minimum Cavitation Index]]>2,ValveData[[#This Row],[Index Ranking]]=1),\"Yes\",\"No\")","v":{"$error":"#N/A"}},290,720]
["HFV-xxx-050-1","1/2\"",0.5,"CA121",3.6,3.2,{"$f":"ValveData[[#This Row],[Cv]]*SQRT((Interface!$E$34-Interface!$E$35)/Calculations!$B$3)","v":{"$error":"#N/A"}},{"$f":"ValveData[[#This Row],[Cv]]*63.3*(1-((Interface!$E$34-Interface!$E$35)/(1.944*(Interface!$E$34+14.7))))*SQRT((Interface!$E$34-Interface!$E$35)*Calculations!$B$9)","v":0},{"$f":"IF(ValveData[[#This Row],[Cavitation Adapter]]=\"None\",\"N/A\",2.43*(Calculations!$B$5/ValveData[[#This Row],[Cavitation Adapter Cv]])^2+Interface!$E$35)","v":{"$error":"#VALUE!"}},{"$f":"IF(ValveData[[#This Row],[Cv]]>Calculations!$B$10,\"Yes\",\"No\")","v":"No"},{"$f":"IF(D8=\"None\",\"N/A\",(Interface!$E$34-(Calculations!$B$4-14.7))/(Interface!$E$34-ValveData[[#This Row],[Intermediate Pressure (psia)]]))","v":{"$error":"#N/A"}},{"$f":"IF(D8=\"None\",\"N/A\",(ValveData[[#This Row],[Intermediate Pressure (psia)]]-(Calculations!$B$4-14.7))/(ValveData[[#This Row],[Intermediate Pressure (psia)]]-Interface!$E$35))","v":{"$error":"#VALUE!"}},{"$f":"IF(AND(ValveData[[#This Row],[Valve Cavitation Index]]>2,ValveData[[#This Row],[Adapter Cavitation Index]]>2),MIN(ValveData[[#This Row],[Valve Cavitation Index]:[Adapter Cavitation Index]]),0)","v":{"$error":"#N/A"}},{"$error":"#N/A"},{"$f":"IF(AND(ValveData[[#This Row],[Cavitation Adapter]]=\"None\",ValveData[[#This Row],[Cv OK?]]=\"Yes\"),\"Yes\",\"No\")","v":"No"},{"$f":"IF(AND(ValveData[[#This Row],[Cv OK?]]=\"Yes\",ValveData[[#This Row],[Minimum Cavitation Index]]>2,ValveData[[#This Row],[Index Ranking]]=1),\"Yes\",\"No\")","v":{"$error":"#N/A"}},290,720]
["HFV-xxx-050-X","1/2\"",0.5,"None","N/A",5,{"$f":"ValveData[[#This Row],[Cv]]*SQRT((Interface!$E$34-Interface!$E$35)/Calculations!$B$3)","v":{"$error":"#N/A"}},{"$f":"ValveData[[#This Row],[Cv]]*63.3*(1-((Interface!$E$34-Interface!$E$35)/(1.944*(Interface!$E$34+14.7))))*SQRT((Interface!$E$34-Interface!$E$35)*Calculations!$B$9)","v":0},{"$f":"IF(ValveData[[#This Row],[Cavitation Adapter]]=\"None\",\"N/A\",2.43*(Calculations!$B$5/ValveData[[#This Row],[Cavitation Adapter Cv]])^2+Interface!$E$35)","v":"N/A"},{"$f":"IF(ValveData[[#This Row],[Cv]]>Calculations!$B$10,\"Yes\",\"No\")","v":"No"},{"$f":"IF(D9=\"None\",\"N/A\",(Interface!$E$34-(Calculations!$B$4-14.7))/(Interface!$E$34-ValveData[[#This Row],[Intermediate Pressure (psia)]]))","v":"N/A"},{"$f":"IF(D9=\"None\",\"N/A\",(ValveData[[#This Row],[Intermediate Pressure (psia)]]-(Calculations!$B$4-14.7))/(ValveData[[#This Row],[Intermediate Pressure (psia)]]-Interface!$E$35))","v":"N/A"},{"$f":"IF(AND(ValveData[[#This Row],[Valve Cavitation Index]]>2,ValveData[[#This Row],[Adapter Cavitation Index]]>2),MIN(ValveData[[#This Row],[Valve Cavitation Index]:[Adapter Cavitation Index]]),0)","v":0},0,{"$f":"IF(AND(ValveData[[#This Row],[Cavitation Adapter]]=\"None\",ValveData[[#This Row],[Cv OK?]]=\"Yes\"),\"Yes\",\"No\")","v":"No"},{"$f":"IF(AND(ValveData[[#This Row],[Cv OK?]]=\"Yes\",ValveData[[#This Row],[Minimum Cavitation Index]]>2,ValveData[[#This Row],[Index Ranking]]=1),\"Yes\",\"No\")","v":"No"},290,720]
["HFV-xxx-075-3","3/4\"",0.75,"CA133",3.8,3.9,{"$f":"ValveData[[#This Row],[Cv]]*SQRT((Interface!$E$34-Interface!$E$35)/Calculations!$B$3)","v":{"$error":"#N/A"}},{"$f":"ValveData[[#This Row],[Cv]]*63.3*(1-((Interface!$E$34-Interface!$E$35)/(1.944*(Interface!$E$34+14.7))))*SQRT((Interface!$E$34-Interface!$E$35)*Calculations!$B$9)","v":0},{"$f":"IF(ValveData[[#This Row],[Cavitation Adapter]]=\"None\",\"N/A\",2.43*(Calculations!$B$5/ValveData[[#This Row],[Cavitation Adapter Cv]])^2+Interface!$E$35)","v":{"$error":"#VALUE!"}},{"$f":"IF(ValveData[[#This Row],[Cv]]>Calculations!$B$10,\"Yes\",\"No\")","v":"No"},{"$f":"IF(D10=\"None\",\"N/A\",(Interface!$E$34-(Calculations!$B$4-14.7))/(Interface!$E$34-ValveData[[#This Row],[Intermediate Pressure (psia)]]))","v":{"$error":"#N/A"}},{"$f":"IF(D10=\"None\",\"N/A\",(ValveData[[#This Row],[Intermediate Pressure (psia)]]-(Calculations!$B$4-14.7))/(ValveData[[#This Row],[Intermediate Pressure (psia)]]-Interface!$E$35))","v":{"$error":"#VALUE!"}},{"$f":"IF(AND(ValveData[[#This Row],[Valve Cavitation Index]]>2,ValveData[[#This Row],[Adapter Cavitation Index]]>2),MIN(ValveData[[#This Row],[Valve Cavitation Index]:[Adapter Cavitation Index]]),0)","v":{"$error":"#N/A"}},{"$f":"RANK(M10,$M$10:$M$13)","v":{"$error":"#N/A"}},{"$f":"IF(AND(ValveData[[#This Row],[Cavitation Adapter]]=\"None\",ValveData[[#This Row],[Cv OK?]]=\"Yes\"),\"Yes\",\"No\")","v":"No"},{"$f":"IF(AND(ValveData[[#This Row],[Cv OK?]]=\"Yes\",ValveData[[#This Row],[Minimum Cavitation Index]]>2,ValveData[[#This Row],[Index Ranking]]=1),\"Yes\",\"No\")","v":{"$error":"#N/A"}},290,720]
["HFV-xxx-075-2","3/4\"",0.75,"CA132",5.5,4.5,{"$f":"ValveData[[#This Row],[Cv]]*SQRT((Interface!$E$34-Interface!$E$35)/Calculations!$B$3)","v":{"$error":"#N/A"}},{"$f":"ValveData[[#This Row],[Cv]]*63.3*(1-((Interface!$E$34-Interface!$E$35)/(1.944*(Interface!$E$34+14.7))))*SQRT((Interface!$E$34-Interface!$E$35)*Calculations!$B$9)","v":0},{"$f":"IF(ValveData[[#This Row],[Cavitation Adapter]]=\"None\",\"N/A\",2.43*(Calculations!$B$5/ValveData[[#This Row],[Cavitation Adapter Cv]])^2+Interface!$E$35)","v":{"$error":"#VALUE!"}},{"$f":"IF(ValveData[[#This Row],[Cv]]>Calculations!$B$10,\"Yes\",\"No\")","v":"No"},{"$f":"IF(D11=\"None\",\"N/A\",(Interface!$E$34-(Calculations!$B$4-14.7))/(Interface!$E$34-ValveData[[#This Row],[Intermediate Pressure (psia)]]))","v":{"$error":"#N/A"}},{"$f":"IF(D11=\"None\",\"N/A\",(ValveData[[#This Row],[Intermediate Pressure (psia)]]-(Calculations!$B$4-14.7))/(ValveData[[#This Row],[Intermediate Pressure (psia)]]-Interface!$E$35))","v":{"$error":"#VALUE!"}},{"$f":"IF(AND(ValveData[[#This Row],[Valve Cavitation Index]]>2,ValveData[[#This Row],[Adapter Cavitation Index]]>2),MIN(ValveData[[#This Row],[Valve Cavitation Index]:[Adapter Cavitation Index]]),0)","v":{"$error":"#N/A"}},{"$f":"RANK(M11,$M$10:$M$13)","v":{"$error":"#N/A"}},{"$f":"IF(AND(ValveData[[#This Row],[Cavitation Adapter]]=\"None\",ValveData[[#This Row],[Cv OK?]]=\"Yes\"),\"Yes\",\"No\")","v":"No"},{"$f":"IF(AND(ValveData[[#This Row],[Cv OK?]]=\"Yes\",ValveData[[#This Row],[Minimum Cavitation Index]]>2,ValveData[[#This Row],[Index Ranking]]=1),\"Yes\",\"No\")","v":{"$error":"#N/A"}},290,720]
["HFV-xxx-075-1","3/4\"",0.75,"CA131",7.6,5.3,{"$f":"ValveData[[#This Row],[Cv]]*SQRT((Interface!$E$34-Interface!$E$35)/Calculations!$B$3)","v":{"$error":"#N/A"}},{"$f":"ValveData[[#This Row],[Cv]]*63.3*(1-((Interface!$E$34-Interface!$E$35)/(1.944*(Interface!$E$34+14.7))))*SQRT((Interface!$E$34-Interface!$E$35)*Calculations!$B$9)","v":0},{"$f":"IF(ValveData[[#This Row],[Cavitation Adapter]]=\"None\",\"N/A\",2.43*(Calculations!$B$5/ValveData[[#This Row],[Cavitation Adapter Cv]])^2+Interface!$E$35)","v":{"$error":"#VALUE!"}},{"$f":"IF(ValveData[[#This Row],[Cv]]>Calculations!$B$10,\"Yes\",\"No\")","v":"No"},{"$f":"IF(D12=\"None\",\"N/A\",(Interface!$E$34-(Calculations!$B$4-14.7))/(Interface!$E$34-ValveData[[#This Row],[Intermediate Pressure (psia)]]))","v":{"$error":"#N/A"}},{"$f":"IF(D12=\"None\",\"N/A\",(ValveData[[#This Row],[Intermediate Pressure (psia)]]-(Calculations!$B$4-14.7))/(ValveData[[#This Row],[Intermediate Pressure (psia)]]-Interface!$E$35))","v":{"$error":"#VALUE!"}},{"$f":"IF(AND(ValveData[[#This Row],[Valve Cavitation Index]]>2,ValveData[[#This Row],[Adapter Cavitation Index]]>2),MIN(ValveData[[#This Row],[Valve Cavitation Index]:[Adapter Cavitation Index]]),0)","v":{"$error":"#N/A"}},{"$error":"#N/A"},{"$f":"IF(AND(ValveData[[#This Row],[Cavitation Adapter]]=\"None\",ValveData[[#This Row],[Cv OK?]]=\"Yes\"),\"Yes\",\"No\")","v":"No"},{"$f":"IF(AND(ValveData[[#This Row],[Cv OK?]]=\"Yes\",ValveData[[#This Row],[Minimum Cavitation Index]]>2,ValveData[[#This Row],[Index Ranking]]=1),\"Yes\",\"No\")","v":{"$error":"#N/A"}},290,720]
["HFV-xxx-075-X","3/4\"",0.75,"None","N/A",6.5,{"$f":"ValveData[[#This Row],[Cv]]*SQRT((Interface!$E$34-Interface!$E$35)/Calculations!$B$3)","v":{"$error":"#N/A"}},{"$f":"ValveData[[#This Row],[Cv]]*63.3*(1-((Interface!$E$34-Interface!$E$35)/(1.944*(Interface!$E$34+14.7))))*SQRT((Interface!$E$34-Interface!$E$35)*Calculations!$B$9)","v":0},{"$f":"IF(ValveData[[#This Row],[Cavitation Adapter]]=\"None\",\"N/A\",2.43*(Calculations!$B$5/ValveData[[#This Row],[Cavitation Adapter Cv]])^2+Interface!$E$35)","v":"N/A"},{"$f":"IF(ValveData[[#This Row],[Cv]]>Calculations!$B$10,\"Yes\",\"No\")","v":"No"},{"$f":"IF(D13=\"None\",\"N/A\",(Interface!$E$34-(Calculations!$B$4-14.7))/(Interface!$E$34-ValveData[[#This Row],[Intermediate Pressure (psia)]]))","v":"N/A"},{"$f":"IF(D13=\"None\",\"N/A\",(ValveData[[#This Row],[Intermediate Pressure (psia)]]-(Calculations!$B$4-14.7))/(ValveData[[#This Row],[Intermediate Pressure (psia)]]-Interface!$E$35))","v":"N/A"},{"$f":"IF(AND(ValveData[[#This Row],[Valve Cavitation Index]]>2,ValveData[[#This Row],[Adapter Cavitation Index]]>2),MIN(ValveData[[#This Row],[Valve Cavitation Index]:[Adapter Cavitation Index]]),0)","v":0},0,{"$f":"IF(AND(ValveData[[#This Row],[Cavitation Adapter]]=\"None\",ValveData[[#This Row],[Cv OK?]]=\"Yes\"),\"Yes\",\"No\")","v":"No"},{"$f":"IF(AND(ValveData[[#This Row],[Cv OK?]]=\"Yes\",ValveData[[#This Row],[Minimum Cavitation Index]]>2,ValveData[[#This Row],[Index Ranking]]=1),\"Yes\",\"No\")","v":"No"},290,720]
["HFV-xxx-100-3","1\"",1,"CA143",7,6.4,{"$f":"ValveData[[#This Row],[Cv]]*SQRT((Interface!$E$34-Interface!$E$35)/Calculations!$B$3)","v":{"$error":"#N/A"}},{"$f":"ValveData[[#This Row],[Cv]]*63.3*(1-((Interface!$E$34-Interface!$E$35)/(1.944*(Interface!$E$34+14.7))))*SQRT((Interface!$E$34-Interface!$E$35)*Calculations!$B$9)","v":0},{"$f":"IF(ValveData[[#This Row],[Cavitation Adapter]]=\"None\",\"N/A\",2.43*(Calculations!$B$5/ValveData[[#This Row],[Cavitation Adapter Cv]])^2+Interface!$E$35)","v":{"$error":"#VALUE!"}},{"$f":"IF(ValveData[[#This Row],[Cv]]>Calculations!$B$10,\"Yes\",\"No\")","v":"No"},{"$f":"IF(D14=\"None\",\"N/A\",(Interface!$E$34-(Calculations!$B$4-14.7))/(Interface!$E$34-ValveData[[#This Row],[Intermediate Pressure (psia)]]))","v":{"$error":"#N/A"}},{"$f":"IF(D14=\"None\",\"N/A\",(ValveData[[#This Row],[Intermediate Pressure (psia)]]-(Calculations!$B$4-14.7))/(ValveData[[#This Row],[Intermediate Pressure (psia)]]-Interface!$E$35))","v":{"$error":"#VALUE!"}},{"$f":"IF(AND(ValveData[[#This Row],[Valve Cavitation Index]]>2,ValveData[[#This Row],[Adapter Cavitation Index]]>2),MIN(ValveData[[#This Row],[Valve Cavitation Index]:[Adapter Cavitation Index]]),0)","v":{"$error":"#N/A"}},{"$f":"RANK(M14,$M$14:$M$17)","v":{"$error":"#N/A"}},{"$f":"IF(AND(ValveData[[#This Row],[Cavitation Adapter]]=\"None\",ValveData[[#This Row],[Cv OK?]]=\"Yes\"),\"Yes\",\"No\")","v":"No"},{"$f":"IF(AND(ValveData[[#This Row],[Cv OK?]]=\"Yes\",ValveData[[#This Row],[Minimum Cavitation Index]]>2,ValveData[[#This Row],[Index Ranking]]=1),\"Yes\",\"No\")","v":{"$error":"#N/A"}},290,720]
["HFV-xxx-100-2","1\"",1,"CA142",9.5,7.3,{"$f":"ValveData[[#This Row],[Cv]]*SQRT((Interface!$E$34-Interface!$E$35)/Calculations!$B$3)","v":{"$error":"#N/A"}},{"$f":"ValveData[[#This Row],[Cv]]*63.3*(1-((Interface!$E$34-Interface!$E$35)/(1.944*(Interface!$E$34+14.7))))*SQRT((Interface!$E$34-Interface!$E$35)*Calculations!$B$9)","v":0},{"$f":"IF(ValveData[[#This Row],[Cavitation Adapter]]=\"None\",\"N/A\",2.43*(Calculations!$B$5/ValveData[[#This Row],[Cavitation Adapter Cv]])^2+Interface!$E$35)","v":{"$error":"#VALUE!"}},{"$f":"IF(ValveData[[#This Row],[Cv]]>Calculations!$B$10,\"Yes\",\"No\")","v":"No"},{"$f":"IF(D15=\"None\",\"N/A\",(Interface!$E$34-(Calculations!$B$4-14.7))/(Interface!$E$34-ValveData[[#This Row],[Intermediate Pressure (psia)]]))","v":{"$error":"#N/A"}},{"$f":"IF(D15=\"None\",\"N/A\",(ValveData[[#This Row],[Intermediate Pressure (psia)]]-(Calculations!$B$4-14.7))/(ValveData[[#This Row],[Intermediate Pressure (psia)]]-Interface!$E$35))","v":{"$error":"#VALUE!"}},{"$f":"IF(AND(ValveData[[#This Row],[Valve Cavitation Index]]>2,ValveData[[#This Row],[Adapter Cavitation Index]]>2),MIN(ValveData[[#This Row],[Valve Cavitation Index]:[Adapter Cavitation Index]]),0)","v":{"$error":"#N/A"}},{"$f":"RANK(M15,$M$14:$M$17)","v":{"$error":"#N/A"}},{"$f":"IF(AND(ValveData[[#This Row],[Cavitation Adapter]]=\"None\",ValveData[[#This Row],[Cv OK?]]=\"Yes\"),\"Yes\",\"No\")","v":"No"},{"$f":"IF(AND(ValveData[[#This Row],[Cv OK?]]=\"Yes\",ValveData[[#This Row],[Minimum Cavitation Index]]>2,ValveData[[#This Row],[Index Ranking]]=1),\"Yes\",\"No\")","v":{"$error":"#N/A"}},290,720]
["HFV-xxx-100-1","1\"",1,"CA141",13.1,8.6,{"$f":"ValveData[[#This Row],[Cv]]*SQRT((Interface!$E$34-Interface!$E$35)/Calculations!$B$3)","v":{"$error":"#N/A"}},{"$f":"ValveData[[#This Row],[Cv]]*63.3*(1-((Interface!$E$34-Interface!$E$35)/(1.944*(Interface!$E$34+14.7))))*SQRT((Interface!$E$34-Interface!$E$35)*Calculations!$B$9)","v":0},{"$f":"IF(ValveData[[#This Row],[Cavitation Adapter]]=\"None\",\"N/A\",2.43*(Calculations!$B$5/ValveData[[#This Row],[Cavitation Adapter Cv]])^2+Interface!$E$35)","v":{"$error":"#VALUE!"}},{"$f":"IF(ValveData[[#This Row],[Cv]]>Calculations!$B$10,\"Yes\",\"No\")","v":"No"},{"$f":"IF(D16=\"None\",\"N/A\",(Interface!$E$34-(Calculations!$B$4-14.7))/(Interface!$E$34-ValveData[[#This Row],[Intermediate Pressure (psia)]]))","v":{"$error":"#N/A"}},{"$f":"IF(D16=\"None\",\"N/A\",(ValveData[[#This Row],[Intermediate Pressure (psia)]]-(Calculations!$B$4-14.7))/(ValveData[[#This Row],[Intermediate Pressure (psia)]]-Interface!$E$35))","v":{"$error":"#VALUE!"}},{"$f":"IF(AND(ValveData[[#This Row],[Valve Cavitation Index]]>2,ValveData[[#This Row],[Adapter Cavitation Index]]>2),MIN(ValveData[[#This Row],[Valve Cavitation Index]:[Adapter Cavitation Index]]),0)","v":{"$error":"#N/A"}},{"$error":"#N/A"},{"$f":"IF(AND(ValveData[[#This Row],[Cavitation Adapter]]=\"None\",ValveData[[#This Row],[Cv OK?]]=\"Yes\"),\"Yes\",\"No\")","v":"No"},{"$f":"IF(AND(ValveData[[#This Row],[Cv OK?]]=\"Yes\",ValveData[[#This Row],[Minimum Cavitation Index]]>2,ValveData[[#This Row],[Index Ranking]]=1),\"Yes\",\"No\")","v":{"$error":"#N/A"}},290,720]
["HFV-xxx-100-X","1\"",1,"None","N/A",10,{"$f":"ValveData[[#This Row],[Cv]]*SQRT((Interface!$E$34-Interface!$E$35)/Calculations!$B$3)","v":{"$error":"#N/A"}},{"$f":"ValveData[[#This Row],[Cv]]*63.3*(1-((Interface!$E$34-Interface!$E$35)/(1.944*(Interface!$E$34+14.7))))*SQRT((Interface!$E$34-Interface!$E$35)*Calculations!$B$9)","v":0},{"$f":"IF(ValveData[[#This Row],[Cavitation Adapter]]=\"None\",\"N/A\",2.43*(Calculations!$B$5/ValveData[[#This Row],[Cavitation Adapter Cv]])^2+Interface!$E$35)","v":"N/A"},{"$f":"IF(ValveData[[#This Row],[Cv]]>Calculations!$B$10,\"Yes\",\"No\")","v":"No"},{"$f":"IF(D17=\"None\",\"N/A\",(Interface!$E$34-(Calculations!$B$4-14.7))/(Interface!$E$34-ValveData[[#This Row],[Intermediate Pressure (psia)]]))","v":"N/A"},{"$f":"IF(D17=\"None\",\"N/A\",(ValveData[[#This Row],[Intermediate Pressure (psia)]]-(Calculations!$B$4-14.7))/(ValveData[[#This Row],[Intermediate Pressure (psia)]]-Interface!$E$35))","v":"N/A"},{"$f":"IF(AND(ValveData[[#This Row],[Valve Cavitation Index]]>2,ValveData[[#This Row],[Adapter Cavitation Index]]>2),MIN(ValveData[[#This Row],[Valve Cavitation Index]:[Adapter Cavitation Index]]),0)","v":0},0,{"$f":"IF(AND(ValveData[[#This Row],[Cavitation Adapter]]=\"None\",ValveData[[#This Row],[Cv OK?]]=\"Yes\"),\"Yes\",\"No\")","v":"No"},{"$f":"IF(AND(ValveData[[#This Row],[Cv OK?]]=\"Yes\",ValveData[[#This Row],[Minimum Cavitation Index]]>2,ValveData[[#This Row],[Index Ranking]]=1),\"Yes\",\"No\")","v":"No"},290,720]
["HFV-xxx-150-3","1-1/2\"",1.5,"CA163",12,12.7,{"$f":"ValveData[[#This Row],[Cv]]*SQRT((Interface!$E$34-Interface!$E$35)/Calculations!$B$3)","v":{"$error":"#N/A"}},{"$f":"ValveData[[#This Row],[Cv]]*63.3*(1-((Interface!$E$34-Interface!$E$35)/(1.944*(Interface!$E$34+14.7))))*SQRT((Interface!$E$34-Interface!$E$35)*Calculations!$B$9)","v":0},{"$f":"IF(ValveData[[#This Row],[Cavitation Adapter]]=\"None\",\"N/A\",2.43*(Calculations!$B$5/ValveData[[#This Row],[Cavitation Adapter Cv]])^2+Interface!$E$35)","v":{"$error":"#VALUE!"}},{"$f":"IF(ValveData[[#This Row],[Cv]]>Calculations!$B$10,\"Yes\",\"No\")","v":"No"},{"$f":"IF(D18=\"None\",\"N/A\",(Interface!$E$34-(Calculations!$B$4-14.7))/(Interface!$E$34-ValveData[[#This Row],[Intermediate Pressure (psia)]]))","v":{"$error":"#N/A"}},{"$f":"IF(D18=\"None\",\"N/A\",(ValveData[[#This Row],[Intermediate Pressure (psia)]]-(Calculations!$B$4-14.7))/(ValveData[[#This Row],[Intermediate Pressure (psia)]]-Interface!$E$35))","v":{"$error":"#VALUE!"}},{"$f":"IF(AND(ValveData[[#This Row],[Valve Cavitation Index]]>2,ValveData[[#This Row],[Adapter Cavitation Index]]>2),MIN(ValveData[[#This Row],[Valve Cavitation Index]:[Adapter Cavitation Index]]),0)","v":{"$error":"#N/A"}},{"$f":"RANK(M18,$M$18:$M$21)","v":{"$error":"#N/A"}},{"$f":"IF(AND(ValveData[[#This Row],[Cavitation Adapter]]=\"None\",ValveData[[#This Row],[Cv OK?]]=\"Yes\"),\"Yes\",\"No\")","v":"No"},{"$f":"IF(AND(ValveData[[#This Row],[Cv OK?]]=\"Yes\",ValveData[[#This Row],[Minimum Cavitation Index]]>2,ValveData[[#This Row],[Index Ranking]]=1),\"Yes\",\"No\")","v":{"$error":"#N/A"}},150,450]
["HFV-xxx-150-2","1-1/2\"",1.5,"CA162",18.899999999999999,15.3,{"$f":"ValveData[[#This Row],[Cv]]*SQRT((Interface!$E$34-Interface!$E$35)/Calculations!$B$3)","v":{"$error":"#N/A"}},{"$f":"ValveData[[#This Row],[Cv]]*63.3*(1-((Interface!$E$34-Interface!$E$35)/(1.944*(Interface!$E$34+14.7))))*SQRT((Interface!$E$34-Interface!$E$35)*Calculations!$B$9)","v":0},{"$f":"IF(ValveData[[#This Row],[Cavitation Adapter]]=\"None\",\"N/A\",2.43*(Calculations!$B$5/ValveData[[#This Row],[Cavitation Adapter Cv]])^2+Interface!$E$35)","v":{"$error":"#VALUE!"}},{"$f":"IF(ValveData[[#This Row],[Cv]]>Calculations!$B$10,\"Yes\",\"No\")","v":"No"},{"$f":"IF(D19=\"None\",\"N/A\",(Interface!$E$34-(Calculations!$B$4-14.7))/(Interface!$E$34-ValveData[[#This Row],[Intermediate Pressure (psia)]]))","v":{"$error":"#N/A"}},{"$f":"IF(D19=\"None\",\"N/A\",(ValveData[[#This Row],[Intermediate Pressure (psia)]]-(Calculations!$B$4-14.7))/(ValveData[[#This Row],[Intermediate Pressure (psia)]]-Interface!$E$35))","v":{"$error":"#VALUE!"}},{"$f":"IF(AND(ValveData[[#This Row],[Valve Cavitation Index]]>2,ValveData[[#This Row],[Adapter Cavitation Index]]>2),MIN(ValveData[[#This Row],[Valve Cavitation Index]:[Adapter Cavitation Index]]),0)","v":{"$error":"#N/A"}},{"$error":"#N/A"},{"$f":"IF(AND(ValveData[[#This Row],[Cavitation Adapter]]=\"None\",ValveData[[#This Row],[Cv OK?]]=\"Yes\"),\"Yes\",\"No\")","v":"No"},{"$f":"IF(AND(ValveData[[#This Row],[Cv OK?]]=\"Yes\",ValveData[[#This Row],[Minimum Cavitation Index]]>2,ValveData[[#This Row],[Index Ranking]]=1),\"Yes\",\"No\")","v":{"$error":"#N/A"}},150,450]
["HFV-xxx-150-1","1-1/2\"",1.5,"CA161",30.4,19.600000000000001,{"$f":"ValveData[[#This Row],[Cv]]*SQRT((Interface!$E$34-Interface!$E$35)/Calculations!$B$3)","v":{"$error":"#N/A"}},{"$f":"ValveData[[#This Row],[Cv]]*63.3*(1-((Interface!$E$34-Interface!$E$35)/(1.944*(Interface!$E$34+14.7))))*SQRT((Interface!$E$34-Interface!$E$35)*Calculations!$B$9)","v":0},{"$f":"IF(ValveData[[#This Row],[Cavitation Adapter]]=\"None\",\"N/A\",2.43*(Calculations!$B$5/ValveData[[#This Row],[Cavitation Adapter Cv]])^2+Interface!$E$35)","v":{"$error":"#VALUE!"}},{"$f":"IF(ValveData[[#This Row],[Cv]]>Calculations!$B$10,\"Yes\",\"No\")","v":"No"},{"$f":"IF(D20=\"None\",\"N/A\",(Interface!$E$34-(Calculations!$B$4-14.7))/(Interface!$E$34-ValveData[[#This Row],[Intermediate Pressure (psia)]]))","v":{"$error":"#N/A"}},{"$f":"IF(D20=\"None\",\"N/A\",(ValveData[[#This Row],[Intermediate Pressure (psia)]]-(Calculations!$B$4-14.7))/(ValveData[[#This Row],[Intermediate Pressure (psia)]]-Interface!$E$35))","v":{"$error":"#VALUE!"}},{"$f":"IF(AND(ValveData[[#This Row],[Valve Cavitation Index]]>2,ValveData[[#This Row],[Adapter Cavitation Index]]>2),MIN(ValveData[[#This Row],[Valve Cavitation Index]:[Adapter Cavitation Index]]),0)","v":{"$error":"#N/A"}},{"$error":"#N/A"},{"$f":"IF(AND(ValveData[[#This Row],[Cavitation Adapter]]=\"None\",ValveData[[#This Row],[Cv OK?]]=\"Yes\"),\"Yes\",\"No\")","v":"No"},{"$f":"IF(AND(ValveData[[#This Row],[Cv OK?]]=\"Yes\",ValveData[[#This Row],[Minimum Cavitation Index]]>2,ValveData[[#This Row],[Index Ranking]]=1),\"Yes\",\"No\")","v":{"$error":"#N/A"}},150,450]
["HFV-xxx-150-X","1-1/2\"",1.5,"None","N/A",22,{"$f":"ValveData[[#This Row],[Cv]]*SQRT((Interface!$E$34-Interface!$E$35)/Calculations!$B$3)","v":{"$error":"#N/A"}},{"$f":"ValveData[[#This Row],[Cv]]*63.3*(1-((Interface!$E$34-Interface!$E$35)/(1.944*(Interface!$E$34+14.7))))*SQRT((Interface!$E$34-Interface!$E$35)*Calculations!$B$9)","v":0},{"$f":"IF(ValveData[[#This Row],[Cavitation Adapter]]=\"None\",\"N/A\",2.43*(Calculations!$B$5/ValveData[[#This Row],[Cavitation Adapter Cv]])^2+Interface!$E$35)","v":"N/A"},{"$f":"IF(ValveData[[#This Row],[Cv]]>Calculations!$B$10,\"Yes\",\"No\")","v":"No"},{"$f":"IF(D21=\"None\",\"N/A\",(Interface!$E$34-(Calculations!$B$4-14.7))/(Interface!$E$34-ValveData[[#This Row],[Intermediate Pressure (psia)]]))","v":"N/A"},{"$f":"IF(D21=\"None\",\"N/A\",(ValveData[[#This Row],[Intermediate Pressure (psia)]]-(Calculations!$B$4-14.7))/(ValveData[[#This Row],[Intermediate Pressure (psia)]]-Interface!$E$35))","v":"N/A"},{"$f":"IF(AND(ValveData[[#This Row],[Valve Cavitation Index]]>2,ValveData[[#This Row],[Adapter Cavitation Index]]>2),MIN(ValveData[[#This Row],[Valve Cavitation Index]:[Adapter Cavitation Index]]),0)","v":0},0,{"$f":"IF(AND(ValveData[[#This Row],[Cavitation Adapter]]=\"None\",ValveData[[#This Row],[Cv OK?]]=\"Yes\"),\"Yes\",\"No\")","v":"No"},{"$f":"IF(AND(ValveData[[#This Row],[Cv OK?]]=\"Yes\",ValveData[[#This Row],[Minimum Cavitation Index]]>2,ValveData[[#This Row],[Index Ranking]]=1),\"Yes\",\"No\")","v":"No"},150,450]
["HFV-xxx-200-3","2\"",2,"CA173",28.1,26.3,{"$f":"ValveData[[#This Row],[Cv]]*SQRT((Interface!$E$34-Interface!$E$35)/Calculations!$B$3)","v":{"$error":"#N/A"}},{"$f":"ValveData[[#This Row],[Cv]]*63.3*(1-((Interface!$E$34-Interface!$E$35)/(1.944*(Interface!$E$34+14.7))))*SQRT((Interface!$E$34-Interface!$E$35)*Calculations!$B$9)","v":0},{"$f":"IF(ValveData[[#This Row],[Cavitation Adapter]]=\"None\",\"N/A\",2.43*(Calculations!$B$5/ValveData[[#This Row],[Cavitation Adapter Cv]])^2+Interface!$E$35)","v":{"$error":"#VALUE!"}},{"$f":"IF(ValveData[[#This Row],[Cv]]>Calculations!$B$10,\"Yes\",\"No\")","v":"No"},{"$f":"IF(D22=\"None\",\"N/A\",(Interface!$E$34-(Calculations!$B$4-14.7))/(Interface!$E$34-ValveData[[#This Row],[Intermediate Pressure (psia)]]))","v":{"$error":"#N/A"}},{"$f":"IF(D22=\"None\",\"N/A\",(ValveData[[#This Row],[Intermediate Pressure (psia)]]-(Calculations!$B$4-14.7))/(ValveData[[#This Row],[Intermediate Pressure (psia)]]-Interface!$E$35))","v":{"$error":"#VALUE!"}},{"$f":"IF(AND(ValveData[[#This Row],[Valve Cavitation Index]]>2,ValveData[[#This Row],[Adapter Cavitation Index]]>2),MIN(ValveData[[#This Row],[Valve Cavitation Index]:[Adapter Cavitation Index]]),0)","v":{"$error":"#N/A"}},{"$f":"RANK(M22,$M$22:$M$25)","v":{"$error":"#N/A"}},{"$f":"IF(AND(ValveData[[#This Row],[Cavitation Adapter]]=\"None\",ValveData[[#This Row],[Cv OK?]]=\"Yes\"),\"Yes\",\"No\")","v":"No"},{"$f":"IF(AND(ValveData[[#This Row],[Cv OK?]]=\"Yes\",ValveData[[#This Row],[Minimum Cavitation Index]]>2,ValveData[[#This Row],[Index Ranking]]=1),\"Yes\",\"No\")","v":{"$error":"#N/A"}},75,230]
["HFV-xxx-200-2","2\"",2,"CA172",38.700000000000003,30.3,{"$f":"ValveData[[#This Row],[Cv]]*SQRT((Interface!$E$34-Interface!$E$35)/Calculations!$B$3)","v":{"$error":"#N/A"}},{"$f":"ValveData[[#This Row],[Cv]]*63.3*(1-((Interface!$E$34-Interface!$E$35)/(1.944*(Interface!$E$34+14.7))))*SQRT((Interface!$E$34-Interface!$E$35)*Calculations!$B$9)","v":0},{"$f":"IF(ValveData[[#This Row],[Cavitation Adapter]]=\"None\",\"N/A\",2.43*(Calculations!$B$5/ValveData[[#This Row],[Cavitation Adapter Cv]])^2+Interface!$E$35)","v":{"$error":"#VALUE!"}},{"$f":"IF(ValveData[[#This Row],[Cv]]>Calculations!$B$10,\"Yes\",\"No\")","v":"No"},{"$f":"IF(D23=\"None\",\"N/A\",(Interface!$E$34-(Calculations!$B$4-14.7))/(Interface!$E$34-ValveData[[#This Row],[Intermediate Pressure (psia)]]))","v":{"$error":"#N/A"}},{"$f":"IF(D23=\"None\",\"N/A\",(ValveData[[#This Row],[Intermediate Pressure (psia)]]-(Calculations!$B$4-14.7))/(ValveData[[#This Row],[Intermediate Pressure (psia)]]-Interface!$E$35))","v":{"$error":"#VALUE!"}},{"$f":"IF(AND(ValveData[[#This Row],[Valve Cavitation Index]]>2,ValveData[[#This Row],[Adapter Cavitation Index]]>2),MIN(ValveData[[#This Row],[Valve Cavitation Index]:[Adapter Cavitation Index]]),0)","v":{"$error":"#N/A"}},{"$f":"RANK(M23,$M$22:$M$25)","v":{"$error":"#N/A"}},{"$f":"IF(AND(ValveData[[#This Row],[Cavitation Adapter]]=\"None\",ValveData[[#This Row],[Cv OK?]]=\"Yes\"),\"Yes\",\"No\")","v":"No"},{"$f":"IF(AND(ValveData[[#This Row],[Cv OK?]]=\"Yes\",ValveData[[#This Row],[Minimum Cavitation Index]]>2,ValveData[[#This Row],[Index Ranking]]=1),\"Yes\",\"No\")","v":{"$error":"#N/A"}},75,230]
["HFV-xxx-200-1","2\"",2,"CA171",52.3,35.299999999999997,{"$f":"ValveData[[#This Row],[Cv]]*SQRT((Interface!$E$34-Interface!$E$35)/Calculations!$B$3)","v":{"$error":"#N/A"}},{"$f":"ValveData[[#This Row],[Cv]]*63.3*(1-((Interface!$E$34-Interface!$E$35)/(1.944*(Interface!$E$34+14.7))))*SQRT((Interface!$E$34-Interface!$E$35)*Calculations!$B$9)","v":0},{"$f":"IF(ValveData[[#This Row],[Cavitation Adapter]]=\"None\",\"N/A\",2.43*(Calculations!$B$5/ValveData[[#This Row],[Cavitation Adapter Cv]])^2+Interface!$E$35)","v":{"$error":"#VALUE!"}},{"$f":"IF(ValveData[[#This Row],[Cv]]>Calculations!$B$10,\"Yes\",\"No\")","v":"No"},{"$f":"IF(D24=\"None\",\"N/A\",(Interface!$E$34-(Calculations!$B$4-14.7))/(Interface!$E$34-ValveData[[#This Row],[Intermediate Pressure (psia)]]))","v":{"$error":"#N/A"}},{"$f":"IF(D24=\"None\",\"N/A\",(ValveData[[#This Row],[Intermediate Pressure (psia)]]-(Calculations!$B$4-14.7))/(ValveData[[#This Row],[Intermediate Pressure (psia)]]-Interface!$E$35))","v":{"$error":"#VALUE!"}},{"$f":"IF(AND(ValveData[[#This Row],[Valve Cavitation Index]]>2,ValveData[[#This Row],[Adapter Cavitation Index]]>2),MIN(ValveData[[#This Row],[Valve Cavitation Index]:[Adapter Cavitation Index]]),0)","v":{"$error":"#N/A"}},{"$error":"#N/A"},{"$f":"IF(AND(ValveData[[#This Row],[Cavitation Adapter]]=\"None\",ValveData[[#This Row],[Cv OK?]]=\"Yes\"),\"Yes\",\"No\")","v":"No"},{"$f":"IF(AND(ValveData[[#This Row],[Cv OK?]]=\"Yes\",ValveData[[#This Row],[Minimum Cavitation Index]]>2,ValveData[[#This Row],[Index Ranking]]=1),\"Yes\",\"No\")","v":{"$error":"#N/A"}},75,230]
["HFV-xxx-200-X","2\"",2,"None","N/A",42,{"$f":"ValveData[[#This Row],[Cv]]*SQRT((Interface!$E$34-Interface!$E$35)/Calculations!$B$3)","v":{"$error":"#N/A"}},{"$f":"ValveData[[#This Row],[Cv]]*63.3*(1-((Interface!$E$34-Interface!$E$35)/(1.944*(Interface!$E$34+14.7))))*SQRT((Interface!$E$34-Interface!$E$35)*Calculations!$B$9)","v":0},{"$f":"IF(ValveData[[#This Row],[Cavitation Adapter]]=\"None\",\"N/A\",2.43*(Calculations!$B$5/ValveData[[#This Row],[Cavitation Adapter Cv]])^2+Interface!$E$35)","v":"N/A"},{"$f":"IF(ValveData[[#This Row],[Cv]]>Calculations!$B$10,\"Yes\",\"No\")","v":"No"},{"$f":"IF(D25=\"None\",\"N/A\",(Interface!$E$34-(Calculations!$B$4-14.7))/(Interface!$E$34-ValveData[[#This Row],[Intermediate Pressure (psia)]]))","v":"N/A"},{"$f":"IF(D25=\"None\",\"N/A\",(ValveData[[#This Row],[Intermediate Pressure (psia)]]-(Calculations!$B$4-14.7))/(ValveData[[#This Row],[Intermediate Pressure (psia)]]-Interface!$E$35))","v":"N/A"},{"$f":"IF(AND(ValveData[[#This Row],[Valve Cavitation Index]]>2,ValveData[[#This Row],[Adapter Cavitation Index]]>2),MIN(ValveData[[#This Row],[Valve Cavitation Index]:[Adapter Cavitation Index]]),0)","v":0},0,{"$f":"IF(AND(ValveData[[#This Row],[Cavitation Adapter]]=\"None\",ValveData[[#This Row],[Cv OK?]]=\"Yes\"),\"Yes\",\"No\")","v":"No"},{"$f":"IF(AND(ValveData[[#This Row],[Cv OK?]]=\"Yes\",ValveData[[#This Row],[Minimum Cavitation Index]]>2,ValveData[[#This Row],[Index Ranking]]=1),\"Yes\",\"No\")","v":"No"},75,230]
["HFV-xx1-250-3","2-1/2\"",2.5,"CA183",49,34.1,{"$f":"ValveData[[#This Row],[Cv]]*SQRT((Interface!$E$34-Interface!$E$35)/Calculations!$B$3)","v":{"$error":"#N/A"}},{"$f":"ValveData[[#This Row],[Cv]]*63.3*(1-((Interface!$E$34-Interface!$E$35)/(1.944*(Interface!$E$34+14.7))))*SQRT((Interface!$E$34-Interface!$E$35)*Calculations!$B$9)","v":0},{"$f":"IF(ValveData[[#This Row],[Cavitation Adapter]]=\"None\",\"N/A\",2.43*(Calculations!$B$5/ValveData[[#This Row],[Cavitation Adapter Cv]])^2+Interface!$E$35)","v":{"$error":"#VALUE!"}},{"$f":"IF(ValveData[[#This Row],[Cv]]>Calculations!$B$10,\"Yes\",\"No\")","v":"No"},{"$f":"IF(D26=\"None\",\"N/A\",(Interface!$E$34-(Calculations!$B$4-14.7))/(Interface!$E$34-ValveData[[#This Row],[Intermediate Pressure (psia)]]))","v":{"$error":"#N/A"}},{"$f":"IF(D26=\"None\",\"N/A\",(ValveData[[#This Row],[Intermediate Pressure (psia)]]-(Calculations!$B$4-14.7))/(ValveData[[#This Row],[Intermediate Pressure (psia)]]-Interface!$E$35))","v":{"$error":"#VALUE!"}},{"$f":"IF(AND(ValveData[[#This Row],[Valve Cavitation Index]]>2,ValveData[[#This Row],[Adapter Cavitation Index]]>2),MIN(ValveData[[#This Row],[Valve Cavitation Index]:[Adapter Cavitation Index]]),0)","v":{"$error":"#N/A"}},{"$f":"RANK(M26,$M$26:$M$28)","v":{"$error":"#N/A"}},{"$f":"IF(AND(ValveData[[#This Row],[Cavitation Adapter]]=\"None\",ValveData[[#This Row],[Cv OK?]]=\"Yes\"),\"Yes\",\"No\")","v":"No"},{"$f":"IF(AND(ValveData[[#This Row],[Cv OK?]]=\"Yes\",ValveData[[#This Row],[Minimum Cavitation Index]]>2,ValveData[[#This Row],[Index Ranking]]=1),\"Yes\",\"No\")","v":{"$error":"#N/A"}},0,109]
["HFV-xx1-250-2","2-1/2\"",2.5,"CA182",63,39.4,{"$f":"ValveData[[#This Row],[Cv]]*SQRT((Interface!$E$34-Interface!$E$35)/Calculations!$B$3)","v":{"$error":"#N/A"}},{"$f":"ValveData[[#This Row],[Cv]]*63.3*(1-((Interface!$E$34-Interface!$E$35)/(1.944*(Interface!$E$34+14.7))))*SQRT((Interface!$E$34-Interface!$E$35)*Calculations!$B$9)","v":0},{"$f":"IF(ValveData[[#This Row],[Cavitation Adapter]]=\"None\",\"N/A\",2.43*(Calculations!$B$5/ValveData[[#This Row],[Cavitation Adapter Cv]])^2+Interface!$E$35)","v":{"$error":"#VALUE!"}},{"$f":"IF(ValveData[[#This Row],[Cv]]>Calculations!$B$10,\"Yes\",\"No\")","v":"No"},{"$f":"IF(D27=\"None\",\"N/A\",(Interface!$E$34-(Calculations!$B$4-14.7))/(Interface!$E$34-ValveData[[#This Row],[Intermediate Pressure (psia)]]))","v":{"$error":"#N/A"}},{"$f":"IF(D27=\"None\",\"N/A\",(ValveData[[#This Row],[Intermediate Pressure (psia)]]-(Calculations!$B$4-14.7))/(ValveData[[#This Row],[Intermediate Pressure (psia)]]-Interface!$E$35))","v":{"$error":"#VALUE!"}},{"$f":"IF(AND(ValveData[[#This Row],[Valve Cavitation Index]]>2,ValveData[[#This Row],[Adapter Cavitation Index]]>2),MIN(ValveData[[#This Row],[Valve Cavitation Index]:[Adapter Cavitation Index]]),0)","v":{"$error":"#N/A"}},{"$f":"RANK(M27,$M$26:$M$28)","v":{"$error":"#N/A"}},{"$f":"IF(AND(ValveData[[#This Row],[Cavitation Adapter]]=\"None\",ValveData[[#This Row],[Cv OK?]]=\"Yes\"),\"Yes\",\"No\")","v":"No"},{"$f":"IF(AND(ValveData[[#This Row],[Cv OK?]]=\"Yes\",ValveData[[#This Row],[Minimum Cavitation Index]]>2,ValveData[[#This Row],[Index Ranking]]=1),\"Yes\",\"No\")","v":{"$error":"#N/A"}},0,109]
["HFV-xx1-250-1","2-1/2\"",2.5,"CA181",81.7,46.4,{"$f":"ValveData[[#This Row],[Cv]]*SQRT((Interface!$E$34-Interface!$E$35)/Calculations!$B$3)","v":{"$error":"#N/A"}},{"$f":"ValveData[[#This Row],[Cv]]*63.3*(1-((Interface!$E$34-Interface!$E$35)/(1.944*(Interface!$E$34+14.7))))*SQRT((Interface!$E$34-Interface!$E$35)*Calculations!$B$9)","v":0},{"$f":"IF(ValveData[[#This Row],[Cavitation Adapter]]=\"None\",\"N/A\",2.43*(Calculations!$B$5/ValveData[[#This Row],[Cavitation Adapter Cv]])^2+Interface!$E$35)","v":{"$error":"#VALUE!"}},{"$f":"IF(ValveData[[#This Row],[Cv]]>Calculations!$B$10,\"Yes\",\"No\")","v":"No"},{"$f":"IF(D28=\"None\",\"N/A\",(Interface!$E$34-(Calculations!$B$4-14.7))/(Interface!$E$34-ValveData[[#This Row],[Intermediate Pressure (psia)]]))","v":{"$error":"#N/A"}},{"$f":"IF(D28=\"None\",\"N/A\",(ValveData[[#This Row],[Intermediate Pressure (psia)]]-(Calculations!$B$4-14.7))/(ValveData[[#This Row],[Intermediate Pressure (psia)]]-Interface!$E$35))","v":{"$error":"#VALUE!"}},{"$f":"IF(AND(ValveData[[#This Row],[Valve Cavitation Index]]>2,ValveData[[#This Row],[Adapter Cavitation Index]]>2),MIN(ValveData[[#This Row],[Valve Cavitation Index]:[Adapter Cavitation Index]]),0)","v":{"$error":"#N/A"}},{"$error":"#N/A"},{"$f":"IF(AND(ValveData[[#This Row],[Cavitation Adapter]]=\"None\",ValveData[[#This Row],[Cv OK?]]=\"Yes\"),\"Yes\",\"No\")","v":"No"},{"$f":"IF(AND(ValveData[[#This Row],[Cv OK?]]=\"Yes\",ValveData[[#This Row],[Minimum Cavitation Index]]>2,ValveData[[#This Row],[Index Ranking]]=1),\"Yes\",\"No\")","v":{"$error":"#N/A"}},0,109]
["HFV-xx3-250-3","2-1/2\"",2.5,"CA187",49,34.1,{"$f":"ValveData[[#This Row],[Cv]]*SQRT((Interface!$E$34-Interface!$E$35)/Calculations!$B$3)","v":{"$error":"#N/A"}},{"$f":"ValveData[[#This Row],[Cv]]*63.3*(1-((Interface!$E$34-Interface!$E$35)/(1.944*(Interface!$E$34+14.7))))*SQRT((Interface!$E$34-Interface!$E$35)*Calculations!$B$9)","v":0},{"$f":"IF(ValveData[[#This Row],[Cavitation Adapter]]=\"None\",\"N/A\",2.43*(Calculations!$B$5/ValveData[[#This Row],[Cavitation Adapter Cv]])^2+Interface!$E$35)","v":{"$error":"#VALUE!"}},{"$f":"IF(ValveData[[#This Row],[Cv]]>Calculations!$B$10,\"Yes\",\"No\")","v":"No"},{"$f":"IF(D29=\"None\",\"N/A\",(Interface!$E$34-(Calculations!$B$4-14.7))/(Interface!$E$34-ValveData[[#This Row],[Intermediate Pressure (psia)]]))","v":{"$error":"#N/A"}},{"$f":"IF(D29=\"None\",\"N/A\",(ValveData[[#This Row],[Intermediate Pressure (psia)]]-(Calculations!$B$4-14.7))/(ValveData[[#This Row],[Intermediate Pressure (psia)]]-Interface!$E$35))","v":{"$error":"#VALUE!"}},{"$f":"IF(AND(ValveData[[#This Row],[Valve Cavitation Index]]>2,ValveData[[#This Row],[Adapter Cavitation Index]]>2),MIN(ValveData[[#This Row],[Valve Cavitation Index]:[Adapter Cavitation Index]]),0)","v":{"$error":"#N/A"}},{"$f":"RANK(M29,$M$29:$M$31)","v":{"$error":"#N/A"}},{"$f":"IF(AND(ValveData[[#This Row],[Cavitation Adapter]]=\"None\",ValveData[[#This Row],[Cv OK?]]=\"Yes\"),\"Yes\",\"No\")","v":"No"},{"$f":"IF(AND(ValveData[[#This Row],[Cv OK?]]=\"Yes\",ValveData[[#This Row],[Minimum Cavitation Index]]>2,ValveData[[#This Row],[Index Ranking]]=1),\"Yes\",\"No\")","v":{"$error":"#N/A"}},0,109]
["HFV-xx3-250-2","2-1/2\"",2.5,"CA186",63,39.4,{"$f":"ValveData[[#This Row],[Cv]]*SQRT((Interface!$E$34-Interface!$E$35)/Calculations!$B$3)","v":{"$error":"#N/A"}},{"$f":"ValveData[[#This Row],[Cv]]*63.3*(1-((Interface!$E$34-Interface!$E$35)/(1.944*(Interface!$E$34+14.7))))*SQRT((Interface!$E$34-Interface!$E$35)*Calculations!$B$9)","v":0},{"$f":"IF(ValveData[[#This Row],[Cavitation Adapter]]=\"None\",\"N/A\",2.43*(Calculations!$B$5/ValveData[[#This Row],[Cavitation Adapter Cv]])^2+Interface!$E$35)","v":{"$error":"#VALUE!"}},{"$f":"IF(ValveData[[#This Row],[Cv]]>Calculations!$B$10,\"Yes\",\"No\")","v":"No"},{"$f":"IF(D30=\"None\",\"N/A\",(Interface!$E$34-(Calculations!$B$4-14.7))/(Interface!$E$34-ValveData[[#This Row],[Intermediate Pressure (psia)]]))","v":{"$error":"#N/A"}},{"$f":"IF(D30=\"None\",\"N/A\",(ValveData[[#This Row],[Intermediate Pressure (psia)]]-(Calculations!$B$4-14.7))/(ValveData[[#This Row],[Intermediate Pressure (psia)]]-Interface!$E$35))","v":{"$error":"#VALUE!"}},{"$f":"IF(AND(ValveData[[#This Row],[Valve Cavitation Index]]>2,ValveData[[#This Row],[Adapter Cavitation Index]]>2),MIN(ValveData[[#This Row],[Valve Cavitation Index]:[Adapter Cavitation Index]]),0)","v":{"$error":"#N/A"}},{"$f":"RANK(M30,$M$29:$M$31)","v":{"$error":"#N/A"}},{"$f":"IF(AND(ValveData[[#This Row],[Cavitation Adapter]]=\"None\",ValveData[[#This Row],[Cv OK?]]=\"Yes\"),\"Yes\",\"No\")","v":"No"},{"$f":"IF(AND(ValveData[[#This Row],[Cv OK?]]=\"Yes\",ValveData[[#This Row],[Minimum Cavitation Index]]>2,ValveData[[#This Row],[Index Ranking]]=1),\"Yes\",\"No\")","v":{"$error":"#N/A"}},0,109]
["HFV-xx3-250-1","2-1/2\"",2.5,"CA185",81.7,46.4,{"$f":"ValveData[[#This Row],[Cv]]*SQRT((Interface!$E$34-Interface!$E$35)/Calculations!$B$3)","v":{"$error":"#N/A"}},{"$f":"ValveData[[#This Row],[Cv]]*63.3*(1-((Interface!$E$34-Interface!$E$35)/(1.944*(Interface!$E$34+14.7))))*SQRT((Interface!$E$34-Interface!$E$35)*Calculations!$B$9)","v":0},{"$f":"IF(ValveData[[#This Row],[Cavitation Adapter]]=\"None\",\"N/A\",2.43*(Calculations!$B$5/ValveData[[#This Row],[Cavitation Adapter Cv]])^2+Interface!$E$35)","v":{"$error":"#VALUE!"}},{"$f":"IF(ValveData[[#This Row],[Cv]]>Calculations!$B$10,\"Yes\",\"No\")","v":"No"},{"$f":"IF(D31=\"None\",\"N/A\",(Interface!$E$34-(Calculations!$B$4-14.7))/(Interface!$E$34-ValveData[[#This Row],[Intermediate Pressure (psia)]]))","v":{"$error":"#N/A"}},{"$f":"IF(D31=\"None\",\"N/A\",(ValveData[[#This Row],[Intermediate Pressure (psia)]]-(Calculations!$B$4-14.7))/(ValveData[[#This Row],[Intermediate Pressure (psia)]]-Interface!$E$35))","v":{"$error":"#VALUE!"}},{"$f":"IF(AND(ValveData[[#This Row],[Valve Cavitation Index]]>2,ValveData[[#This Row],[Adapter Cavitation Index]]>2),MIN(ValveData[[#This Row],[Valve Cavitation Index]:[Adapter Cavitation Index]]),0)","v":{"$error":"#N/A"}},{"$error":"#N/A"},{"$f":"IF(AND(ValveData[[#This Row],[Cavitation Adapter]]=\"None\",ValveData[[#This Row],[Cv OK?]]=\"Yes\"),\"Yes\",\"No\")","v":"No"},{"$f":"IF(AND(ValveData[[#This Row],[Cv OK?]]=\"Yes\",ValveData[[#This Row],[Minimum Cavitation Index]]>2,ValveData[[#This Row],[Index Ranking]]=1),\"Yes\",\"No\")","v":{"$error":"#N/A"}},0,109]
["HFV-xxx-250-X","2-1/2\"",2.5,"None","N/A",70,{"$f":"ValveData[[#This Row],[Cv]]*SQRT((Interface!$E$34-Interface!$E$35)/Calculations!$B$3)","v":{"$error":"#N/A"}},{"$f":"ValveData[[#This Row],[Cv]]*63.3*(1-((Interface!$E$34-Interface!$E$35)/(1.944*(Interface!$E$34+14.7))))*SQRT((Interface!$E$34-Interface!$E$35)*Calculations!$B$9)","v":0},{"$f":"IF(ValveData[[#This Row],[Cavitation Adapter]]=\"None\",\"N/A\",2.43*(Calculations!$B$5/ValveData[[#This Row],[Cavitation Adapter Cv]])^2+Interface!$E$35)","v":"N/A"},{"$f":"IF(ValveData[[#This Row],[Cv]]>Calculations!$B$10,\"Yes\",\"No\")","v":"No"},{"$f":"IF(D32=\"None\",\"N/A\",(Interface!$E$34-(Calculations!$B$4-14.7))/(Interface!$E$34-ValveData[[#This Row],[Intermediate Pressure (psia)]]))","v":"N/A"},{"$f":"IF(D32=\"None\",\"N/A\",(ValveData[[#This Row],[Intermediate Pressure (psia)]]-(Calculations!$B$4-14.7))/(ValveData[[#This Row],[Intermediate Pressure (psia)]]-Interface!$E$35))","v":"N/A"},{"$f":"IF(AND(ValveData[[#This Row],[Valve Cavitation Index]]>2,ValveData[[#This Row],[Adapter Cavitation Index]]>2),MIN(ValveData[[#This Row],[Valve Cavitation Index]:[Adapter Cavitation Index]]),0)","v":0},0,{"$f":"IF(AND(ValveData[[#This Row],[Cavitation Adapter]]=\"None\",ValveData[[#This Row],[Cv OK?]]=\"Yes\"),\"Yes\",\"No\")","v":"No"},{"$f":"IF(AND(ValveData[[#This Row],[Cv OK?]]=\"Yes\",ValveData[[#This Row],[Minimum Cavitation Index]]>2,ValveData[[#This Row],[Index Ranking]]=1),\"Yes\",\"No\")","v":"No"},0,109]
["HFV-xxx-300-X","3\"",3,"None","N/A",110,{"$f":"ValveData[[#This Row],[Cv]]*SQRT((Interface!$E$34-Interface!$E$35)/Calculations!$B$3)","v":{"$error":"#N/A"}},{"$f":"ValveData[[#This Row],[Cv]]*63.3*(1-((Interface!$E$34-Interface!$E$35)/(1.944*(Interface!$E$34+14.7))))*SQRT((Interface!$E$34-Interface!$E$35)*Calculations!$B$9)","v":0},{"$f":"IF(ValveData[[#This Row],[Cavitation Adapter]]=\"None\",\"N/A\",2.43*(Calculations!$B$5/ValveData[[#This Row],[Cavitation Adapter Cv]])^2+Interface!$E$35)","v":"N/A"},{"$f":"IF(ValveData[[#This Row],[Cv]]>Calculations!$B$10,\"Yes\",\"No\")","v":"No"},{"$f":"IF(D33=\"None\",\"N/A\",(Interface!$E$34-(Calculations!$B$4-14.7))/(Interface!$E$34-ValveData[[#This Row],[Intermediate Pressure (psia)]]))","v":"N/A"},{"$f":"IF(D33=\"None\",\"N/A\",(ValveData[[#This Row],[Intermediate Pressure (psia)]]-(Calculations!$B$4-14.7))/(ValveData[[#This Row],[Intermediate Pressure (psia)]]-Interface!$E$35))","v":"N/A"},{"$f":"IF(AND(ValveData[[#This Row],[Valve Cavitation Index]]>2,ValveData[[#This Row],[Adapter Cavitation Index]]>2),MIN(ValveData[[#This Row],[Valve Cavitation Index]:[Adapter Cavitation Index]]),0)","v":0},0,{"$f":"IF(AND(ValveData[[#This Row],[Cavitation Adapter]]=\"None\",ValveData[[#This Row],[Cv OK?]]=\"Yes\"),\"Yes\",\"No\")","v":"No"},{"$f":"IF(AND(ValveData[[#This Row],[Cv OK?]]=\"Yes\",ValveData[[#This Row],[Minimum Cavitation Index]]>2,ValveData[[#This Row],[Index Ranking]]=1),\"Yes\",\"No\")","v":"No"},0,80]
["HFV-xxx-400-X","4\"",4,"None","N/A",170,{"$f":"ValveData[[#This Row],[Cv]]*SQRT((Interface!$E$34-Interface!$E$35)/Calculations!$B$3)","v":{"$error":"#N/A"}},{"$f":"ValveData[[#This Row],[Cv]]*63.3*(1-((Interface!$E$34-Interface!$E$35)/(1.944*(Interface!$E$34+14.7))))*SQRT((Interface!$E$34-Interface!$E$35)*Calculations!$B$9)","v":0},{"$f":"IF(ValveData[[#This Row],[Cavitation Adapter]]=\"None\",\"N/A\",2.43*(Calculations!$B$5/ValveData[[#This Row],[Cavitation Adapter Cv]])^2+Interface!$E$35)","v":"N/A"},{"$f":"IF(ValveData[[#This Row],[Cv]]>Calculations!$B$10,\"Yes\",\"No\")","v":"No"},{"$f":"IF(D34=\"None\",\"N/A\",(Interface!$E$34-(Calculations!$B$4-14.7))/(Interface!$E$34-ValveData[[#This Row],[Intermediate Pressure (psia)]]))","v":"N/A"},{"$f":"IF(D34=\"None\",\"N/A\",(ValveData[[#This Row],[Intermediate Pressure (psia)]]-(Calculations!$B$4-14.7))/(ValveData[[#This Row],[Intermediate Pressure (psia)]]-Interface!$E$35))","v":"N/A"},{"$f":"IF(AND(ValveData[[#This Row],[Valve Cavitation Index]]>2,ValveData[[#This Row],[Adapter Cavitation Index]]>2),MIN(ValveData[[#This Row],[Valve Cavitation Index]:[Adapter Cavitation Index]]),0)","v":0},0,{"$f":"IF(AND(ValveData[[#This Row],[Cavitation Adapter]]=\"None\",ValveData[[#This Row],[Cv OK?]]=\"Yes\"),\"Yes\",\"No\")","v":"No"},{"$f":"IF(AND(ValveData[[#This Row],[Cv OK?]]=\"Yes\",ValveData[[#This Row],[Minimum Cavitation Index]]>2,ValveData[[#This Row],[Index Ranking]]=1),\"Yes\",\"No\")","v":"No"},0,43]
["599-03072","1/2\"",0.5,"None","N/A",1,{"$f":"ValveData[[#This Row],[Cv]]*SQRT((Interface!$E$34-Interface!$E$35)/Calculations!$B$3)","v":{"$error":"#N/A"}},{"$f":"ValveData[[#This Row],[Cv]]*63.3*(1-((Interface!$E$34-Interface!$E$35)/(1.944*(Interface!$E$34+14.7))))*SQRT((Interface!$E$34-Interface!$E$35)*Calculations!$B$9)","v":0},{"$f":"IF(ValveData[[#This Row],[Cavitation Adapter]]=\"None\",\"N/A\",2.43*(Calculations!$B$5/ValveData[[#This Row],[Cavitation Adapter Cv]])^2+Interface!$E$35)","v":"N/A"},{"$f":"IF(ValveData[[#This Row],[Cv]]>Calculations!$B$10,\"Yes\",\"No\")","v":"No"},{"$f":"IF(D35=\"None\",\"N/A\",(Interface!$E$34-(Calculations!$B$4-14.7))/(Interface!$E$34-ValveData[[#This Row],[Intermediate Pressure (psia)]]))","v":"N/A"},{"$f":"IF(D35=\"None\",\"N/A\",(ValveData[[#This Row],[Intermediate Pressure (psia)]]-(Calculations!$B$4-14.7))/(ValveData[[#This Row],[Intermediate Pressure (psia)]]-Interface!$E$35))","v":"N/A"},{"$f":"IF(AND(ValveData[[#This Row],[Valve Cavitation Index]]>2,ValveData[[#This Row],[Adapter Cavitation Index]]>2),MIN(ValveData[[#This Row],[Valve Cavitation Index]:[Adapter Cavitation Index]]),0)","v":0},0,{"$f":"IF(AND(ValveData[[#This Row],[Cavitation Adapter]]=\"None\",ValveData[[#This Row],[Cv OK?]]=\"Yes\"),\"Yes\",\"No\")","v":"No"},{"$f":"IF(AND(ValveData[[#This Row],[Cv OK?]]=\"Yes\",ValveData[[#This Row],[Minimum Cavitation Index]]>2,ValveData[[#This Row],[Index Ranking]]=1),\"Yes\",\"No\")","v":"No"},250,250]
["599-03073","1/2\"",0.5,"None","N/A",1.6,{"$f":"ValveData[[#This Row],[Cv]]*SQRT((Interface!$E$34-Interface!$E$35)/Calculations!$B$3)","v":{"$error":"#N/A"}},{"$f":"ValveData[[#This Row],[Cv]]*63.3*(1-((Interface!$E$34-Interface!$E$35)/(1.944*(Interface!$E$34+14.7))))*SQRT((Interface!$E$34-Interface!$E$35)*Calculations!$B$9)","v":0},{"$f":"IF(ValveData[[#This Row],[Cavitation Adapter]]=\"None\",\"N/A\",2.43*(Calculations!$B$5/ValveData[[#This Row],[Cavitation Adapter Cv]])^2+Interface!$E$35)","v":"N/A"},{"$f":"IF(ValveData[[#This Row],[Cv]]>Calculations!$B$10,\"Yes\",\"No\")","v":"No"},{"$f":"IF(D36=\"None\",\"N/A\",(Interface!$E$34-(Calculations!$B$4-14.7))/(Interface!$E$34-ValveData[[#This Row],[Intermediate Pressure (psia)]]))","v":"N/A"},{"$f":"IF(D36=\"None\",\"N/A\",(ValveData[[#This Row],[Intermediate Pressure (psia)]]-(Calculations!$B$4-14.7))/(ValveData[[#This Row],[Intermediate Pressure (psia)]]-Interface!$E$35))","v":"N/A"},{"$f":"IF(AND(ValveData[[#This Row],[Valve Cavitation Index]]>2,ValveData[[#This Row],[Adapter Cavitation Index]]>2),MIN(ValveData[[#This Row],[Valve Cavitation Index]:[Adapter Cavitation Index]]),0)","v":0},0,{"$f":"IF(AND(ValveData[[#This Row],[Cavitation Adapter]]=\"None\",ValveData[[#This Row],[Cv OK?]]=\"Yes\"),\"Yes\",\"No\")","v":"No"},{"$f":"IF(AND(ValveData[[#This Row],[Cv OK?]]=\"Yes\",ValveData[[#This Row],[Minimum Cavitation Index]]>2,ValveData[[#This Row],[Index Ranking]]=1),\"Yes\",\"No\")","v":"No"},250,250]
["599-03074","1/2\"",0.5,"None","N/A",2.5,{"$f":"ValveData[[#This Row],[Cv]]*SQRT((Interface!$E$34-Interface!$E$35)/Calculations!$B$3)","v":{"$error":"#N/A"}},{"$f":"ValveData[[#This Row],[Cv]]*63.3*(1-((Interface!$E$34-Interface!$E$35)/(1.944*(Interface!$E$34+14.7))))*SQRT((Interface!$E$34-Interface!$E$35)*Calculations!$B$9)","v":0},{"$f":"IF(ValveData[[#This Row],[Cavitation Adapter]]=\"None\",\"N/A\",2.43*(Calculations!$B$5/ValveData[[#This Row],[Cavitation Adapter Cv]])^2+Interface!$E$35)","v":"N/A"},{"$f":"IF(ValveData[[#This Row],[Cv]]>Calculations!$B$10,\"Yes\",\"No\")","v":"No"},{"$f":"IF(D37=\"None\",\"N/A\",(Interface!$E$34-(Calculations!$B$4-14.7))/(Interface!$E$34-ValveData[[#This Row],[Intermediate Pressure (psia)]]))","v":"N/A"},{"$f":"IF(D37=\"None\",\"N/A\",(ValveData[[#This Row],[Intermediate Pressure (psia)]]-(Calculations!$B$4-14.7))/(ValveData[[#This Row],[Intermediate Pressure (psia)]]-Interface!$E$35))","v":"N/A"},{"$f":"IF(AND(ValveData[[#This Row],[Valve Cavitation Index]]>2,ValveData[[#This Row],[Adapter Cavitation Index]]>2),MIN(ValveData[[#This Row],[Valve Cavitation Index]:[Adapter Cavitation Index]]),0)","v":0},0,{"$f":"IF(AND(ValveData[[#This Row],[Cavitation Adapter]]=\"None\",ValveData[[#This Row],[Cv OK?]]=\"Yes\"),\"Yes\",\"No\")","v":"No"},{"$f":"IF(AND(ValveData[[#This Row],[Cv OK?]]=\"Yes\",ValveData[[#This Row],[Minimum Cavitation Index]]>2,ValveData[[#This Row],[Index Ranking]]=1),\"Yes\",\"No\")","v":"No"},250,250]
["599-03075","1/2\"",0.5,"None","N/A",4,{"$f":"ValveData[[#This Row],[Cv]]*SQRT((Interface!$E$34-Interface!$E$35)/Calculations!$B$3)","v":{"$error":"#N/A"}},{"$f":"ValveData[[#This Row],[Cv]]*63.3*(1-((Interface!$E$34-Interface!$E$35)/(1.944*(Interface!$E$34+14.7))))*SQRT((Interface!$E$34-Interface!$E$35)*Calculations!$B$9)","v":0},{"$f":"IF(ValveData[[#This Row],[Cavitation Adapter]]=\"None\",\"N/A\",2.43*(Calculations!$B$5/ValveData[[#This Row],[Cavitation Adapter Cv]])^2+Interface!$E$35)","v":"N/A"},{"$f":"IF(ValveData[[#This Row],[Cv]]>Calculations!$B$10,\"Yes\",\"No\")","v":"No"},{"$f":"IF(D38=\"None\",\"N/A\",(Interface!$E$34-(Calculations!$B$4-14.7))/(Interface!$E$34-ValveData[[#This Row],[Intermediate Pressure (psia)]]))","v":"N/A"},{"$f":"IF(D38=\"None\",\"N/A\",(ValveData[[#This Row],[Intermediate Pressure (psia)]]-(Calculations!$B$4-14.7))/(ValveData[[#This Row],[Intermediate Pressure (psia)]]-Interface!$E$35))","v":"N/A"},{"$f":"IF(AND(ValveData[[#This Row],[Valve Cavitation Index]]>2,ValveData[[#This Row],[Adapter Cavitation Index]]>2),MIN(ValveData[[#This Row],[Valve Cavitation Index]:[Adapter Cavitation Index]]),0)","v":0},0,{"$f":"IF(AND(ValveData[[#This Row],[Cavitation Adapter]]=\"None\",ValveData[[#This Row],[Cv OK?]]=\"Yes\"),\"Yes\",\"No\")","v":"No"},{"$f":"IF(AND(ValveData[[#This Row],[Cv OK?]]=\"Yes\",ValveData[[#This Row],[Minimum Cavitation Index]]>2,ValveData[[#This Row],[Index Ranking]]=1),\"Yes\",\"No\")","v":"No"},250,250]
["599-03076","3/4\"",0.75,"None","N/A",6.3,{"$f":"ValveData[[#This Row],[Cv]]*SQRT((Interface!$E$34-Interface!$E$35)/Calculations!$B$3)","v":{"$error":"#N/A"}},{"$f":"ValveData[[#This Row],[Cv]]*63.3*(1-((Interface!$E$34-Interface!$E$35)/(1.944*(Interface!$E$34+14.7))))*SQRT((Interface!$E$34-Interface!$E$35)*Calculations!$B$9)","v":0},{"$f":"IF(ValveData[[#This Row],[Cavitation Adapter]]=\"None\",\"N/A\",2.43*(Calculations!$B$5/ValveData[[#This Row],[Cavitation Adapter Cv]])^2+Interface!$E$35)","v":"N/A"},{"$f":"IF(ValveData[[#This Row],[Cv]]>Calculations!$B$10,\"Yes\",\"No\")","v":"No"},{"$f":"IF(D39=\"None\",\"N/A\",(Interface!$E$34-(Calculations!$B$4-14.7))/(Interface!$E$34-ValveData[[#This Row],[Intermediate Pressure (psia)]]))","v":"N/A"},{"$f":"IF(D39=\"None\",\"N/A\",(ValveData[[#This Row],[Intermediate Pressure (psia)]]-(Calculations!$B$4-14.7))/(ValveData[[#This Row],[Intermediate Pressure (psia)]]-Interface!$E$35))","v":"N/A"},{"$f":"IF(AND(ValveData[[#This Row],[Valve Cavitation Index]]>2,ValveData[[#This Row],[Adapter Cavitation Index]]>2),MIN(ValveData[[#This Row],[Valve Cavitation Index]:[Adapter Cavitation Index]]),0)","v":0},0,{"$f":"IF(AND(ValveData[[#This Row],[Cavitation Adapter]]=\"None\",ValveData[[#This Row],[Cv OK?]]=\"Yes\"),\"Yes\",\"No\")","v":"No"},{"$f":"IF(AND(ValveData[[#This Row],[Cv OK?]]=\"Yes\",ValveData[[#This Row],[Minimum Cavitation Index]]>2,ValveData[[#This Row],[Index Ranking]]=1),\"Yes\",\"No\")","v":"No"},250,250]
["599-03077","1\"",1,"None","N/A",10,{"$f":"ValveData[[#This Row],[Cv]]*SQRT((Interface!$E$34-Interface!$E$35)/Calculations!$B$3)","v":{"$error":"#N/A"}},{"$f":"ValveData[[#This Row],[Cv]]*63.3*(1-((Interface!$E$34-Interface!$E$35)/(1.944*(Interface!$E$34+14.7))))*SQRT((Interface!$E$34-Interface!$E$35)*Calculations!$B$9)","v":0},{"$f":"IF(ValveData[[#This Row],[Cavitation Adapter]]=\"None\",\"N/A\",2.43*(Calculations!$B$5/ValveData[[#This Row],[Cavitation Adapter Cv]])^2+Interface!$E$35)","v":"N/A"},{"$f":"IF(ValveData[[#This Row],[Cv]]>Calculations!$B$10,\"Yes\",\"No\")","v":"No"},{"$f":"IF(D40=\"None\",\"N/A\",(Interface!$E$34-(Calculations!$B$4-14.7))/(Interface!$E$34-ValveData[[#This Row],[Intermediate Pressure (psia)]]))","v":"N/A"},{"$f":"IF(D40=\"None\",\"N/A\",(ValveData[[#This Row],[Intermediate Pressure (psia)]]-(Calculations!$B$4-14.7))/(ValveData[[#This Row],[Intermediate Pressure (psia)]]-Interface!$E$35))","v":"N/A"},{"$f":"IF(AND(ValveData[[#This Row],[Valve Cavitation Index]]>2,ValveData[[#This Row],[Adapter Cavitation Index]]>2),MIN(ValveData[[#This Row],[Valve Cavitation Index]:[Adapter Cavitation Index]]),0)","v":0},0,{"$f":"IF(AND(ValveData[[#This Row],[Cavitation Adapter]]=\"None\",ValveData[[#This Row],[Cv OK?]]=\"Yes\"),\"Yes\",\"No\")","v":"No"},{"$f":"IF(AND(ValveData[[#This Row],[Cv OK?]]=\"Yes\",ValveData[[#This Row],[Minimum Cavitation Index]]>2,ValveData[[#This Row],[Index Ranking]]=1),\"Yes\",\"No\")","v":"No"},203,250]
["599-03078","1-1/4\"",1.25,"None","N/A",16,{"$f":"ValveData[[#This Row],[Cv]]*SQRT((Interface!$E$34-Interface!$E$35)/Calculations!$B$3)","v":{"$error":"#N/A"}},{"$f":"ValveData[[#This Row],[Cv]]*63.3*(1-((Interface!$E$34-Interface!$E$35)/(1.944*(Interface!$E$34+14.7))))*SQRT((Interface!$E$34-Interface!$E$35)*Calculations!$B$9)","v":0},{"$f":"IF(ValveData[[#This Row],[Cavitation Adapter]]=\"None\",\"N/A\",2.43*(Calculations!$B$5/ValveData[[#This Row],[Cavitation Adapter Cv]])^2+Interface!$E$35)","v":"N/A"},{"$f":"IF(ValveData[[#This Row],[Cv]]>Calculations!$B$10,\"Yes\",\"No\")","v":"No"},{"$f":"IF(D41=\"None\",\"N/A\",(Interface!$E$34-(Calculations!$B$4-14.7))/(Interface!$E$34-ValveData[[#This Row],[Intermediate Pressure (psia)]]))","v":"N/A"},{"$f":"IF(D41=\"None\",\"N/A\",(ValveData[[#This Row],[Intermediate Pressure (psia)]]-(Calculations!$B$4-14.7))/(ValveData[[#This Row],[Intermediate Pressure (psia)]]-Interface!$E$35))","v":"N/A"},{"$f":"IF(AND(ValveData[[#This Row],[Valve Cavitation Index]]>2,ValveData[[#This Row],[Adapter Cavitation Index]]>2),MIN(ValveData[[#This Row],[Valve Cavitation Index]:[Adapter Cavitation Index]]),0)","v":0},0,{"$f":"IF(AND(ValveData[[#This Row],[Cavitation Adapter]]=\"None\",ValveData[[#This Row],[Cv OK?]]=\"Yes\"),\"Yes\",\"No\")","v":"No"},{"$f":"IF(AND(ValveData[[#This Row],[Cv OK?]]=\"Yes\",ValveData[[#This Row],[Minimum Cavitation Index]]>2,ValveData[[#This Row],[Index Ranking]]=1),\"Yes\",\"No\")","v":"No"},117,250]
["599-03079","1-1/2\"",1.5,"None","N/A",25,{"$f":"ValveData[[#This Row],[Cv]]*SQRT((Interface!$E$34-Interface!$E$35)/Calculations!$B$3)","v":{"$error":"#N/A"}},{"$f":"ValveData[[#This Row],[Cv]]*63.3*(1-((Interface!$E$34-Interface!$E$35)/(1.944*(Interface!$E$34+14.7))))*SQRT((Interface!$E$34-Interface!$E$35)*Calculations!$B$9)","v":0},{"$f":"IF(ValveData[[#This Row],[Cavitation Adapter]]=\"None\",\"N/A\",2.43*(Calculations!$B$5/ValveData[[#This Row],[Cavitation Adapter Cv]])^2+Interface!$E$35)","v":"N/A"},{"$f":"IF(ValveData[[#This Row],[Cv]]>Calculations!$B$10,\"Yes\",\"No\")","v":"No"},{"$f":"IF(D42=\"None\",\"N/A\",(Interface!$E$34-(Calculations!$B$4-14.7))/(Interface!$E$34-ValveData[[#This Row],[Intermediate Pressure (psia)]]))","v":"N/A"},{"$f":"IF(D42=\"None\",\"N/A\",(ValveData[[#This Row],[Intermediate Pressure (psia)]]-(Calculations!$B$4-14.7))/(ValveData[[#This Row],[Intermediate Pressure (psia)]]-Interface!$E$35))","v":"N/A"},{"$f":"IF(AND(ValveData[[#This Row],[Valve Cavitation Index]]>2,ValveData[[#This Row],[Adapter Cavitation Index]]>2),MIN(ValveData[[#This Row],[Valve Cavitation Index]:[Adapter Cavitation Index]]),0)","v":0},0,{"$f":"IF(AND(ValveData[[#This Row],[Cavitation Adapter]]=\"None\",ValveData[[#This Row],[Cv OK?]]=\"Yes\"),\"Yes\",\"No\")","v":"No"},{"$f":"IF(AND(ValveData[[#This Row],[Cv OK?]]=\"Yes\",ValveData[[#This Row],[Minimum Cavitation Index]]>2,ValveData[[#This Row],[Index Ranking]]=1),\"Yes\",\"No\")","v":"No"},73,208]
["599-03080","2\"",2,"None","N/A",40,{"$f":"ValveData[[#This Row],[Cv]]*SQRT((Interface!$E$34-Interface!$E$35)/Calculations!$B$3)","v":{"$error":"#N/A"}},{"$f":"ValveData[[#This Row],[Cv]]*63.3*(1-((Interface!$E$34-Interface!$E$35)/(1.944*(Interface!$E$34+14.7))))*SQRT((Interface!$E$34-Interface!$E$35)*Calculations!$B$9)","v":0},{"$f":"IF(ValveData[[#This Row],[Cavitation Adapter]]=\"None\",\"N/A\",2.43*(Calculations!$B$5/ValveData[[#This Row],[Cavitation Adapter Cv]])^2+Interface!$E$35)","v":"N/A"},{"$f":"IF(ValveData[[#This Row],[Cv]]>Calculations!$B$10,\"Yes\",\"No\")","v":"No"},{"$f":"IF(D43=\"None\",\"N/A\",(Interface!$E$34-(Calculations!$B$4-14.7))/(Interface!$E$34-ValveData[[#This Row],[Intermediate Pressure (psia)]]))","v":"N/A"},{"$f":"IF(D43=\"None\",\"N/A\",(ValveData[[#This Row],[Intermediate Pressure (psia)]]-(Calculations!$B$4-14.7))/(ValveData[[#This Row],[Intermediate Pressure (psia)]]-Interface!$E$35))","v":"N/A"},{"$f":"IF(AND(ValveData[[#This Row],[Valve Cavitation Index]]>2,ValveData[[#This Row],[Adapter Cavitation Index]]>2),MIN(ValveData[[#This Row],[Valve Cavitation Index]:[Adapter Cavitation Index]]),0)","v":0},0,{"$f":"IF(AND(ValveData[[#This Row],[Cavitation Adapter]]=\"None\",ValveData[[#This Row],[Cv OK?]]=\"Yes\"),\"Yes\",\"No\")","v":"No"},{"$f":"IF(AND(ValveData[[#This Row],[Cv OK?]]=\"Yes\",ValveData[[#This Row],[Minimum Cavitation Index]]>2,ValveData[[#This Row],[Index Ranking]]=1),\"Yes\",\"No\")","v":"No"},44,126]
["599-06050","2-1/2\"",2.5,"None","N/A",63,{"$f":"ValveData[[#This Row],[Cv]]*SQRT((Interface!$E$34-Interface!$E$35)/Calculations!$B$3)","v":{"$error":"#N/A"}},{"$f":"ValveData[[#This Row],[Cv]]*63.3*(1-((Interface!$E$34-Interface!$E$35)/(1.944*(Interface!$E$34+14.7))))*SQRT((Interface!$E$34-Interface!$E$35)*Calculations!$B$9)","v":0},{"$f":"IF(ValveData[[#This Row],[Cavitation Adapter]]=\"None\",\"N/A\",2.43*(Calculations!$B$5/ValveData[[#This Row],[Cavitation Adapter Cv]])^2+Interface!$E$35)","v":"N/A"},{"$f":"IF(ValveData[[#This Row],[Cv]]>Calculations!$B$10,\"Yes\",\"No\")","v":"No"},{"$f":"IF(D44=\"None\",\"N/A\",(Interface!$E$34-(Calculations!$B$4-14.7))/(Interface!$E$34-ValveData[[#This Row],[Intermediate Pressure (psia)]]))","v":"N/A"},{"$f":"IF(D44=\"None\",\"N/A\",(ValveData[[#This Row],[Intermediate Pressure (psia)]]-(Calculations!$B$4-14.7))/(ValveData[[#This Row],[Intermediate Pressure (psia)]]-Interface!$E$35))","v":"N/A"},{"$f":"IF(AND(ValveData[[#This Row],[Valve Cavitation Index]]>2,ValveData[[#This Row],[Adapter Cavitation Index]]>2),MIN(ValveData[[#This Row],[Valve Cavitation Index]:[Adapter Cavitation Index]]),0)","v":0},0,{"$f":"IF(AND(ValveData[[#This Row],[Cavitation Adapter]]=\"None\",ValveData[[#This Row],[Cv OK?]]=\"Yes\"),\"Yes\",\"No\")","v":"No"},{"$f":"IF(AND(ValveData[[#This Row],[Cv OK?]]=\"Yes\",ValveData[[#This Row],[Minimum Cavitation Index]]>2,ValveData[[#This Row],[Index Ranking]]=1),\"Yes\",\"No\")","v":"No"},34,97]
["599-06051","3\"",3,"None","N/A",100,{"$f":"ValveData[[#This Row],[Cv]]*SQRT((Interface!$E$34-Interface!$E$35)/Calculations!$B$3)","v":{"$error":"#N/A"}},{"$f":"ValveData[[#This Row],[Cv]]*63.3*(1-((Interface!$E$34-Interface!$E$35)/(1.944*(Interface!$E$34+14.7))))*SQRT((Interface!$E$34-Interface!$E$35)*Calculations!$B$9)","v":0},{"$f":"IF(ValveData[[#This Row],[Cavitation Adapter]]=\"None\",\"N/A\",2.43*(Calculations!$B$5/ValveData[[#This Row],[Cavitation Adapter Cv]])^2+Interface!$E$35)","v":"N/A"},{"$f":"IF(ValveData[[#This Row],[Cv]]>Calculations!$B$10,\"Yes\",\"No\")","v":"No"},{"$f":"IF(D45=\"None\",\"N/A\",(Interface!$E$34-(Calculations!$B$4-14.7))/(Interface!$E$34-ValveData[[#This Row],[Intermediate Pressure (psia)]]))","v":"N/A"},{"$f":"IF(D45=\"None\",\"N/A\",(ValveData[[#This Row],[Intermediate Pressure (psia)]]-(Calculations!$B$4-14.7))/(ValveData[[#This Row],[Intermediate Pressure (psia)]]-Interface!$E$35))","v":"N/A"},{"$f":"IF(AND(ValveData[[#This Row],[Valve Cavitation Index]]>2,ValveData[[#This Row],[Adapter Cavitation Index]]>2),MIN(ValveData[[#This Row],[Valve Cavitation Index]:[Adapter Cavitation Index]]),0)","v":0},0,{"$f":"IF(AND(ValveData[[#This Row],[Cavitation Adapter]]=\"None\",ValveData[[#This Row],[Cv OK?]]=\"Yes\"),\"Yes\",\"No\")","v":"No"},{"$f":"IF(AND(ValveData[[#This Row],[Cv OK?]]=\"Yes\",ValveData[[#This Row],[Minimum Cavitation Index]]>2,ValveData[[#This Row],[Index Ranking]]=1),\"Yes\",\"No\")","v":"No"},22,63]
["599-06052","4\"",4,"None","N/A",160,{"$f":"ValveData[[#This Row],[Cv]]*SQRT((Interface!$E$34-Interface!$E$35)/Calculations!$B$3)","v":{"$error":"#N/A"}},{"$f":"ValveData[[#This Row],[Cv]]*63.3*(1-((Interface!$E$34-Interface!$E$35)/(1.944*(Interface!$E$34+14.7))))*SQRT((Interface!$E$34-Interface!$E$35)*Calculations!$B$9)","v":0},{"$f":"IF(ValveData[[#This Row],[Cavitation Adapter]]=\"None\",\"N/A\",2.43*(Calculations!$B$5/ValveData[[#This Row],[Cavitation Adapter Cv]])^2+Interface!$E$35)","v":"N/A"},{"$f":"IF(ValveData[[#This Row],[Cv]]>Calculations!$B$10,\"Yes\",\"No\")","v":"No"},{"$f":"IF(D46=\"None\",\"N/A\",(Interface!$E$34-(Calculations!$B$4-14.7))/(Interface!$E$34-ValveData[[#This Row],[Intermediate Pressure (psia)]]))","v":"N/A"},{"$f":"IF(D46=\"None\",\"N/A\",(ValveData[[#This Row],[Intermediate Pressure (psia)]]-(Calculations!$B$4-14.7))/(ValveData[[#This Row],[Intermediate Pressure (psia)]]-Interface!$E$35))","v":"N/A"},{"$f":"IF(AND(ValveData[[#This Row],[Valve Cavitation Index]]>2,ValveData[[#This Row],[Adapter Cavitation Index]]>2),MIN(ValveData[[#This Row],[Valve Cavitation Index]:[Adapter Cavitation Index]]),0)","v":0},0,{"$f":"IF(AND(ValveData[[#This Row],[Cavitation Adapter]]=\"None\",ValveData[[#This Row],[Cv OK?]]=\"Yes\"),\"Yes\",\"No\")","v":"No"},{"$f":"IF(AND(ValveData[[#This Row],[Cv OK?]]=\"Yes\",ValveData[[#This Row],[Minimum Cavitation Index]]>2,ValveData[[#This Row],[Index Ranking]]=1),\"Yes\",\"No\")","v":"No"},0,39]
["599-06053","5\"",5,"None","N/A",250,{"$f":"ValveData[[#This Row],[Cv]]*SQRT((Interface!$E$34-Interface!$E$35)/Calculations!$B$3)","v":{"$error":"#N/A"}},{"$f":"ValveData[[#This Row],[Cv]]*63.3*(1-((Interface!$E$34-Interface!$E$35)/(1.944*(Interface!$E$34+14.7))))*SQRT((Interface!$E$34-Interface!$E$35)*Calculations!$B$9)","v":0},{"$f":"IF(ValveData[[#This Row],[Cavitation Adapter]]=\"None\",\"N/A\",2.43*(Calculations!$B$5/ValveData[[#This Row],[Cavitation Adapter Cv]])^2+Interface!$E$35)","v":"N/A"},{"$f":"IF(ValveData[[#This Row],[Cv]]>Calculations!$B$10,\"Yes\",\"No\")","v":"No"},{"$f":"IF(D47=\"None\",\"N/A\",(Interface!$E$34-(Calculations!$B$4-14.7))/(Interface!$E$34-ValveData[[#This Row],[Intermediate Pressure (psia)]]))","v":"N/A"},{"$f":"IF(D47=\"None\",\"N/A\",(ValveData[[#This Row],[Intermediate Pressure (psia)]]-(Calculations!$B$4-14.7))/(ValveData[[#This Row],[Intermediate Pressure (psia)]]-Interface!$E$35))","v":"N/A"},{"$f":"IF(AND(ValveData[[#This Row],[Valve Cavitation Index]]>2,ValveData[[#This Row],[Adapter Cavitation Index]]>2),MIN(ValveData[[#This Row],[Valve Cavitation Index]:[Adapter Cavitation Index]]),0)","v":0},0,{"$f":"IF(AND(ValveData[[#This Row],[Cavitation Adapter]]=\"None\",ValveData[[#This Row],[Cv OK?]]=\"Yes\"),\"Yes\",\"No\")","v":"No"},{"$f":"IF(AND(ValveData[[#This Row],[Cv OK?]]=\"Yes\",ValveData[[#This Row],[Minimum Cavitation Index]]>2,ValveData[[#This Row],[Index Ranking]]=1),\"Yes\",\"No\")","v":"No"},0,25]
["599-06054","6\"",6,"None","N/A",400,{"$f":"ValveData[[#This Row],[Cv]]*SQRT((Interface!$E$34-Interface!$E$35)/Calculations!$B$3)","v":{"$error":"#N/A"}},{"$f":"ValveData[[#This Row],[Cv]]*63.3*(1-((Interface!$E$34-Interface!$E$35)/(1.944*(Interface!$E$34+14.7))))*SQRT((Interface!$E$34-Interface!$E$35)*Calculations!$B$9)","v":0},{"$f":"IF(ValveData[[#This Row],[Cavitation Adapter]]=\"None\",\"N/A\",2.43*(Calculations!$B$5/ValveData[[#This Row],[Cavitation Adapter Cv]])^2+Interface!$E$35)","v":"N/A"},{"$f":"IF(ValveData[[#This Row],[Cv]]>Calculations!$B$10,\"Yes\",\"No\")","v":"No"},{"$f":"IF(D48=\"None\",\"N/A\",(Interface!$E$34-(Calculations!$B$4-14.7))/(Interface!$E$34-ValveData[[#This Row],[Intermediate Pressure (psia)]]))","v":"N/A"},{"$f":"IF(D48=\"None\",\"N/A\",(ValveData[[#This Row],[Intermediate Pressure (psia)]]-(Calculations!$B$4-14.7))/(ValveData[[#This Row],[Intermediate Pressure (psia)]]-Interface!$E$35))","v":"N/A"},{"$f":"IF(AND(ValveData[[#This Row],[Valve Cavitation Index]]>2,ValveData[[#This Row],[Adapter Cavitation Index]]>2),MIN(ValveData[[#This Row],[Valve Cavitation Index]:[Adapter Cavitation Index]]),0)","v":0},0,{"$f":"IF(AND(ValveData[[#This Row],[Cavitation Adapter]]=\"None\",ValveData[[#This Row],[Cv OK?]]=\"Yes\"),\"Yes\",\"No\")","v":"No"},{"$f":"IF(AND(ValveData[[#This Row],[Cv OK?]]=\"Yes\",ValveData[[#This Row],[Minimum Cavitation Index]]>2,ValveData[[#This Row],[Index Ranking]]=1),\"Yes\",\"No\")","v":"No"},0,17]
["599-06130","2-1/2\"",2.5,"None","N/A",63,{"$f":"ValveData[[#This Row],[Cv]]*SQRT((Interface!$E$34-Interface!$E$35)/Calculations!$B$3)","v":{"$error":"#N/A"}},{"$f":"ValveData[[#This Row],[Cv]]*63.3*(1-((Interface!$E$34-Interface!$E$35)/(1.944*(Interface!$E$34+14.7))))*SQRT((Interface!$E$34-Interface!$E$35)*Calculations!$B$9)","v":0},{"$f":"IF(ValveData[[#This Row],[Cavitation Adapter]]=\"None\",\"N/A\",2.43*(Calculations!$B$5/ValveData[[#This Row],[Cavitation Adapter Cv]])^2+Interface!$E$35)","v":"N/A"},{"$f":"IF(ValveData[[#This Row],[Cv]]>Calculations!$B$10,\"Yes\",\"No\")","v":"No"},{"$f":"IF(D49=\"None\",\"N/A\",(Interface!$E$34-(Calculations!$B$4-14.7))/(Interface!$E$34-ValveData[[#This Row],[Intermediate Pressure (psia)]]))","v":"N/A"},{"$f":"IF(D49=\"None\",\"N/A\",(ValveData[[#This Row],[Intermediate Pressure (psia)]]-(Calculations!$B$4-14.7))/(ValveData[[#This Row],[Intermediate Pressure (psia)]]-Interface!$E$35))","v":"N/A"},{"$f":"IF(AND(ValveData[[#This Row],[Valve Cavitation Index]]>2,ValveData[[#This Row],[Adapter Cavitation Index]]>2),MIN(ValveData[[#This Row],[Valve Cavitation Index]:[Adapter Cavitation Index]]),0)","v":0},0,{"$f":"IF(AND(ValveData[[#This Row],[Cavitation Adapter]]=\"None\",ValveData[[#This Row],[Cv OK?]]=\"Yes\"),\"Yes\",\"No\")","v":"No"},{"$f":"IF(AND(ValveData[[#This Row],[Cv OK?]]=\"Yes\",ValveData[[#This Row],[Minimum Cavitation Index]]>2,ValveData[[#This Row],[Index Ranking]]=1),\"Yes\",\"No\")","v":"No"},34,97]
["599-06131","3\"",3,"None","N/A",100,{"$f":"ValveData[[#This Row],[Cv]]*SQRT((Interface!$E$34-Interface!$E$35)/Calculations!$B$3)","v":{"$error":"#N/A"}},{"$f":"ValveData[[#This Row],[Cv]]*63.3*(1-((Interface!$E$34-Interface!$E$35)/(1.944*(Interface!$E$34+14.7))))*SQRT((Interface!$E$34-Interface!$E$35)*Calculations!$B$9)","v":0},{"$f":"IF(ValveData[[#This Row],[Cavitation Adapter]]=\"None\",\"N/A\",2.43*(Calculations!$B$5/ValveData[[#This Row],[Cavitation Adapter Cv]])^2+Interface!$E$35)","v":"N/A"},{"$f":"IF(ValveData[[#This Row],[Cv]]>Calculations!$B$10,\"Yes\",\"No\")","v":"No"},{"$f":"IF(D50=\"None\",\"N/A\",(Interface!$E$34-(Calculations!$B$4-14.7))/(Interface!$E$34-ValveData[[#This Row],[Intermediate Pressure (psia)]]))","v":"N/A"},{"$f":"IF(D50=\"None\",\"N/A\",(ValveData[[#This Row],[Intermediate Pressure (psia)]]-(Calculations!$B$4-14.7))/(ValveData[[#This Row],[Intermediate Pressure (psia)]]-Interface!$E$35))","v":"N/A"},{"$f":"IF(AND(ValveData[[#This Row],[Valve Cavitation Index]]>2,ValveData[[#This Row],[Adapter Cavitation Index]]>2),MIN(ValveData[[#This Row],[Valve Cavitation Index]:[Adapter Cavitation Index]]),0)","v":0},0,{"$f":"IF(AND(ValveData[[#This Row],[Cavitation Adapter]]=\"None\",ValveData[[#This Row],[Cv OK?]]=\"Yes\"),\"Yes\",\"No\")","v":"No"},{"$f":"IF(AND(ValveData[[#This Row],[Cv OK?]]=\"Yes\",ValveData[[#This Row],[Minimum Cavitation Index]]>2,ValveData[[#This Row],[Index Ranking]]=1),\"Yes\",\"No\")","v":"No"},22,63]
["599-06132","4\"",4,"None","N/A",160,{"$f":"ValveData[[#This Row],[Cv]]*SQRT((Interface!$E$34-Interface!$E$35)/Calculations!$B$3)","v":{"$error":"#N/A"}},{"$f":"ValveData[[#This Row],[Cv]]*63.3*(1-((Interface!$E$34-Interface!$E$35)/(1.944*(Interface!$E$34+14.7))))*SQRT((Interface!$E$34-Interface!$E$35)*Calculations!$B$9)","v":0},{"$f":"IF(ValveData[[#This Row],[Cavitation Adapter]]=\"None\",\"N/A\",2.43*(Calculations!$B$5/ValveData[[#This Row],[Cavitation Adapter Cv]])^2+Interface!$E$35)","v":"N/A"},{"$f":"IF(ValveData[[#This Row],[Cv]]>Calculations!$B$10,\"Yes\",\"No\")","v":"No"},{"$f":"IF(D51=\"None\",\"N/A\",(Interface!$E$34-(Calculations!$B$4-14.7))/(Interface!$E$34-ValveData[[#This Row],[Intermediate Pressure (psia)]]))","v":"N/A"},{"$f":"IF(D51=\"None\",\"N/A\",(ValveData[[#This Row],[Intermediate Pressure (psia)]]-(Calculations!$B$4-14.7))/(ValveData[[#This Row],[Intermediate Pressure (psia)]]-Interface!$E$35))","v":"N/A"},{"$f":"IF(AND(ValveData[[#This Row],[Valve Cavitation Index]]>2,ValveData[[#This Row],[Adapter Cavitation Index]]>2),MIN(ValveData[[#This Row],[Valve Cavitation Index]:[Adapter Cavitation Index]]),0)","v":0},0,{"$f":"IF(AND(ValveData[[#This Row],[Cavitation Adapter]]=\"None\",ValveData[[#This Row],[Cv OK?]]=\"Yes\"),\"Yes\",\"No\")","v":"No"},{"$f":"IF(AND(ValveData[[#This Row],[Cv OK?]]=\"Yes\",ValveData[[#This Row],[Minimum Cavitation Index]]>2,ValveData[[#This Row],[Index Ranking]]=1),\"Yes\",\"No\")","v":"No"},0,39]
["599-06133","5\"",5,"None","N/A",250,{"$f":"ValveData[[#This Row],[Cv]]*SQRT((Interface!$E$34-Interface!$E$35)/Calculations!$B$3)","v":{"$error":"#N/A"}},{"$f":"ValveData[[#This Row],[Cv]]*63.3*(1-((Interface!$E$34-Interface!$E$35)/(1.944*(Interface!$E$34+14.7))))*SQRT((Interface!$E$34-Interface!$E$35)*Calculations!$B$9)","v":0},{"$f":"IF(ValveData[[#This Row],[Cavitation Adapter]]=\"None\",\"N/A\",2.43*(Calculations!$B$5/ValveData[[#This Row],[Cavitation Adapter Cv]])^2+Interface!$E$35)","v":"N/A"},{"$f":"IF(ValveData[[#This Row],[Cv]]>Calculations!$B$10,\"Yes\",\"No\")","v":"No"},{"$f":"IF(D52=\"None\",\"N/A\",(Interface!$E$34-(Calculations!$B$4-14.7))/(Interface!$E$34-ValveData[[#This Row],[Intermediate Pressure (psia)]]))","v":"N/A"},{"$f":"IF(D52=\"None\",\"N/A\",(ValveData[[#This Row],[Intermediate Pressure (psia)]]-(Calculations!$B$4-14.7))/(ValveData[[#This Row],[Intermediate Pressure (psia)]]-Interface!$E$35))","v":"N/A"},{"$f":"IF(AND(ValveData[[#This Row],[Valve Cavitation Index]]>2,ValveData[[#This Row],[Adapter Cavitation Index]]>2),MIN(ValveData[[#This Row],[Valve Cavitation Index]:[Adapter Cavitation Index]]),0)","v":0},0,{"$f":"IF(AND(ValveData[[#This Row],[Cavitation Adapter]]=\"None\",ValveData[[#This Row],[Cv OK?]]=\"Yes\"),\"Yes\",\"No\")","v":"No"},{"$f":"IF(AND(ValveData[[#This Row],[Cv OK?]]=\"Yes\",ValveData[[#This Row],[Minimum Cavitation Index]]>2,ValveData[[#This Row],[Index Ranking]]=1),\"Yes\",\"No\")","v":"No"},0,25]
["599-06134","6\"",6,"None","N/A",400,{"$f":"ValveData[[#This Row],[Cv]]*SQRT((Interface!$E$34-Interface!$E$35)/Calculations!$B$3)","v":{"$error":"#N/A"}},{"$f":"ValveData[[#This Row],[Cv]]*63.3*(1-((Interface!$E$34-Interface!$E$35)/(1.944*(Interface!$E$34+14.7))))*SQRT((Interface!$E$34-Interface!$E$35)*Calculations!$B$9)","v":0},{"$f":"IF(ValveData[[#This Row],[Cavitation Adapter]]=\"None\",\"N/A\",2.43*(Calculations!$B$5/ValveData[[#This Row],[Cavitation Adapter Cv]])^2+Interface!$E$35)","v":"N/A"},{"$f":"IF(ValveData[[#This Row],[Cv]]>Calculations!$B$10,\"Yes\",\"No\")","v":"No"},{"$f":"IF(D53=\"None\",\"N/A\",(Interface!$E$34-(Calculations!$B$4-14.7))/(Interface!$E$34-ValveData[[#This Row],[Intermediate Pressure (psia)]]))","v":"N/A"},{"$f":"IF(D53=\"None\",\"N/A\",(ValveData[[#This Row],[Intermediate Pressure (psia)]]-(Calculations!$B$4-14.7))/(ValveData[[#This Row],[Intermediate Pressure (psia)]]-Interface!$E$35))","v":"N/A"},{"$f":"IF(AND(ValveData[[#This Row],[Valve Cavitation Index]]>2,ValveData[[#This Row],[Adapter Cavitation Index]]>2),MIN(ValveData[[#This Row],[Valve Cavitation Index]:[Adapter Cavitation Index]]),0)","v":0},0,{"$f":"IF(AND(ValveData[[#This Row],[Cavitation Adapter]]=\"None\",ValveData[[#This Row],[Cv OK?]]=\"Yes\"),\"Yes\",\"No\")","v":"No"},{"$f":"IF(AND(ValveData[[#This Row],[Cv OK?]]=\"Yes\",ValveData[[#This Row],[Minimum Cavitation Index]]>2,ValveData[[#This Row],[Index Ranking]]=1),\"Yes\",\"No\")","v":"No"},0,17]

{"sheet":"Calculations","index":5,"n_rows":30,"n_cols":2,"rows_kept":30,"cut":false,"hidden":true,"merged":[]}
["Variable","Value"]
["Valve Series",{"$f":"IF(Interface!E17=\"599… series\",\"599\",IF(Interface!E17=\"HFV… series\",\"HFV\",IF(AND(Interface!E17=\"Auto select\",(Interface!E34-Interface!E35)>50),\"HFV\",IF(AND(Interface!E17=\"Auto select\",(Interface!E34-Interface!E35)<=50),\"599\",\"\"))))","v":""}]
["Specific Gravity",{"$f":"IFERROR(VLOOKUP(Interface!E39,'Steam Table'!A2:H99,4,FALSE),AVERAGE(OFFSET(INDEX('Steam Table'!D2:D99,MATCH(Interface!E39,'Steam Table'!A2:A99,1)),0,0,2,1)))","v":{"$error":"#N/A"}}]
["Vapor Pressure",{"$f":"IFERROR(VLOOKUP(Interface!E39,'Steam Table'!A2:H99,6,FALSE),AVERAGE(OFFSET(INDEX('Steam Table'!F2:F99,MATCH(Interface!E39,'Steam Table'!A2:A99,1)),0,0,2,1)))","v":{"$error":"#N/A"}}]
["Required gpm for Application",{"$f":"IF(Interface!C20=\"Show\",Interface!E20,IF(Interface!C22=\"Show\",Interface!I22,IF(Interface!C26=\"Show\",Interface!I26,IF(Interface!C30=\"Show\",Interface!I30,\"N/A\"))))","v":"N/A"}]
["Steam Enthalpy",{"$f":"IFERROR(VLOOKUP(Interface!E35,'Steam Table'!E2:H99,3,TRUE),AVERAGE(OFFSET(INDEX('Steam Table'!E2:E99,MATCH(Interface!E35,'Steam Table'!E2:E99,1)),0,0,2,1)))","v":1150.5}]
["Water Enthalpy",{"$f":"IFERROR(VLOOKUP(Interface!E39,'Steam Table'!A2:H99,2,FALSE),AVERAGE(OFFSET(INDEX('Steam Table'!B2:B99,MATCH(Interface!E39,'Steam Table'!A2:A99,1)),0,0,2,1)))","v":{"$error":"#N/A"}}]
["Water Density",{"$f":"IFERROR(VLOOKUP(Interface!E39,'Steam Table'!A2:H99,3,FALSE),AVERAGE(OFFSET(INDEX('Steam Table'!C2:C99,MATCH(Interface!E39,'Steam Table'!A2:A99,1)),0,0,2,1)))","v":{"$error":"#N/A"}}]
["Steam Density",{"$f":"IFERROR(VLOOKUP(Interface!E34,'Steam Table'!E2:H99,8,TRUE),AVERAGE(OFFSET(INDEX('Steam Table'!H2:H99,MATCH(Interface!E34,'Steam Table'!E2:E99,1)),0,0,2,1)))","v":3.875E-2}]
["Required Cv for Application with 50% Safety Factor",{"$f":"IF(Interface!E18=\"Water\",Calculations!B5/SQRT((Interface!E34-Interface!E35)/B3)*1.5,IF(Interface!E18=\"Steam\",Interface!E32/63.3/(1-((Interface!E34-Interface!E35)/(1.944*(Interface!E34+14.7))))/(SQRT((Interface!E34-Interface!E35)*B9))*1.5,\"N/A\"))","v":"N/A"}]
["Application Cavitation Index",{"$f":"IF(Interface!E18=\"Water\",(Interface!E34-(B4-14.7))/(Interface!E34-Interface!E35),IF(Interface!E18=\"Steam\",\"N/A\",\"\"))","v":""}]
["Cavitation Adapter Required?",{"$f":"IFERROR(IF(B11>2,\"No\",\"Yes\"),\"\")","v":"No"}]
["Number of Ports",{"$f":"IF(Interface!E43=\"2-Way\",2,IF(Interface!E43=\"3-Way\",3,\"\"))","v":""}]
["Flow Characteristic",{"$f":"IF(Interface!E44=\"Linear\",\"L\",IF(Interface!E44=\"Equal Percentage\",\"E\",\"L\"))","v":"L"}]
["Connection Type",{"$f":"IF(Interface!E45=\"NPT threaded\",\"N\",IF(Interface!E45=\"150# flanged\",\"1\",IF(Interface!E45=\"300# flanged\",\"3\",\"\")))","v":""}]
["From Table - HFV - No Cavitation Adapter",{"$f":"IF(Interface!E43=\"2-way\",INDEX('Valve Data'!A2:R34,MATCH(\"Yes\",'Valve Data'!O2:O34,0),1),INDEX('Valve Data'!A6:R34,MATCH(\"Yes\",'Valve Data'!O6:O34,0),1))","v":{"$error":"#N/A"}}]
["From Table - HFV - With Cavitation Adapter",{"$f":"IFERROR(INDEX('Valve Data'!A2:R34,MATCH(\"Yes\",'Valve Data'!P2:P34,0),1),\"No valve available\")","v":"No valve available"}]
["Valve Selection - 599",{"$f":"IF(AND(Interface!E45=\"125# flanged\",Interface!C45=\"Show\"),INDEX('Valve Data'!A44:R48,MATCH(\"Yes\",'Valve Data'!O44:O48,0),1),\nIF(AND(Interface!E45=\"250# flanged\",Interface!C45=\"Show\"),INDEX('Valve Data'!A49:R53,MATCH(\"Yes\",'Valve Data'!O49:O53,0),1),\nINDEX('Valve Data'!A35:R43,MATCH(\"Yes\",'Valve Data'!O35:O43,0),1)))","v":{"$error":"#N/A"}}]
["Valve Selection - HFV - No Cavitation Adapter",{"$f":"IF(ISNUMBER(SEARCH(\"R\",B16)),\"HFV-\"&B13&B14&B15&RIGHT(B16,7),\"HFV-\"&B13&B14&B15&RIGHT(B16,6))","v":{"$error":"#N/A"}}]
["Valve Selection - HFV - With Cavitation Adapter",{"$f":"IF(ISNUMBER(SEARCH(\"R\",B17)),\"HFV-\"&B13&B14&B15&RIGHT(B17,7),\"HFV-\"&B13&B14&B15&RIGHT(B17,6))","v":"HFV-Lilable"}]
["Valve Size",{"$f":"IFERROR(IF(B2=\"599\",INDEX('Valve Data'!A35:R48,MATCH(Calculations!B10,'Valve Data'!F35:F48,1)+1,3),IF(AND(B2=\"HFV\",B12=\"No\"),INDEX(ValveData[[Valve Part Number]:[Valve Size Decimal]],MATCH(Calculations!B16,ValveData[Valve Part Number],0),3),IF(AND(B2=\"HFV\",B12=\"Yes\"),INDEX(ValveData[[Valve Part Number]:[Valve Size Decimal]],MATCH(Calculations!B17,ValveData[Valve Part Number],0),3)))),0)","v":false}]
["Connection Size List",{"$f":"IF(AND(B2=\"HFV\",B21>2),\"LargeValvesHFV\",IF(AND(B2=\"HFV\",B21<=2),\"AllValvesHFV\",IF(AND(B2=\"599\",B21>2),\"LargeValves599\",\"\")))","v":""}]
["SKD Close-off Pressure - 599",{"$f":"INDEX(ValveData[],MATCH(Calculations!B18,ValveData[Valve Part Number],0),17)","v":{"$error":"#N/A"}}]
["SKB/C Close-off Pressure - 599",{"$f":"INDEX(ValveData[],MATCH(Calculations!B18,ValveData[Valve Part Number],0),18)","v":{"$error":"#N/A"}}]
["SKD Close-off Pressure - HFV",{"$f":"INDEX(ValveData[],MATCH(Calculations!B16,ValveData[Valve Part Number],0),17)","v":{"$error":"#N/A"}}]
["SKB/C Close-off Pressure - HFV",{"$f":"INDEX(ValveData[],MATCH(Calculations!B16,ValveData[Valve Part Number],0),18)","v":{"$error":"#N/A"}}]
["599 Max Inlet Pressure",{"$f":"IFERROR(IF(Interface!E18=\"Steam\",100,IF(Interface!E18=\"Water\",INDEX('Max Inlet Pressure'!A2:E6,MATCH(Interface!E39,'Max Inlet Pressure'!D2:D6,-1),5),\"\")),\"\")","v":""}]
["HFV Max Inlet Pressure",{"$f":"IFERROR(IF(Interface!E45=\"150# flanged\",INDEX('Max Inlet Pressure'!A23:E27,MATCH(Interface!E39,'Max Inlet Pressure'!D23:D27,-1),5),IF(OR(AND(Interface!E18=\"Steam\",Interface!E45=\"NPT threaded\"),AND(Interface!E18=\"Steam\",Interface!E45=\"300# flanged\")),408,IF(OR(AND(Interface!E18=\"Water\",Interface!E45=\"NPT threaded\"),AND(Interface!E18=\"Water\",Interface!E45=\"300# flanged\")),INDEX('Max Inlet Pressure'!A18:E22,MATCH(Interface!E39,'Max Inlet Pressure'!D18:D22,-1),5),\"Waiting for more info\"))),\"\")","v":"Waiting for more info"}]
["Max Inlet Pressure",{"$f":"IF(B2=\"599\",B27,IF(B2=\"HFV\",B28,\"\"))","v":""}]
["Valve Selection",{"$f":"IF(B2=\"599\",B18,IF(AND(B2=\"HFV\",B12=\"No\"),B16,IF(AND(B2=\"HFV\",B12=\"Yes\"),B17,\"\")))","v":""}]

{"sheet":"Max Inlet Pressure","index":6,"n_rows":28,"n_cols":5,"rows_kept":28,"cut":false,"hidden":true,"merged":[]}
["Valve Series","Media","Connection Type","Media Temp. Range (°F)","Max. Inlet Pressure (psig)"]
[599,"Water","NPT",337,300]
[599,"Water","NPT",300,335]
[599,"Water","NPT",250,365]
[599,"Water","NPT",200,385]
[599,"Water","NPT",150,400]
[599,"Water","125# Flanged",337,140]
[599,"Water","125# Flanged",300,165]
[599,"Water","125# Flanged",250,175]
[599,"Water","125# Flanged",200,190]
[599,"Water","125# Flanged",150,200]
[599,"Water","250# Flanged",337,290]
[599,"Water","250# Flanged",300,375]
[599,"Water","250# Flanged",250,415]
[599,"Water","250# Flanged",200,460]
[599,"Water","250# Flanged",150,500]
[599,"Steam","-","-",100]
["HFV","Water","NPT or 300# Flanged",450,480]
["HFV","Water","NPT or 300# Flanged",400,495]
["HFV","Water","NPT or 300# Flanged",300,540]
["HFV","Water","NPT or 300# Flanged",200,600]
["HFV","Water","NPT or 300# Flanged",100,720]
["HFV","-","150# Flanged",450,180]
["HFV","-","150# Flanged",400,190]
["HFV","-","150# Flanged",300,205]
["HFV","-","150# Flanged",200,230]
["HFV","-","150# Flanged",100,275]
["HFV","Steam","NPT or 300# Flanged","-",408]

{"sheet":"Steam Table","index":7,"n_rows":99,"n_cols":11,"rows_kept":99,"cut":false,"hidden":true,"merged":[]}
["Water Temperature (°F)","Water Enthalpy (Btu/lb)","Water Density (lb/gal)","Water Specific Gravity","Steam Pressure / Vapor Pressure (psig)","Steam Pressure / Vapor Pressure (psia)","Steam Enthalpy (Btu/lb)","Steam Density (lb/ft3)"]
[32,-1.7899999999999999E-2,8.34,{"$f":"C2/$C$9","v":1},{"$f":"F2-14.7","v":-14.610999999999999},8.8999999999999996E-2,1075.5,4.0000000000000002E-4]
[36,4.008,8.35,{"$f":"C3/$C$9","v":1.0011990407673861},{"$f":"F3-14.7","v":-14.596},0.104,1077.2,4.0000000000000002E-4]
[40,8.0269999999999992,8.35,1.0011990407673861,-14.577999999999999,0.122,1079,5.0000000000000001E-4]
[44,12.041,8.34,1,-14.558,0.14199999999999999,1080.7,5.0000000000000001E-4]
[48,16.050999999999998,8.34,1,-14.535,0.16500000000000001,1082.5,5.9999999999999995E-4]
[52,20.056999999999999,8.34,1,-14.507999999999999,0.192,1084.2,5.9999999999999995E-4]
[56,24.059000000000001,8.34,1,-14.478,0.222,1086,6.9999999999999999E-4]
[60,28.06,8.34,1,-14.443999999999999,0.25600000000000001,1087.7,8.0000000000000004E-4]
[64,32.058,8.34,1,-14.404999999999999,0.29499999999999998,1089.5,8.9999999999999998E-4]
[68,36.054000000000002,8.33,0.99880095923261392,-14.360999999999999,0.33900000000000002,1091.2,1E-3]
[72,40.048999999999999,8.33,0.99880095923261392,-14.311999999999999,0.38800000000000001,1093,1.1999999999999999E-3]
[76,44.042999999999999,8.32,0.99760191846522783,-14.255999999999998,0.44400000000000001,1094.7,1.4E-3]
[80,48.036999999999999,8.32,0.99760191846522783,-14.193,0.50700000000000001,1096.4000000000001,1.6000000000000001E-3]
[84,52.029000000000003,8.31,0.99640287769784175,-14.122999999999999,0.57699999999999996,1098.2,1.8E-3]
[88,56.021999999999998,8.31,0.99640287769784175,-14.043999999999999,0.65600000000000003,1099.9000000000001,2E-3]
[92,60.014000000000003,8.3000000000000007,0.99520383693045578,-13.956999999999999,0.74299999999999999,1101.5999999999999,2.3E-3]
[96,64.006,8.2899999999999991,0.99400479616306947,-13.859,0.84099999999999997,1103.3,2.5000000000000001E-3]
[100,67.998999999999995,8.2899999999999991,0.99400479616306947,-13.750999999999999,0.94899999999999995,1105.0999999999999,2.8999999999999998E-3]
[104,71.992000000000004,8.2799999999999994,0.99280575539568339,-13.629999999999999,1.07,1106.8,3.2000000000000002E-3]
[108,75.98,8.27,0.9916067146282973,-13.5,1.2,1108.5,3.5999999999999999E-3]
[112,79.98,8.27,0.9916067146282973,-13.35,1.35,1110.2,4.0000000000000001E-3]
[116,83.97,8.26,0.99040767386091122,-13.19,1.51,1111.9000000000001,4.4999999999999997E-3]
[120,87.97,8.25,0.98920863309352525,-13.01,1.69,1113.5999999999999,5.0000000000000001E-3]
[124,91.96,8.24,0.98800959232613916,-12.809999999999999,1.89,1115.3,5.4999999999999997E-3]
[128,95.96,8.23,0.98681055155875308,-12.59,2.11,1117,6.1000000000000004E-3]
[132,99.95,8.2200000000000006,0.985611510791367,-12.36,2.34,1118.5999999999999,6.7000000000000002E-3]
[136,103.95,8.2100000000000009,0.98441247002398091,-12.1,2.6,1120.3,7.4000000000000003E-3]
[140,107.95,8.2100000000000009,0.98441247002398091,-11.809999999999999,2.89,1122,8.0999999999999996E-3]
[144,111.95,8.1999999999999993,0.98321342925659461,-11.5,3.2,1123.5999999999999,8.9999999999999993E-3]
[148,115.95,8.19,0.98201438848920863,-11.16,3.54,1125.3,9.7999999999999997E-3]
[152,119.95,8.18,0.98081534772182255,-10.79,3.91,1126.9000000000001,1.0800000000000001E-2]
[156,123.95,8.16,0.97841726618705038,-10.39,4.3099999999999996,1128.5999999999999,1.18E-2]
[160,127.96,8.15,0.9772182254196643,-9.9599999999999991,4.74,1130.2,1.2999999999999999E-2]
[164,131.96,8.14,0.97601918465227822,-9.4899999999999984,5.21,1131.8,1.4200000000000001E-2]
[168,135.97,8.1300000000000008,0.97482014388489224,-8.98,5.72,1133.4000000000001,1.54E-2]
[172,139.97999999999999,8.1199999999999992,0.97362110311750594,-8.43,6.27,1135,1.6799999999999999E-2]
[176,143.99,8.11,0.97242206235011985,-7.8299999999999992,6.87,1136.5999999999999,1.83E-2]
[180,148,8.1,0.97122302158273377,-7.1899999999999995,7.51,1138.2,1.9900000000000001E-2]
[184,152.01,8.09,0.97002398081534769,-6.5,8.1999999999999993,1139.8,2.1600000000000001E-2]
[188,156.03,8.07,0.96762589928057563,-5.75,8.9499999999999993,1141.3,2.35E-2]
[192,160.05000000000001,8.06,0.96642685851318955,-4.9499999999999993,9.75,1142.9000000000001,2.5399999999999999E-2]
[196,164.06,8.0500000000000007,0.96522781774580346,-4.0999999999999996,10.6,1144.4000000000001,2.75E-2]
[200,168.09,8.0399999999999991,0.96402877697841716,-3.1999999999999993,11.5,1146,2.98E-2]
[204,172.11,8.02,0.9616306954436451,-2.1999999999999993,12.5,1147.5,3.2099999999999997E-2]
[208,176.14,8.01,0.96043165467625902,-1.0999999999999996,13.6,1149,3.4700000000000002E-2]
[212,180.17,8,0.95923261390887293,0,14.7,1150.5,3.73E-2]
[216,184.2,7.98,0.95683453237410077,1.2000000000000011,15.9,1152,4.02E-2]
[220,188.23,7.97,0.95563549160671457,2.5,17.2,1153.4000000000001,4.3200000000000002E-2]
[224,192.27,7.96,0.9544364508393286,3.9000000000000021,18.600000000000001,1154.9000000000001,4.6399999999999997E-2,null,null,{"$f":"AVERAGE(D51:D52)","v":0.95143884892086339}]
[228,196.31,7.94,0.95203836930455643,5.3000000000000007,20,1156.3,4.9799999999999997E-2]
[232,200.35,7.93,0.95083932853717024,6.9000000000000021,21.6,1157.8,5.3499999999999999E-2]
[236,204.4,7.91,0.94844124700239807,8.5,23.2,1159.2,5.7299999999999997E-2]
[240,208.45,7.9,0.9472422062350121,10.3,25,1160.5999999999999,6.13E-2]
[244,212.5,7.89,0.9460431654676259,12.100000000000001,26.8,1162,6.5600000000000006E-2]
[248,216.56,7.87,0.94364508393285373,14.100000000000001,28.8,1163.4000000000001,7.0000000000000007E-2]
[252,220.62,7.86,0.94244604316546765,16.2,30.9,1164.7,7.4800000000000005E-2]
[256,224.69,7.84,0.94004796163069548,18.400000000000002,33.1,1166.0999999999999,7.9799999999999996E-2]
[260,228.76,7.82,0.93764988009592332,20.7,35.4,1167.4000000000001,8.5000000000000006E-2]
[264,232.83,7.81,0.93645083932853712,23.2,37.9,1168.7,9.06E-2]
[268,236.91,7.79,0.93405275779376495,25.8,40.5,1170,9.64E-2]
[272,240.99,7.78,0.93285371702637898,28.500000000000004,43.2,1171.3,0.10299999999999999]
[276,245.08,7.76,0.9304556354916067,31.400000000000002,46.1,1172.5,0.109]
[280,249.17,7.74,0.92805755395683454,34.5,49.2,1173.8,0.11600000000000001]
[284,253.3,7.73,0.92685851318944856,37.700000000000003,52.4,1175,0.123]
[288,257.39999999999998,7.71,0.92446043165467628,41.099999999999994,55.8,1176.2,0.13]
[292,261.5,7.69,{"$f":"C67/$C$9","v":0.92206235011990412},{"$f":"F67-14.7","v":44.7},59.4,1177.4000000000001,0.13800000000000001]
[296,265.60000000000002,7.68,0.92086330935251792,48.400000000000006,63.1,1178.5999999999999,0.14599999999999999]
[300,269.7,7.66,0.91846522781774587,52.3,67,1179.7,0.155]
[304,273.8,7.64,0.91606714628297359,56.399999999999991,71.099999999999994,1180.9000000000001,0.16400000000000001]
[308,278,7.62,0.91366906474820142,60.7,75.400000000000006,1182,0.17299999999999999]
[312,282.10000000000002,7.61,0.91247002398081545,65.3,80,1183.0999999999999,0.183]
[316,286.3,7.59,0.91007194244604317,70,84.7,1184.0999999999999,0.193]
[320,290.39999999999998,7.57,0.907673860911271,74.899999999999991,89.6,1185.2,0.20300000000000001]
[324,294.60000000000002,7.55,0.90527577937649883,80.099999999999994,94.8,1186.2,0.215]
[328,298.7,7.53,0.90287769784172667,85.5,100.2,1187.2,0.22600000000000001]
[332,302.89999999999998,7.52,0.90167865707434047,91.2,105.9,1188.2,0.23799999999999999]
[336,307.10000000000002,7.5,0.89928057553956831,97.1,111.8,1189.0999999999999,0.251]
[340,311.3,7.48,0.89688249400479625,103.3,118,1190.0999999999999,0.26400000000000001]
[344,315.5,7.46,0.89448441247002397,109.7,124.4,1191,0.27800000000000002]
[348,319.7,7.44,0.89208633093525191,116.39999999999999,131.1,1191.9000000000001,0.29199999999999998]
[352,323.89999999999998,7.42,0.88968824940047964,123.39999999999999,138.1,1192.7,0.307]
[356,328.1,7.4,0.88729016786570747,130.70000000000002,145.4,1193.5999999999999,0.32200000000000001]
[360,332.3,7.38,0.8848920863309353,138.30000000000001,153,1194.4000000000001,0.33800000000000002]
[364,336.5,7.36,0.88249400479616313,146.20000000000002,160.9,1195.2,0.35499999999999998]
[368,340.8,7.34,0.88009592326139086,154.4,169.1,1195.9000000000001,0.372]
[372,345,7.32,0.8776978417266188,162.9,177.6,1196.7,0.39]
[376,349.3,7.3,0.87529976019184652,171.8,186.5,1197.4000000000001,0.40899999999999997]
[380,353.6,7.28,0.87290167865707435,181,195.7,1198,0.42799999999999999]
[384,357.9,7.2600000000000096,0.8705035971223033,190.60000000000002,205.3,1198.7,0.44800000000000001]
[388,362.2,7.24000000000001,0.86810551558753124,200.5,215.2,1199.3,0.46899999999999997]
[392,366.5,7.2200000000000104,0.86570743405275907,210.8,225.5,1199.9000000000001,0.49099999999999999]
[396,370.8,7.2000000000000099,0.86330935251798679,221.5,236.2,1200.4000000000001,0.51300000000000001]
[400,375.1,7.18,0.86091127098321341,232.60000000000002,247.3,1201,0.53700000000000003]
[404,379.4,7.15,0.85731414868105527,244,258.7,1201.5,0.56100000000000005]
[408,383.8,7.13,0.85491606714628299,255.90000000000003,270.60000000000002,1201.9000000000001,0.58599999999999997]
[412,388.1,7.11,0.85251798561151082,268.2,282.89999999999998,1202.4000000000001,0.61199999999999999]
[416,392.5,7.09,0.85011990407673865,280.90000000000003,295.60000000000002,1202.8,0.63900000000000001]
[420,396.9,7.06,0.84652278177458029,294.10000000000002,308.8,1203.0999999999999,0.66600000000000004]